 Batch Number,Vendor Name,Invoice Number, Line,Line Amount,Account Description,Issue Date ,Total Amount Paid
139623,L B OF LAMBETH================,72829579A,1,"1,505.79",PROPERTY RATES,04/04/12,"1,505.79"
139625,DEPARTMENT FOR WORK & PENSIONS,7641,1,695.00,DOCTORS/MEDICAL FEES,04/04/12,695.00
040412A,TURNER & TOWNSEND PROJECT MNGT,000528169,1,"13,167.12",PROFESSIONAL FEES - MISC,10/04/12,"13,167.12"
040412A,FAITHORN FARRELL TIMMS========,007600,1,645.00,STRATEGIC (NON CYCLICAL),10/04/12,"1,645.00"
040412A,FAITHORN FARRELL TIMMS========,007600,2,"1,000.00",STRATEGIC (NON CYCLICAL),10/04/12,
040412A,FAITHORN FARRELL TIMMS========,007746,1,735.00,STRATEGIC (NON CYCLICAL),10/04/12,735.00
040412A,FAITHORN FARRELL TIMMS========,007747,1,582.50,STRATEGIC (NON CYCLICAL),10/04/12,582.50
040412A,FAITHORN FARRELL TIMMS========,007748,1,612.50,STRATEGIC (NON CYCLICAL),10/04/12,612.50
139622,THAMES WATER UTILITIES LTD====,0423030577D,1,"1,536.89",WATER & SEWERAGE RATES,10/04/12,"1,536.89"
030412F,*PRINCIPAL CATERING CONSULTNTS,047025,1,247.50,REFRESHMENTS,10/04/12,"1,391.25"
030412F,*PRINCIPAL CATERING CONSULTNTS,047025,2,247.50,REFRESHMENTS,10/04/12,
030412F,*PRINCIPAL CATERING CONSULTNTS,047025,3,648.75,REFRESHMENTS,10/04/12,
030412F,*PRINCIPAL CATERING CONSULTNTS,047025,4,247.50,REFRESHMENTS,10/04/12,
030412C,AIRWAVE SOLUTIONS LTD=========,0940000028-018,1,"52,650.00",ACQUISITIONS,10/04/12,"52,650.00"
800009331,*NPS (SHOES) LTD,10122,1,29.45,CLOTHING,10/04/12,"2,684.95"
800009331,*NPS (SHOES) LTD,10122,2,29.45,CLOTHING,10/04/12,
800009331,*NPS (SHOES) LTD,10122,3,29.45,CLOTHING,10/04/12,
800009331,*NPS (SHOES) LTD,10122,4,29.45,CLOTHING,10/04/12,
800009331,*NPS (SHOES) LTD,10122,5,29.45,CLOTHING,10/04/12,
800009331,*NPS (SHOES) LTD,10122,6,29.45,CLOTHING,10/04/12,
800009331,*NPS (SHOES) LTD,10122,7,29.45,CLOTHING,10/04/12,
800009331,*NPS (SHOES) LTD,10122,8,29.45,CLOTHING,10/04/12,
800009331,*NPS (SHOES) LTD,10122,9,29.45,CLOTHING,10/04/12,
800009331,*NPS (SHOES) LTD,10122,10,29.45,CLOTHING,10/04/12,
800009331,*NPS (SHOES) LTD,10122,11,29.45,CLOTHING,10/04/12,
800009331,*NPS (SHOES) LTD,10122,12,29.45,CLOTHING,10/04/12,
800009331,*NPS (SHOES) LTD,10122,13,31.95,CLOTHING,10/04/12,
800009331,*NPS (SHOES) LTD,10122,14,29.45,CLOTHING,10/04/12,
800009331,*NPS (SHOES) LTD,10122,15,29.45,CLOTHING,10/04/12,
800009331,*NPS (SHOES) LTD,10122,16,29.45,CLOTHING,10/04/12,
800009331,*NPS (SHOES) LTD,10122,17,29.45,CLOTHING,10/04/12,
800009331,*NPS (SHOES) LTD,10122,18,29.45,CLOTHING,10/04/12,
800009331,*NPS (SHOES) LTD,10122,19,29.45,CLOTHING,10/04/12,
800009331,*NPS (SHOES) LTD,10122,20,29.45,CLOTHING,10/04/12,
800009331,*NPS (SHOES) LTD,10122,21,29.45,CLOTHING,10/04/12,
800009331,*NPS (SHOES) LTD,10122,22,29.45,CLOTHING,10/04/12,
800009331,*NPS (SHOES) LTD,10122,23,29.45,CLOTHING,10/04/12,
800009331,*NPS (SHOES) LTD,10122,24,29.45,CLOTHING,10/04/12,
800009331,*NPS (SHOES) LTD,10122,25,29.45,CLOTHING,10/04/12,
800009331,*NPS (SHOES) LTD,10122,26,29.45,CLOTHING,10/04/12,
800009331,*NPS (SHOES) LTD,10122,27,29.45,CLOTHING,10/04/12,
800009331,*NPS (SHOES) LTD,10122,28,29.45,CLOTHING,10/04/12,
800009331,*NPS (SHOES) LTD,10122,29,29.45,CLOTHING,10/04/12,
800009331,*NPS (SHOES) LTD,10122,30,29.45,CLOTHING,10/04/12,
800009331,*NPS (SHOES) LTD,10122,31,29.45,CLOTHING,10/04/12,
800009331,*NPS (SHOES) LTD,10122,32,29.45,CLOTHING,10/04/12,
800009331,*NPS (SHOES) LTD,10122,33,29.45,CLOTHING,10/04/12,
800009331,*NPS (SHOES) LTD,10122,34,29.45,CLOTHING,10/04/12,
800009331,*NPS (SHOES) LTD,10122,35,29.45,CLOTHING,10/04/12,
800009331,*NPS (SHOES) LTD,10122,36,29.45,CLOTHING,10/04/12,
800009331,*NPS (SHOES) LTD,10122,37,29.45,CLOTHING,10/04/12,
800009331,*NPS (SHOES) LTD,10122,38,29.45,CLOTHING,10/04/12,
800009331,*NPS (SHOES) LTD,10122,39,29.45,CLOTHING,10/04/12,
800009331,*NPS (SHOES) LTD,10122,40,29.45,CLOTHING,10/04/12,
800009331,*NPS (SHOES) LTD,10122,41,29.45,CLOTHING,10/04/12,
800009331,*NPS (SHOES) LTD,10122,42,29.45,CLOTHING,10/04/12,
800009331,*NPS (SHOES) LTD,10122,43,29.45,CLOTHING,10/04/12,
800009331,*NPS (SHOES) LTD,10122,44,29.45,CLOTHING,10/04/12,
800009331,*NPS (SHOES) LTD,10122,45,29.45,CLOTHING,10/04/12,
800009331,*NPS (SHOES) LTD,10122,46,29.45,CLOTHING,10/04/12,
800009331,*NPS (SHOES) LTD,10122,47,29.45,CLOTHING,10/04/12,
800009331,*NPS (SHOES) LTD,10122,48,29.45,CLOTHING,10/04/12,
800009331,*NPS (SHOES) LTD,10122,49,29.45,CLOTHING,10/04/12,
800009331,*NPS (SHOES) LTD,10122,50,29.45,CLOTHING,10/04/12,
800009331,*NPS (SHOES) LTD,10122,51,29.45,CLOTHING,10/04/12,
800009331,*NPS (SHOES) LTD,10122,52,31.95,CLOTHING,10/04/12,
800009331,*NPS (SHOES) LTD,10122,53,29.45,CLOTHING,10/04/12,
800009331,*NPS (SHOES) LTD,10122,54,29.45,CLOTHING,10/04/12,
800009331,*NPS (SHOES) LTD,10122,55,29.45,CLOTHING,10/04/12,
800009331,*NPS (SHOES) LTD,10122,56,29.45,CLOTHING,10/04/12,
800009331,*NPS (SHOES) LTD,10122,57,29.45,CLOTHING,10/04/12,
800009331,*NPS (SHOES) LTD,10122,58,29.45,CLOTHING,10/04/12,
800009331,*NPS (SHOES) LTD,10122,59,29.45,CLOTHING,10/04/12,
800009331,*NPS (SHOES) LTD,10122,60,29.45,CLOTHING,10/04/12,
800009331,*NPS (SHOES) LTD,10122,61,29.45,CLOTHING,10/04/12,
800009331,*NPS (SHOES) LTD,10122,62,29.45,CLOTHING,10/04/12,
800009331,*NPS (SHOES) LTD,10122,63,29.45,CLOTHING,10/04/12,
800009331,*NPS (SHOES) LTD,10122,64,29.45,CLOTHING,10/04/12,
800009331,*NPS (SHOES) LTD,10122,65,29.45,CLOTHING,10/04/12,
800009331,*NPS (SHOES) LTD,10122,66,29.45,CLOTHING,10/04/12,
800009331,*NPS (SHOES) LTD,10122,67,29.45,CLOTHING,10/04/12,
800009331,*NPS (SHOES) LTD,10122,68,29.45,CLOTHING,10/04/12,
800009331,*NPS (SHOES) LTD,10122,69,29.45,CLOTHING,10/04/12,
800009331,*NPS (SHOES) LTD,10122,70,29.45,CLOTHING,10/04/12,
800009331,*NPS (SHOES) LTD,10122,71,29.45,CLOTHING,10/04/12,
800009331,*NPS (SHOES) LTD,10122,72,29.45,CLOTHING,10/04/12,
800009331,*NPS (SHOES) LTD,10122,73,29.45,CLOTHING,10/04/12,
800009331,*NPS (SHOES) LTD,10122,74,29.45,CLOTHING,10/04/12,
800009331,*NPS (SHOES) LTD,10122,75,29.45,CLOTHING,10/04/12,
800009331,*NPS (SHOES) LTD,10122,76,29.45,CLOTHING,10/04/12,
800009331,*NPS (SHOES) LTD,10122,77,29.45,CLOTHING,10/04/12,
800009331,*NPS (SHOES) LTD,10122,78,29.45,CLOTHING,10/04/12,
800009331,*NPS (SHOES) LTD,10122,79,29.45,CLOTHING,10/04/12,
800009331,*NPS (SHOES) LTD,10122,80,29.45,CLOTHING,10/04/12,
800009331,*NPS (SHOES) LTD,10122,81,29.45,CLOTHING,10/04/12,
800009331,*NPS (SHOES) LTD,10122,82,29.45,CLOTHING,10/04/12,
800009331,*NPS (SHOES) LTD,10122,83,29.45,CLOTHING,10/04/12,
800009331,*NPS (SHOES) LTD,10122,84,29.45,CLOTHING,10/04/12,
800009331,*NPS (SHOES) LTD,10122,85,29.45,CLOTHING,10/04/12,
800009331,*NPS (SHOES) LTD,10122,86,29.45,CLOTHING,10/04/12,
800009331,*NPS (SHOES) LTD,10122,87,29.45,CLOTHING,10/04/12,
800009331,*NPS (SHOES) LTD,10122,88,29.45,CLOTHING,10/04/12,
800009331,*NPS (SHOES) LTD,10122,89,29.45,CLOTHING,10/04/12,
800009331,*NPS (SHOES) LTD,10122,90,29.45,CLOTHING,10/04/12,
800009331,*NPS (SHOES) LTD,10122,91,29.45,CLOTHING,10/04/12,
800009332,*NPS (SHOES) LTD,10130,1,30.05,CLOTHING,10/04/12,"1,193.65"
800009332,*NPS (SHOES) LTD,10130,2,30.05,CLOTHING,10/04/12,
800009332,*NPS (SHOES) LTD,10130,3,30.05,CLOTHING,10/04/12,
800009332,*NPS (SHOES) LTD,10130,4,30.05,CLOTHING,10/04/12,
800009332,*NPS (SHOES) LTD,10130,5,30.05,CLOTHING,10/04/12,
800009332,*NPS (SHOES) LTD,10130,6,30.05,CLOTHING,10/04/12,
800009332,*NPS (SHOES) LTD,10130,7,30.05,CLOTHING,10/04/12,
800009332,*NPS (SHOES) LTD,10130,8,30.05,CLOTHING,10/04/12,
800009332,*NPS (SHOES) LTD,10130,9,30.05,CLOTHING,10/04/12,
800009332,*NPS (SHOES) LTD,10130,10,30.05,CLOTHING,10/04/12,
800009332,*NPS (SHOES) LTD,10130,11,30.05,CLOTHING,10/04/12,
800009332,*NPS (SHOES) LTD,10130,12,41.10,CLOTHING,10/04/12,
800009332,*NPS (SHOES) LTD,10130,13,41.10,CLOTHING,10/04/12,
800009332,*NPS (SHOES) LTD,10130,14,41.10,CLOTHING,10/04/12,
800009332,*NPS (SHOES) LTD,10130,15,41.10,CLOTHING,10/04/12,
800009332,*NPS (SHOES) LTD,10130,16,41.10,CLOTHING,10/04/12,
800009332,*NPS (SHOES) LTD,10130,17,41.10,CLOTHING,10/04/12,
800009332,*NPS (SHOES) LTD,10130,18,41.10,CLOTHING,10/04/12,
800009332,*NPS (SHOES) LTD,10130,19,41.10,CLOTHING,10/04/12,
800009332,*NPS (SHOES) LTD,10130,20,41.10,CLOTHING,10/04/12,
800009332,*NPS (SHOES) LTD,10130,21,41.10,CLOTHING,10/04/12,
800009332,*NPS (SHOES) LTD,10130,22,41.10,CLOTHING,10/04/12,
800009332,*NPS (SHOES) LTD,10130,23,41.10,CLOTHING,10/04/12,
800009332,*NPS (SHOES) LTD,10130,24,41.10,CLOTHING,10/04/12,
800009332,*NPS (SHOES) LTD,10130,25,41.10,CLOTHING,10/04/12,
800009332,*NPS (SHOES) LTD,10130,26,41.10,CLOTHING,10/04/12,
800009332,*NPS (SHOES) LTD,10130,27,41.10,CLOTHING,10/04/12,
800009332,*NPS (SHOES) LTD,10130,28,41.10,CLOTHING,10/04/12,
800009332,*NPS (SHOES) LTD,10130,29,41.10,CLOTHING,10/04/12,
800009332,*NPS (SHOES) LTD,10130,30,41.10,CLOTHING,10/04/12,
800009332,*NPS (SHOES) LTD,10130,31,41.10,CLOTHING,10/04/12,
800009332,*NPS (SHOES) LTD,10130,32,41.10,CLOTHING,10/04/12,
030412C,*APTCO========================,101340,1,"1,500.00",OPERATIONAL EQUIP-PURCHASE,10/04/12,"1,500.00"
800009333,*NPS (SHOES) LTD,10160,1,29.45,CLOTHING,10/04/12,"2,945.00"
800009333,*NPS (SHOES) LTD,10160,2,29.45,CLOTHING,10/04/12,
800009333,*NPS (SHOES) LTD,10160,3,29.45,CLOTHING,10/04/12,
800009333,*NPS (SHOES) LTD,10160,4,29.45,CLOTHING,10/04/12,
800009333,*NPS (SHOES) LTD,10160,5,29.45,CLOTHING,10/04/12,
800009333,*NPS (SHOES) LTD,10160,6,29.45,CLOTHING,10/04/12,
800009333,*NPS (SHOES) LTD,10160,7,29.45,CLOTHING,10/04/12,
800009333,*NPS (SHOES) LTD,10160,8,29.45,CLOTHING,10/04/12,
800009333,*NPS (SHOES) LTD,10160,9,29.45,CLOTHING,10/04/12,
800009333,*NPS (SHOES) LTD,10160,10,29.45,CLOTHING,10/04/12,
800009333,*NPS (SHOES) LTD,10160,11,29.45,CLOTHING,10/04/12,
800009333,*NPS (SHOES) LTD,10160,12,29.45,CLOTHING,10/04/12,
800009333,*NPS (SHOES) LTD,10160,13,29.45,CLOTHING,10/04/12,
800009333,*NPS (SHOES) LTD,10160,14,29.45,CLOTHING,10/04/12,
800009333,*NPS (SHOES) LTD,10160,15,29.45,CLOTHING,10/04/12,
800009333,*NPS (SHOES) LTD,10160,16,29.45,CLOTHING,10/04/12,
800009333,*NPS (SHOES) LTD,10160,17,29.45,CLOTHING,10/04/12,
800009333,*NPS (SHOES) LTD,10160,18,29.45,CLOTHING,10/04/12,
800009333,*NPS (SHOES) LTD,10160,19,29.45,CLOTHING,10/04/12,
800009333,*NPS (SHOES) LTD,10160,20,29.45,CLOTHING,10/04/12,
800009333,*NPS (SHOES) LTD,10160,21,29.45,CLOTHING,10/04/12,
800009333,*NPS (SHOES) LTD,10160,22,29.45,CLOTHING,10/04/12,
800009333,*NPS (SHOES) LTD,10160,23,29.45,CLOTHING,10/04/12,
800009333,*NPS (SHOES) LTD,10160,24,29.45,CLOTHING,10/04/12,
800009333,*NPS (SHOES) LTD,10160,25,29.45,CLOTHING,10/04/12,
800009333,*NPS (SHOES) LTD,10160,26,29.45,CLOTHING,10/04/12,
800009333,*NPS (SHOES) LTD,10160,27,29.45,CLOTHING,10/04/12,
800009333,*NPS (SHOES) LTD,10160,28,29.45,CLOTHING,10/04/12,
800009333,*NPS (SHOES) LTD,10160,29,29.45,CLOTHING,10/04/12,
800009333,*NPS (SHOES) LTD,10160,30,29.45,CLOTHING,10/04/12,
800009333,*NPS (SHOES) LTD,10160,31,29.45,CLOTHING,10/04/12,
800009333,*NPS (SHOES) LTD,10160,32,29.45,CLOTHING,10/04/12,
800009333,*NPS (SHOES) LTD,10160,33,29.45,CLOTHING,10/04/12,
800009333,*NPS (SHOES) LTD,10160,34,29.45,CLOTHING,10/04/12,
800009333,*NPS (SHOES) LTD,10160,35,29.45,CLOTHING,10/04/12,
800009333,*NPS (SHOES) LTD,10160,36,29.45,CLOTHING,10/04/12,
800009333,*NPS (SHOES) LTD,10160,37,29.45,CLOTHING,10/04/12,
800009333,*NPS (SHOES) LTD,10160,38,29.45,CLOTHING,10/04/12,
800009333,*NPS (SHOES) LTD,10160,39,29.45,CLOTHING,10/04/12,
800009333,*NPS (SHOES) LTD,10160,40,29.45,CLOTHING,10/04/12,
800009333,*NPS (SHOES) LTD,10160,41,29.45,CLOTHING,10/04/12,
800009333,*NPS (SHOES) LTD,10160,42,29.45,CLOTHING,10/04/12,
800009333,*NPS (SHOES) LTD,10160,43,29.45,CLOTHING,10/04/12,
800009333,*NPS (SHOES) LTD,10160,44,29.45,CLOTHING,10/04/12,
800009333,*NPS (SHOES) LTD,10160,45,29.45,CLOTHING,10/04/12,
800009333,*NPS (SHOES) LTD,10160,46,29.45,CLOTHING,10/04/12,
800009333,*NPS (SHOES) LTD,10160,47,29.45,CLOTHING,10/04/12,
800009333,*NPS (SHOES) LTD,10160,48,29.45,CLOTHING,10/04/12,
800009333,*NPS (SHOES) LTD,10160,49,29.45,CLOTHING,10/04/12,
800009333,*NPS (SHOES) LTD,10160,50,29.45,CLOTHING,10/04/12,
800009333,*NPS (SHOES) LTD,10160,51,29.45,CLOTHING,10/04/12,
800009333,*NPS (SHOES) LTD,10160,52,29.45,CLOTHING,10/04/12,
800009333,*NPS (SHOES) LTD,10160,53,29.45,CLOTHING,10/04/12,
800009333,*NPS (SHOES) LTD,10160,54,29.45,CLOTHING,10/04/12,
800009333,*NPS (SHOES) LTD,10160,55,29.45,CLOTHING,10/04/12,
800009333,*NPS (SHOES) LTD,10160,56,29.45,CLOTHING,10/04/12,
800009333,*NPS (SHOES) LTD,10160,57,29.45,CLOTHING,10/04/12,
800009333,*NPS (SHOES) LTD,10160,58,29.45,CLOTHING,10/04/12,
800009333,*NPS (SHOES) LTD,10160,59,29.45,CLOTHING,10/04/12,
800009333,*NPS (SHOES) LTD,10160,60,29.45,CLOTHING,10/04/12,
800009333,*NPS (SHOES) LTD,10160,61,29.45,CLOTHING,10/04/12,
800009333,*NPS (SHOES) LTD,10160,62,29.45,CLOTHING,10/04/12,
800009333,*NPS (SHOES) LTD,10160,63,29.45,CLOTHING,10/04/12,
800009333,*NPS (SHOES) LTD,10160,64,29.45,CLOTHING,10/04/12,
800009333,*NPS (SHOES) LTD,10160,65,29.45,CLOTHING,10/04/12,
800009333,*NPS (SHOES) LTD,10160,66,29.45,CLOTHING,10/04/12,
800009333,*NPS (SHOES) LTD,10160,67,29.45,CLOTHING,10/04/12,
800009333,*NPS (SHOES) LTD,10160,68,29.45,CLOTHING,10/04/12,
800009333,*NPS (SHOES) LTD,10160,69,29.45,CLOTHING,10/04/12,
800009333,*NPS (SHOES) LTD,10160,70,29.45,CLOTHING,10/04/12,
800009333,*NPS (SHOES) LTD,10160,71,29.45,CLOTHING,10/04/12,
800009333,*NPS (SHOES) LTD,10160,72,29.45,CLOTHING,10/04/12,
800009333,*NPS (SHOES) LTD,10160,73,29.45,CLOTHING,10/04/12,
800009333,*NPS (SHOES) LTD,10160,74,29.45,CLOTHING,10/04/12,
800009333,*NPS (SHOES) LTD,10160,75,29.45,CLOTHING,10/04/12,
800009333,*NPS (SHOES) LTD,10160,76,29.45,CLOTHING,10/04/12,
800009333,*NPS (SHOES) LTD,10160,77,29.45,CLOTHING,10/04/12,
800009333,*NPS (SHOES) LTD,10160,78,29.45,CLOTHING,10/04/12,
800009333,*NPS (SHOES) LTD,10160,79,29.45,CLOTHING,10/04/12,
800009333,*NPS (SHOES) LTD,10160,80,29.45,CLOTHING,10/04/12,
800009333,*NPS (SHOES) LTD,10160,81,29.45,CLOTHING,10/04/12,
800009333,*NPS (SHOES) LTD,10160,82,29.45,CLOTHING,10/04/12,
800009333,*NPS (SHOES) LTD,10160,83,29.45,CLOTHING,10/04/12,
800009333,*NPS (SHOES) LTD,10160,84,29.45,CLOTHING,10/04/12,
800009333,*NPS (SHOES) LTD,10160,85,29.45,CLOTHING,10/04/12,
800009333,*NPS (SHOES) LTD,10160,86,29.45,CLOTHING,10/04/12,
800009333,*NPS (SHOES) LTD,10160,87,29.45,CLOTHING,10/04/12,
800009333,*NPS (SHOES) LTD,10160,88,29.45,CLOTHING,10/04/12,
800009333,*NPS (SHOES) LTD,10160,89,29.45,CLOTHING,10/04/12,
800009333,*NPS (SHOES) LTD,10160,90,29.45,CLOTHING,10/04/12,
800009333,*NPS (SHOES) LTD,10160,91,29.45,CLOTHING,10/04/12,
800009333,*NPS (SHOES) LTD,10160,92,29.45,CLOTHING,10/04/12,
800009333,*NPS (SHOES) LTD,10160,93,29.45,CLOTHING,10/04/12,
800009333,*NPS (SHOES) LTD,10160,94,29.45,CLOTHING,10/04/12,
800009333,*NPS (SHOES) LTD,10160,95,29.45,CLOTHING,10/04/12,
800009333,*NPS (SHOES) LTD,10160,96,29.45,CLOTHING,10/04/12,
800009333,*NPS (SHOES) LTD,10160,97,29.45,CLOTHING,10/04/12,
800009333,*NPS (SHOES) LTD,10160,98,29.45,CLOTHING,10/04/12,
800009333,*NPS (SHOES) LTD,10160,99,29.45,CLOTHING,10/04/12,
800009333,*NPS (SHOES) LTD,10160,100,29.45,CLOTHING,10/04/12,
030412F,ALLSTAR BUSINESS SOLUTIONS LTD,1018176180,1,199.85,FUEL,10/04/12,"25,451.79"
030412F,ALLSTAR BUSINESS SOLUTIONS LTD,1018176180,2,105.02,FUEL,10/04/12,
030412F,ALLSTAR BUSINESS SOLUTIONS LTD,1018176180,3,168.24,FUEL,10/04/12,
030412F,ALLSTAR BUSINESS SOLUTIONS LTD,1018176180,4,127.30,FUEL,10/04/12,
030412F,ALLSTAR BUSINESS SOLUTIONS LTD,1018176180,5,334.89,FUEL,10/04/12,
030412F,ALLSTAR BUSINESS SOLUTIONS LTD,1018176180,6,168.21,FUEL,10/04/12,
030412F,ALLSTAR BUSINESS SOLUTIONS LTD,1018176180,7,81.79,FUEL,10/04/12,
030412F,ALLSTAR BUSINESS SOLUTIONS LTD,1018176180,8,280.59,FUEL,10/04/12,
030412F,ALLSTAR BUSINESS SOLUTIONS LTD,1018176180,9,114.32,FUEL,10/04/12,
030412F,ALLSTAR BUSINESS SOLUTIONS LTD,1018176180,10,157.95,FUEL,10/04/12,
030412F,ALLSTAR BUSINESS SOLUTIONS LTD,1018176180,11,239.73,FUEL,10/04/12,
030412F,ALLSTAR BUSINESS SOLUTIONS LTD,1018176180,12,416.23,FUEL,10/04/12,
030412F,ALLSTAR BUSINESS SOLUTIONS LTD,1018176180,13,281.38,FUEL,10/04/12,
030412F,ALLSTAR BUSINESS SOLUTIONS LTD,1018176180,14,315.12,FUEL,10/04/12,
030412F,ALLSTAR BUSINESS SOLUTIONS LTD,1018176180,15,249.60,FUEL,10/04/12,
030412F,ALLSTAR BUSINESS SOLUTIONS LTD,1018176180,16,177.05,FUEL,10/04/12,
030412F,ALLSTAR BUSINESS SOLUTIONS LTD,1018176180,17,317.39,FUEL,10/04/12,
030412F,ALLSTAR BUSINESS SOLUTIONS LTD,1018176180,18,155.98,FUEL,10/04/12,
030412F,ALLSTAR BUSINESS SOLUTIONS LTD,1018176180,19,87.89,FUEL,10/04/12,
030412F,ALLSTAR BUSINESS SOLUTIONS LTD,1018176180,20,136.10,FUEL,10/04/12,
030412F,ALLSTAR BUSINESS SOLUTIONS LTD,1018176180,21,128.12,FUEL,10/04/12,
030412F,ALLSTAR BUSINESS SOLUTIONS LTD,1018176180,22,209.11,FUEL,10/04/12,
030412F,ALLSTAR BUSINESS SOLUTIONS LTD,1018176180,23,200.40,FUEL,10/04/12,
030412F,ALLSTAR BUSINESS SOLUTIONS LTD,1018176180,24,258.37,FUEL,10/04/12,
030412F,ALLSTAR BUSINESS SOLUTIONS LTD,1018176180,25,281.15,FUEL,10/04/12,
030412F,ALLSTAR BUSINESS SOLUTIONS LTD,1018176180,26,215.83,FUEL,10/04/12,
030412F,ALLSTAR BUSINESS SOLUTIONS LTD,1018176180,27,129.55,FUEL,10/04/12,
030412F,ALLSTAR BUSINESS SOLUTIONS LTD,1018176180,28,320.80,FUEL,10/04/12,
030412F,ALLSTAR BUSINESS SOLUTIONS LTD,1018176180,29,232.79,FUEL,10/04/12,
030412F,ALLSTAR BUSINESS SOLUTIONS LTD,1018176180,30,182.28,FUEL,10/04/12,
030412F,ALLSTAR BUSINESS SOLUTIONS LTD,1018176180,31,317.52,FUEL,10/04/12,
030412F,ALLSTAR BUSINESS SOLUTIONS LTD,1018176180,32,301.02,FUEL,10/04/12,
030412F,ALLSTAR BUSINESS SOLUTIONS LTD,1018176180,33,406.07,FUEL,10/04/12,
030412F,ALLSTAR BUSINESS SOLUTIONS LTD,1018176180,34,201.42,FUEL,10/04/12,
030412F,ALLSTAR BUSINESS SOLUTIONS LTD,1018176180,35,446.37,FUEL,10/04/12,
030412F,ALLSTAR BUSINESS SOLUTIONS LTD,1018176180,36,71.02,FUEL,10/04/12,
030412F,ALLSTAR BUSINESS SOLUTIONS LTD,1018176180,37,344.77,FUEL,10/04/12,
030412F,ALLSTAR BUSINESS SOLUTIONS LTD,1018176180,38,125.19,FUEL,10/04/12,
030412F,ALLSTAR BUSINESS SOLUTIONS LTD,1018176180,39,158.36,FUEL,10/04/12,
030412F,ALLSTAR BUSINESS SOLUTIONS LTD,1018176180,40,615.87,FUEL,10/04/12,
030412F,ALLSTAR BUSINESS SOLUTIONS LTD,1018176180,41,152.28,FUEL,10/04/12,
030412F,ALLSTAR BUSINESS SOLUTIONS LTD,1018176180,42,137.21,FUEL,10/04/12,
030412F,ALLSTAR BUSINESS SOLUTIONS LTD,1018176180,43,193.53,FUEL,10/04/12,
030412F,ALLSTAR BUSINESS SOLUTIONS LTD,1018176180,44,266.85,FUEL,10/04/12,
030412F,ALLSTAR BUSINESS SOLUTIONS LTD,1018176180,45,92.07,FUEL,10/04/12,
030412F,ALLSTAR BUSINESS SOLUTIONS LTD,1018176180,46,407.19,FUEL,10/04/12,
030412F,ALLSTAR BUSINESS SOLUTIONS LTD,1018176180,47,364.21,FUEL,10/04/12,
030412F,ALLSTAR BUSINESS SOLUTIONS LTD,1018176180,48,163.00,FUEL,10/04/12,
030412F,ALLSTAR BUSINESS SOLUTIONS LTD,1018176180,49,148.48,FUEL,10/04/12,
030412F,ALLSTAR BUSINESS SOLUTIONS LTD,1018176180,50,64.44,FUEL,10/04/12,
030412F,ALLSTAR BUSINESS SOLUTIONS LTD,1018176180,51,96.43,FUEL,10/04/12,
030412F,ALLSTAR BUSINESS SOLUTIONS LTD,1018176180,52,283.66,FUEL,10/04/12,
030412F,ALLSTAR BUSINESS SOLUTIONS LTD,1018176180,53,793.86,FUEL,10/04/12,
030412F,ALLSTAR BUSINESS SOLUTIONS LTD,1018176180,54,419.29,FUEL,10/04/12,
030412F,ALLSTAR BUSINESS SOLUTIONS LTD,1018176180,55,216.45,FUEL,10/04/12,
030412F,ALLSTAR BUSINESS SOLUTIONS LTD,1018176180,56,291.29,FUEL,10/04/12,
030412F,ALLSTAR BUSINESS SOLUTIONS LTD,1018176180,57,227.39,FUEL,10/04/12,
030412F,ALLSTAR BUSINESS SOLUTIONS LTD,1018176180,58,862.34,FUEL,10/04/12,
030412F,ALLSTAR BUSINESS SOLUTIONS LTD,1018176180,59,149.34,FUEL,10/04/12,
030412F,ALLSTAR BUSINESS SOLUTIONS LTD,1018176180,60,323.92,FUEL,10/04/12,
030412F,ALLSTAR BUSINESS SOLUTIONS LTD,1018176180,61,133.13,FUEL,10/04/12,
030412F,ALLSTAR BUSINESS SOLUTIONS LTD,1018176180,62,155.20,FUEL,10/04/12,
030412F,ALLSTAR BUSINESS SOLUTIONS LTD,1018176180,63,295.28,FUEL,10/04/12,
030412F,ALLSTAR BUSINESS SOLUTIONS LTD,1018176180,64,252.82,FUEL,10/04/12,
030412F,ALLSTAR BUSINESS SOLUTIONS LTD,1018176180,65,153.77,FUEL,10/04/12,
030412F,ALLSTAR BUSINESS SOLUTIONS LTD,1018176180,66,83.69,FUEL,10/04/12,
030412F,ALLSTAR BUSINESS SOLUTIONS LTD,1018176180,67,95.75,FUEL,10/04/12,
030412F,ALLSTAR BUSINESS SOLUTIONS LTD,1018176180,68,834.58,FUEL,10/04/12,
030412F,ALLSTAR BUSINESS SOLUTIONS LTD,1018176180,69,155.79,FUEL,10/04/12,
030412F,ALLSTAR BUSINESS SOLUTIONS LTD,1018176180,70,161.71,FUEL,10/04/12,
030412F,ALLSTAR BUSINESS SOLUTIONS LTD,1018176180,71,111.49,FUEL,10/04/12,
030412F,ALLSTAR BUSINESS SOLUTIONS LTD,1018176180,72,118.20,FUEL,10/04/12,
030412F,ALLSTAR BUSINESS SOLUTIONS LTD,1018176180,73,122.40,FUEL,10/04/12,
030412F,ALLSTAR BUSINESS SOLUTIONS LTD,1018176180,74,273.95,FUEL,10/04/12,
030412F,ALLSTAR BUSINESS SOLUTIONS LTD,1018176180,75,"1,126.70",FUEL,10/04/12,
030412F,ALLSTAR BUSINESS SOLUTIONS LTD,1018176180,76,74.87,FUEL,10/04/12,
030412F,ALLSTAR BUSINESS SOLUTIONS LTD,1018176180,77,146.88,FUEL,10/04/12,
030412F,ALLSTAR BUSINESS SOLUTIONS LTD,1018176180,78,170.97,FUEL,10/04/12,
030412F,ALLSTAR BUSINESS SOLUTIONS LTD,1018176180,79,85.93,FUEL,10/04/12,
030412F,ALLSTAR BUSINESS SOLUTIONS LTD,1018176180,80,87.05,FUEL,10/04/12,
030412F,ALLSTAR BUSINESS SOLUTIONS LTD,1018176180,81,204.29,FUEL,10/04/12,
030412F,ALLSTAR BUSINESS SOLUTIONS LTD,1018176180,82,91.13,FUEL,10/04/12,
030412F,ALLSTAR BUSINESS SOLUTIONS LTD,1018176180,83,242.48,FUEL,10/04/12,
030412F,ALLSTAR BUSINESS SOLUTIONS LTD,1018176180,84,248.52,FUEL,10/04/12,
030412F,ALLSTAR BUSINESS SOLUTIONS LTD,1018176180,85,73.40,FUEL,10/04/12,
030412F,ALLSTAR BUSINESS SOLUTIONS LTD,1018176180,86,364.50,FUEL,10/04/12,
030412F,ALLSTAR BUSINESS SOLUTIONS LTD,1018176180,87,283.33,FUEL,10/04/12,
030412F,ALLSTAR BUSINESS SOLUTIONS LTD,1018176180,88,932.04,FUEL,10/04/12,
030412F,ALLSTAR BUSINESS SOLUTIONS LTD,1018176180,89,472.65,FUEL,10/04/12,
030412F,ALLSTAR BUSINESS SOLUTIONS LTD,1018176180,90,163.24,FUEL,10/04/12,
030412F,ALLSTAR BUSINESS SOLUTIONS LTD,1018176180,91,117.33,FUEL,10/04/12,
030412F,ALLSTAR BUSINESS SOLUTIONS LTD,1018176180,92,105.10,FUEL,10/04/12,
030412F,ALLSTAR BUSINESS SOLUTIONS LTD,1018176180,93,157.84,FUEL,10/04/12,
030412F,ALLSTAR BUSINESS SOLUTIONS LTD,1018176180,94,84.12,FUEL,10/04/12,
030412F,ALLSTAR BUSINESS SOLUTIONS LTD,1018176180,95,83.33,FUEL,10/04/12,
030412F,ALLSTAR BUSINESS SOLUTIONS LTD,1018176180,96,115.34,FUEL,10/04/12,
030412F,ALLSTAR BUSINESS SOLUTIONS LTD,1018176180,97,246.07,FUEL,10/04/12,
030412F,ALLSTAR BUSINESS SOLUTIONS LTD,1018176180,98,211.75,FUEL,10/04/12,
030412F,ALLSTAR BUSINESS SOLUTIONS LTD,1018176180,99,139.97,FUEL,10/04/12,
030412F,ALLSTAR BUSINESS SOLUTIONS LTD,1018176180,100,76.03,FUEL,10/04/12,
030412F,ALLSTAR BUSINESS SOLUTIONS LTD,1018176180,101,29.19,FUEL,10/04/12,
030412F,ALLSTAR BUSINESS SOLUTIONS LTD,1018176180,102,134.14,FUEL,10/04/12,
030412F,ALLSTAR BUSINESS SOLUTIONS LTD,1018176180,103,78.35,FUEL,10/04/12,
030412F,ALLSTAR BUSINESS SOLUTIONS LTD,1018176180,104,22.79,FUEL,10/04/12,
030412F,ALLSTAR BUSINESS SOLUTIONS LTD,1018176180,105,81.69,FUEL,10/04/12,
030412F,ALLSTAR BUSINESS SOLUTIONS LTD,1018176180,106,16.67,FUEL,10/04/12,
030412F,ALLSTAR BUSINESS SOLUTIONS LTD,1018176180,107,82.12,FUEL,10/04/12,
030412F,ALLSTAR BUSINESS SOLUTIONS LTD,1018176180,108,572.62,FUEL,10/04/12,
030412F,ALLSTAR BUSINESS SOLUTIONS LTD,1018176180,109,43.68,FUEL,10/04/12,
030412F,ALLSTAR BUSINESS SOLUTIONS LTD,1018176180,110,90.23,FUEL,10/04/12,
030412F,ALLSTAR BUSINESS SOLUTIONS LTD,1018176180,111,142.53,FUEL,10/04/12,
030412F,ALLSTAR BUSINESS SOLUTIONS LTD,1018176180,112,40.98,FUEL,10/04/12,
030412F,ALLSTAR BUSINESS SOLUTIONS LTD,1018176180,113,64.77,FUEL,10/04/12,
030412F,ALLSTAR BUSINESS SOLUTIONS LTD,1018176180,114,40.97,FUEL,10/04/12,
030412F,ALLSTAR BUSINESS SOLUTIONS LTD,1018176180,115,44.57,FUEL,10/04/12,
030412C,ORBISON PRODUCTS LTD==========,104409,1,"1,955.00",RADIO,10/04/12,"3,910.00"
030412C,ORBISON PRODUCTS LTD==========,104409,2,782.00,RADIO,10/04/12,
030412C,ORBISON PRODUCTS LTD==========,104409,3,"1,173.00",OPERATIONAL EQUIP-PURCHASE,10/04/12,
139625,MISS NATASHA JOFFE============,107671*,1,"1,100.00",COUNSELS FEES,10/04/12,"1,100.00"
230312C,ACL ELECTRICAL LIMITED,10798,1,846.00,STRATEGIC (NON CYCLICAL),10/04/12,846.00
030412C,CENTRE4LEARNING LIMITED=======,1101263,1,"1,125.00",TRAINING & CONFERENCES,10/04/12,"1,125.00"
030412C,CENTRE4LEARNING LIMITED=======,1101264,1,"1,125.00",TRAINING & CONFERENCES,10/04/12,"1,125.00"
230312C,KIER BUILDING SERV ENGINEERS==,11090199,1,"45,889.69",TACTICAL DAY TO DAY,10/04/12,"159,069.66"
230312C,KIER BUILDING SERV ENGINEERS==,11090199,2,385.64,STRATEGIC (CYCLICAL),10/04/12,
230312C,KIER BUILDING SERV ENGINEERS==,11090199,3,533.17,STRATEGIC (CYCLICAL),10/04/12,
230312C,KIER BUILDING SERV ENGINEERS==,11090199,4,275.44,STRATEGIC (CYCLICAL),10/04/12,
230312C,KIER BUILDING SERV ENGINEERS==,11090199,5,103.63,STRATEGIC (CYCLICAL),10/04/12,
230312C,KIER BUILDING SERV ENGINEERS==,11090199,6,"75,820.50",TACTICAL DAY TO DAY,10/04/12,
230312C,KIER BUILDING SERV ENGINEERS==,11090199,7,"36,061.59",STRATEGIC (CYCLICAL),10/04/12,
280312C,INFOR GLOBAL SOLUTIONS LTD====,11201739,1,"1,130.03",PROFESSIONAL SERVICES,10/04/12,"1,130.03"
040412A,DALE CARNEGIE=================,12429,1,"1,650.00",TRAINING & CONFERENCES,10/04/12,"1,650.00"
030412C,HOTSEAT=======================,1264,1,"2,250.00",PUBLIC RELATIONS,10/04/12,"2,250.00"
040412A,IAAI-UK=======================,12_020,1,"3,000.00",SUBSCRIPTIONS,10/04/12,"3,000.00"
280312C,PSYCHOLOGICAL CONSULTANCY LTD,15120,1,935.00,TRAINING & CONFERENCES,10/04/12,935.00
030412C,THORNS GROUP,171384/2.1,1,954.04,PRESS OFFICE,10/04/12,954.04
030412C,STORM TECHNOLOGIES============,177496,1,"1,394.20",ACQUISITIONS,10/04/12,"1,394.20"
290312C,AUTOGLASS LIMITED=============,18757862,1,628.50,WINDSCREEN & TYRE CHARGES,10/04/12,628.50
040412A,PROPERTY DATA SOLUTIONS LTD===,192,1,"20,560.79",PROFESSIONAL SERVICES,10/04/12,"20,560.79"
040412A,FHT ENTERPRISE LTD,19FEBRUARY2012,1,"1,625.00",PROFESSIONAL SERVICES,10/04/12,"1,625.00"
040412A,FHT ENTERPRISE LTD,19FEBRUARY2012*,1,692.45,PROFESSIONAL SERVICES,10/04/12,692.45
030412C,L B OF REDBRIDGE==============,204112549424,1,"1,200.00",COMMUNITY RELATIONS,10/04/12,"1,200.00"
030412C,VIGLEN LIMITED,2299907,1,"2,175.00",PROFESSIONAL FEES - MISC,10/04/12,"2,175.00"
800009341,ADECCO UK LIMITED=============,25932103,1,"1,738.40",FRS STAFF AGENCY,10/04/12,"1,738.40"
800009342,ADECCO UK LIMITED=============,25932104,1,626.50,FRS STAFF AGENCY,10/04/12,626.50
800009343,ADECCO UK LIMITED=============,25932105,1,776.30,FRS STAFF AGENCY,10/04/12,776.30
800009344,ADECCO UK LIMITED=============,25932106,1,"1,005.64",FRS STAFF AGENCY,10/04/12,"1,005.64"
800009345,ADECCO UK LIMITED=============,25932107,1,554.76,FRS STAFF AGENCY,10/04/12,554.76
800009346,ADECCO UK LIMITED=============,25932108,1,579.60,FRS STAFF AGENCY,10/04/12,579.60
800009347,ADECCO UK LIMITED=============,25932109,1,843.54,FRS STAFF AGENCY,10/04/12,843.54
800009348,ADECCO UK LIMITED=============,25932110,1,"1,191.06",FRS STAFF AGENCY,10/04/12,"1,191.06"
800009349,ADECCO UK LIMITED=============,25932111,1,"1,096.62",FRS STAFF AGENCY,10/04/12,"1,096.62"
800009350,ADECCO UK LIMITED=============,25932112,1,693.70,FRS STAFF AGENCY,10/04/12,693.70
800009351,ADECCO UK LIMITED=============,25932113,1,579.60,FRS STAFF AGENCY,10/04/12,579.60
800009354,ADECCO UK LIMITED=============,25932116,1,887.20,FRS STAFF AGENCY,10/04/12,887.20
800009356,ADECCO UK LIMITED=============,25932118,1,709.76,FRS STAFF AGENCY,10/04/12,709.76
800009357,ADECCO UK LIMITED=============,25932119,1,694.68,FRS STAFF AGENCY,10/04/12,694.68
800009358,ADECCO UK LIMITED=============,25932120,1,"1,426.25",FRS STAFF AGENCY,10/04/12,"1,426.25"
800009361,ADECCO UK LIMITED=============,25932124,1,929.25,FRS STAFF AGENCY,10/04/12,929.25
800009365,ADECCO UK LIMITED=============,25932128,1,728.91,FRS STAFF AGENCY,10/04/12,728.91
800009368,ADECCO UK LIMITED=============,25932131,1,579.60,FRS STAFF AGENCY,10/04/12,579.60
800009369,ADECCO UK LIMITED=============,25932132,1,579.60,FRS STAFF AGENCY,10/04/12,579.60
800009371,ADECCO UK LIMITED=============,25932134,1,501.90,FRS STAFF AGENCY,10/04/12,501.90
800009372,ADECCO UK LIMITED=============,25932135,1,579.60,FRS STAFF AGENCY,10/04/12,579.60
800009412,ADECCO UK LIMITED=============,25932136,1,555.68,FRS STAFF AGENCY,10/04/12,555.68
800009377,ADECCO UK LIMITED=============,25932140,1,579.60,FRS STAFF AGENCY,10/04/12,579.60
800009378,ADECCO UK LIMITED=============,25932141,1,501.90,FRS STAFF AGENCY,10/04/12,501.90
800009383,ADECCO UK LIMITED=============,25932146,1,579.60,FRS STAFF AGENCY,10/04/12,579.60
800009390,ADECCO UK LIMITED=============,25932153,1,"1,588.50",FRS STAFF AGENCY,10/04/12,"1,588.50"
800009392,ADECCO UK LIMITED=============,25932155,1,776.30,FRS STAFF AGENCY,10/04/12,776.30
800009395,ADECCO UK LIMITED=============,25932158,1,621.04,FRS STAFF AGENCY,10/04/12,621.04
800009396,ADECCO UK LIMITED=============,25935406,1,740.00,FRS STAFF AGENCY,10/04/12,740.00
800009400,ADECCO UK LIMITED=============,25937484,1,"1,527.56",FRS STAFF AGENCY,10/04/12,"1,527.56"
800009401,ADECCO UK LIMITED=============,25937485,1,"1,527.56",FRS STAFF AGENCY,10/04/12,"1,527.56"
800009402,ADECCO UK LIMITED=============,25937486,1,"1,079.40",FRS STAFF AGENCY,10/04/12,"1,079.40"
800009403,ADECCO UK LIMITED=============,25937487,1,"1,561.28",FRS STAFF AGENCY,10/04/12,"1,561.28"
800009404,ADECCO UK LIMITED=============,25937488,1,"1,310.70",FRS STAFF AGENCY,10/04/12,"1,310.70"
800009405,ADECCO UK LIMITED=============,25937489,1,896.51,FRS STAFF AGENCY,10/04/12,896.51
800009406,ADECCO UK LIMITED=============,25937490,1,896.51,FRS STAFF AGENCY,10/04/12,896.51
800009407,ADECCO UK LIMITED=============,25937491,1,"1,962.75",FRS STAFF AGENCY,10/04/12,"1,962.75"
800009408,ADECCO UK LIMITED=============,25937492,1,"1,766.48",FRS STAFF AGENCY,10/04/12,"1,766.48"
800009409,ADECCO UK LIMITED=============,25937493,1,650.72,FRS STAFF AGENCY,10/04/12,650.72
800009519,ADECCO UK LIMITED=============,25941537,1,"1,738.40",FRS STAFF AGENCY,10/04/12,"1,738.40"
800009460,ADECCO UK LIMITED=============,25941538,1,644.40,FRS STAFF AGENCY,10/04/12,644.40
800009461,ADECCO UK LIMITED=============,25941539,1,776.30,FRS STAFF AGENCY,10/04/12,776.30
800009462,ADECCO UK LIMITED=============,25941540,1,"1,005.64",FRS STAFF AGENCY,10/04/12,"1,005.64"
800009464,ADECCO UK LIMITED=============,25941542,1,538.20,FRS STAFF AGENCY,10/04/12,538.20
800009465,ADECCO UK LIMITED=============,25941543,1,579.60,FRS STAFF AGENCY,10/04/12,579.60
800009466,ADECCO UK LIMITED=============,25941544,1,868.35,FRS STAFF AGENCY,10/04/12,868.35
800009467,ADECCO UK LIMITED=============,25941545,1,"1,140.16",FRS STAFF AGENCY,10/04/12,"1,140.16"
800009468,ADECCO UK LIMITED=============,25941546,1,"1,155.37",FRS STAFF AGENCY,10/04/12,"1,155.37"
800009469,ADECCO UK LIMITED=============,25941547,1,693.70,FRS STAFF AGENCY,10/04/12,693.70
800009470,ADECCO UK LIMITED=============,25941548,1,529.92,FRS STAFF AGENCY,10/04/12,529.92
800009471,ADECCO UK LIMITED=============,25941549,1,579.60,FRS STAFF AGENCY,10/04/12,579.60
800009474,ADECCO UK LIMITED=============,25941552,1,798.48,FRS STAFF AGENCY,10/04/12,798.48
800009476,ADECCO UK LIMITED=============,25941554,1,709.76,FRS STAFF AGENCY,10/04/12,709.76
800009477,ADECCO UK LIMITED=============,25941555,1,868.35,FRS STAFF AGENCY,10/04/12,868.35
800009478,ADECCO UK LIMITED=============,25941556,1,"1,426.25",FRS STAFF AGENCY,10/04/12,"1,426.25"
800009481,ADECCO UK LIMITED=============,25941560,1,"1,460.25",FRS STAFF AGENCY,10/04/12,"1,460.25"
800009482,ADECCO UK LIMITED=============,25941561,1,579.25,FRS STAFF AGENCY,10/04/12,579.25
800009483,ADECCO UK LIMITED=============,25941562,1,501.90,FRS STAFF AGENCY,10/04/12,501.90
800009487,ADECCO UK LIMITED=============,25941566,1,501.90,FRS STAFF AGENCY,10/04/12,501.90
800009488,ADECCO UK LIMITED=============,25941567,1,579.60,FRS STAFF AGENCY,10/04/12,579.60
800009489,ADECCO UK LIMITED=============,25941568,1,530.58,FRS STAFF AGENCY,10/04/12,530.58
800009490,ADECCO UK LIMITED=============,25941569,1,579.60,FRS STAFF AGENCY,10/04/12,579.60
800009491,ADECCO UK LIMITED=============,25941570,1,579.60,FRS STAFF AGENCY,10/04/12,579.60
800009493,ADECCO UK LIMITED=============,25941572,1,579.60,FRS STAFF AGENCY,10/04/12,579.60
800009494,ADECCO UK LIMITED=============,25941573,1,579.60,FRS STAFF AGENCY,10/04/12,579.60
800009496,ADECCO UK LIMITED=============,25941575,1,501.90,FRS STAFF AGENCY,10/04/12,501.90
800009498,ADECCO UK LIMITED=============,25941577,1,501.90,FRS STAFF AGENCY,10/04/12,501.90
800009499,ADECCO UK LIMITED=============,25941578,1,"1,588.50",FRS STAFF AGENCY,10/04/12,"1,588.50"
800009501,ADECCO UK LIMITED=============,25941580,1,579.60,FRS STAFF AGENCY,10/04/12,579.60
800009502,ADECCO UK LIMITED=============,25941581,1,621.04,FRS STAFF AGENCY,10/04/12,621.04
800009503,ADECCO UK LIMITED=============,25941582,1,755.30,FRS STAFF AGENCY,10/04/12,755.30
800009506,ADECCO UK LIMITED=============,25941585,1,559.16,FRS STAFF AGENCY,10/04/12,559.16
800009507,ADECCO UK LIMITED=============,25941586,1,776.30,FRS STAFF AGENCY,10/04/12,776.30
800009510,ADECCO UK LIMITED=============,25945462,1,521.64,FRS STAFF AGENCY,10/04/12,521.64
800009512,ADECCO UK LIMITED=============,25946290,1,"1,962.75",FRS STAFF AGENCY,10/04/12,"1,962.75"
800009513,ADECCO UK LIMITED=============,25946291,1,650.72,FRS STAFF AGENCY,10/04/12,650.72
800009516,ADECCO UK LIMITED=============,25946298,1,850.00,FRS STAFF AGENCY,10/04/12,850.00
800009517,ADECCO UK LIMITED=============,25946299,1,850.00,FRS STAFF AGENCY,10/04/12,850.00
139622,THAMES WATER UTILITIES LTD====,2797086298D,1,"1,331.35",WATER & SEWERAGE RATES,10/04/12,"1,331.35"
139623,L B OF ISLINGTON==============,28181781B,1,900.00,PROPERTY RATES,10/04/12,900.00
139623,L B OF ISLINGTON==============,28182101B,1,900.00,PROPERTY RATES,10/04/12,900.00
139623,L B OF ISLINGTON==============,28182321B,1,900.00,PROPERTY RATES,10/04/12,900.00
030412C,KNIGHTON CLEANING SERVICES LTD,28583,1,"2,121.10",GENERAL CLEANS,10/04/12,"109,545.22"
030412C,KNIGHTON CLEANING SERVICES LTD,28583,2,"3,444.41",GENERAL CLEANS,10/04/12,
030412C,KNIGHTON CLEANING SERVICES LTD,28583,3,"2,094.86",GENERAL CLEANS,10/04/12,
030412C,KNIGHTON CLEANING SERVICES LTD,28583,4,"1,121.89",GENERAL CLEANS,10/04/12,
030412C,KNIGHTON CLEANING SERVICES LTD,28583,5,"1,078.14",GENERAL CLEANS,10/04/12,
030412C,KNIGHTON CLEANING SERVICES LTD,28583,6,"1,329.47",GENERAL CLEANS,10/04/12,
030412C,KNIGHTON CLEANING SERVICES LTD,28583,7,"2,154.99",GENERAL CLEANS,10/04/12,
030412C,KNIGHTON CLEANING SERVICES LTD,28583,8,"1,473.49",GENERAL CLEANS,10/04/12,
030412C,KNIGHTON CLEANING SERVICES LTD,28583,9,930.45,GENERAL CLEANS,10/04/12,
030412C,KNIGHTON CLEANING SERVICES LTD,28583,10,"1,133.64",GENERAL CLEANS,10/04/12,
030412C,KNIGHTON CLEANING SERVICES LTD,28583,11,"2,334.10",GENERAL CLEANS,10/04/12,
030412C,KNIGHTON CLEANING SERVICES LTD,28583,12,"1,141.46",GENERAL CLEANS,10/04/12,
030412C,KNIGHTON CLEANING SERVICES LTD,28583,13,"1,056.51",GENERAL CLEANS,10/04/12,
030412C,KNIGHTON CLEANING SERVICES LTD,28583,14,"1,095.27",GENERAL CLEANS,10/04/12,
030412C,KNIGHTON CLEANING SERVICES LTD,28583,15,"2,108.48",GENERAL CLEANS,10/04/12,
030412C,KNIGHTON CLEANING SERVICES LTD,28583,16,"2,505.93",GENERAL CLEANS,10/04/12,
030412C,KNIGHTON CLEANING SERVICES LTD,28583,17,"1,058.07",GENERAL CLEANS,10/04/12,
030412C,KNIGHTON CLEANING SERVICES LTD,28583,18,"2,569.81",GENERAL CLEANS,10/04/12,
030412C,KNIGHTON CLEANING SERVICES LTD,28583,19,"1,213.14",GENERAL CLEANS,10/04/12,
030412C,KNIGHTON CLEANING SERVICES LTD,28583,20,"1,957.64",GENERAL CLEANS,10/04/12,
030412C,KNIGHTON CLEANING SERVICES LTD,28583,21,"2,144.78",GENERAL CLEANS,10/04/12,
030412C,KNIGHTON CLEANING SERVICES LTD,28583,22,"1,120.43",GENERAL CLEANS,10/04/12,
030412C,KNIGHTON CLEANING SERVICES LTD,28583,23,"2,517.54",GENERAL CLEANS,10/04/12,
030412C,KNIGHTON CLEANING SERVICES LTD,28583,24,"1,931.63",GENERAL CLEANS,10/04/12,
030412C,KNIGHTON CLEANING SERVICES LTD,28583,25,"1,026.29",GENERAL CLEANS,10/04/12,
030412C,KNIGHTON CLEANING SERVICES LTD,28583,26,"1,321.68",GENERAL CLEANS,10/04/12,
030412C,KNIGHTON CLEANING SERVICES LTD,28583,27,"1,198.03",GENERAL CLEANS,10/04/12,
030412C,KNIGHTON CLEANING SERVICES LTD,28583,28,"1,715.25",GENERAL CLEANS,10/04/12,
030412C,KNIGHTON CLEANING SERVICES LTD,28583,29,"1,568.38",GENERAL CLEANS,10/04/12,
030412C,KNIGHTON CLEANING SERVICES LTD,28583,30,"1,081.46",GENERAL CLEANS,10/04/12,
030412C,KNIGHTON CLEANING SERVICES LTD,28583,31,"1,046.28",GENERAL CLEANS,10/04/12,
030412C,KNIGHTON CLEANING SERVICES LTD,28583,32,"1,472.19",GENERAL CLEANS,10/04/12,
030412C,KNIGHTON CLEANING SERVICES LTD,28583,33,"1,071.23",GENERAL CLEANS,10/04/12,
030412C,KNIGHTON CLEANING SERVICES LTD,28583,34,"1,877.51",GENERAL CLEANS,10/04/12,
030412C,KNIGHTON CLEANING SERVICES LTD,28583,35,"1,609.22",GENERAL CLEANS,10/04/12,
030412C,KNIGHTON CLEANING SERVICES LTD,28583,36,"2,121.20",GENERAL CLEANS,10/04/12,
030412C,KNIGHTON CLEANING SERVICES LTD,28583,37,828.50,GENERAL CLEANS,10/04/12,
030412C,KNIGHTON CLEANING SERVICES LTD,28583,38,"1,112.35",GENERAL CLEANS,10/04/12,
030412C,KNIGHTON CLEANING SERVICES LTD,28583,39,"1,117.34",GENERAL CLEANS,10/04/12,
030412C,KNIGHTON CLEANING SERVICES LTD,28583,40,"1,536.25",GENERAL CLEANS,10/04/12,
030412C,KNIGHTON CLEANING SERVICES LTD,28583,41,"1,039.88",GENERAL CLEANS,10/04/12,
030412C,KNIGHTON CLEANING SERVICES LTD,28583,42,843.06,GENERAL CLEANS,10/04/12,
030412C,KNIGHTON CLEANING SERVICES LTD,28583,43,"2,246.00",GENERAL CLEANS,10/04/12,
030412C,KNIGHTON CLEANING SERVICES LTD,28583,44,"1,664.63",GENERAL CLEANS,10/04/12,
030412C,KNIGHTON CLEANING SERVICES LTD,28583,45,"1,029.14",GENERAL CLEANS,10/04/12,
030412C,KNIGHTON CLEANING SERVICES LTD,28583,46,"3,787.29",GENERAL CLEANS,10/04/12,
030412C,KNIGHTON CLEANING SERVICES LTD,28583,47,"1,292.26",GENERAL CLEANS,10/04/12,
030412C,KNIGHTON CLEANING SERVICES LTD,28583,48,"1,669.91",GENERAL CLEANS,10/04/12,
030412C,KNIGHTON CLEANING SERVICES LTD,28583,49,"1,388.44",GENERAL CLEANS,10/04/12,
030412C,KNIGHTON CLEANING SERVICES LTD,28583,50,"1,080.32",GENERAL CLEANS,10/04/12,
030412C,KNIGHTON CLEANING SERVICES LTD,28583,51,216.77,GENERAL CLEANS,10/04/12,
030412C,KNIGHTON CLEANING SERVICES LTD,28583,52,"1,018.83",GENERAL CLEANS,10/04/12,
030412C,KNIGHTON CLEANING SERVICES LTD,28583,53,"1,184.90",GENERAL CLEANS,10/04/12,
030412C,KNIGHTON CLEANING SERVICES LTD,28583,54,"2,504.56",GENERAL CLEANS,10/04/12,
030412C,KNIGHTON CLEANING SERVICES LTD,28583,55,"1,034.52",GENERAL CLEANS,10/04/12,
030412C,KNIGHTON CLEANING SERVICES LTD,28583,56,"2,241.56",GENERAL CLEANS,10/04/12,
030412C,KNIGHTON CLEANING SERVICES LTD,28583,57,767.94,GENERAL CLEANS,10/04/12,
030412C,KNIGHTON CLEANING SERVICES LTD,28583,58,952.99,GENERAL CLEANS,10/04/12,
030412C,KNIGHTON CLEANING SERVICES LTD,28583,59,"1,073.14",GENERAL CLEANS,10/04/12,
030412C,KNIGHTON CLEANING SERVICES LTD,28583,60,822.84,GENERAL CLEANS,10/04/12,
030412C,KNIGHTON CLEANING SERVICES LTD,28583,61,"2,497.85",GENERAL CLEANS,10/04/12,
030412C,KNIGHTON CLEANING SERVICES LTD,28583,62,"1,333.57",GENERAL CLEANS,10/04/12,
030412C,KNIGHTON CLEANING SERVICES LTD,28583,63,"1,339.89",GENERAL CLEANS,10/04/12,
030412C,KNIGHTON CLEANING SERVICES LTD,28583,64,"2,977.00",GENERAL CLEANS,10/04/12,
030412C,KNIGHTON CLEANING SERVICES LTD,28583,65,"1,058.83",GENERAL CLEANS,10/04/12,
030412C,KNIGHTON CLEANING SERVICES LTD,28583,66,869.53,GENERAL CLEANS,10/04/12,
030412C,KNIGHTON CLEANING SERVICES LTD,28583,67,"2,835.28",GENERAL CLEANS,10/04/12,
030412C,KNIGHTON CLEANING SERVICES LTD,28583,68,"1,401.00",GENERAL CLEANS,10/04/12,
030412C,KNIGHTON CLEANING SERVICES LTD,28583,69,"1,042.10",GENERAL CLEANS,10/04/12,
030412C,KNIGHTON CLEANING SERVICES LTD,28583,70,"1,304.20",GENERAL CLEANS,10/04/12,
030412C,KNIGHTON CLEANING SERVICES LTD,28583,71,142.05,GENERAL CLEANS,10/04/12,
030412C,KNIGHTON CLEANING SERVICES LTD,28583,72,"1,544.55",GENERAL CLEANS,10/04/12,
030412C,KNIGHTON CLEANING SERVICES LTD,28584,1,"1,008.18",GENERAL CLEANS,10/04/12,"87,939.20"
030412C,KNIGHTON CLEANING SERVICES LTD,28584,2,"1,003.02",GENERAL CLEANS,10/04/12,
030412C,KNIGHTON CLEANING SERVICES LTD,28584,3,"1,795.71",GENERAL CLEANS,10/04/12,
030412C,KNIGHTON CLEANING SERVICES LTD,28584,4,"1,501.02",GENERAL CLEANS,10/04/12,
030412C,KNIGHTON CLEANING SERVICES LTD,28584,5,680.82,GENERAL CLEANS,10/04/12,
030412C,KNIGHTON CLEANING SERVICES LTD,28584,6,"1,460.92",GENERAL CLEANS,10/04/12,
030412C,KNIGHTON CLEANING SERVICES LTD,28584,7,"2,251.45",GENERAL CLEANS,10/04/12,
030412C,KNIGHTON CLEANING SERVICES LTD,28584,8,"2,348.88",GENERAL CLEANS,10/04/12,
030412C,KNIGHTON CLEANING SERVICES LTD,28584,9,"4,274.20",GENERAL CLEANS,10/04/12,
030412C,KNIGHTON CLEANING SERVICES LTD,28584,10,"1,035.83",GENERAL CLEANS,10/04/12,
030412C,KNIGHTON CLEANING SERVICES LTD,28584,11,819.13,GENERAL CLEANS,10/04/12,
030412C,KNIGHTON CLEANING SERVICES LTD,28584,12,"1,227.83",GENERAL CLEANS,10/04/12,
030412C,KNIGHTON CLEANING SERVICES LTD,28584,13,"1,367.85",GENERAL CLEANS,10/04/12,
030412C,KNIGHTON CLEANING SERVICES LTD,28584,14,"1,041.50",GENERAL CLEANS,10/04/12,
030412C,KNIGHTON CLEANING SERVICES LTD,28584,15,"1,080.27",GENERAL CLEANS,10/04/12,
030412C,KNIGHTON CLEANING SERVICES LTD,28584,16,"1,028.13",GENERAL CLEANS,10/04/12,
030412C,KNIGHTON CLEANING SERVICES LTD,28584,17,"1,653.11",GENERAL CLEANS,10/04/12,
030412C,KNIGHTON CLEANING SERVICES LTD,28584,18,"1,096.91",GENERAL CLEANS,10/04/12,
030412C,KNIGHTON CLEANING SERVICES LTD,28584,19,492.52,GENERAL CLEANS,10/04/12,
030412C,KNIGHTON CLEANING SERVICES LTD,28584,20,"17,411.84",GENERAL CLEANS,10/04/12,
030412C,KNIGHTON CLEANING SERVICES LTD,28584,21,"1,126.86",GENERAL CLEANS,10/04/12,
030412C,KNIGHTON CLEANING SERVICES LTD,28584,22,464.71,GENERAL CLEANS,10/04/12,
030412C,KNIGHTON CLEANING SERVICES LTD,28584,23,"1,693.34",GENERAL CLEANS,10/04/12,
030412C,KNIGHTON CLEANING SERVICES LTD,28584,24,"3,552.65",GENERAL CLEANS,10/04/12,
030412C,KNIGHTON CLEANING SERVICES LTD,28584,25,574.20,GENERAL CLEANS,10/04/12,
030412C,KNIGHTON CLEANING SERVICES LTD,28584,26,"1,781.77",GENERAL CLEANS,10/04/12,
030412C,KNIGHTON CLEANING SERVICES LTD,28584,27,840.63,GENERAL CLEANS,10/04/12,
030412C,KNIGHTON CLEANING SERVICES LTD,28584,28,"1,296.42",GENERAL CLEANS,10/04/12,
030412C,KNIGHTON CLEANING SERVICES LTD,28584,29,"1,319.66",GENERAL CLEANS,10/04/12,
030412C,KNIGHTON CLEANING SERVICES LTD,28584,30,756.40,GENERAL CLEANS,10/04/12,
030412C,KNIGHTON CLEANING SERVICES LTD,28584,31,"2,211.74",GENERAL CLEANS,10/04/12,
030412C,KNIGHTON CLEANING SERVICES LTD,28584,32,"1,291.01",GENERAL CLEANS,10/04/12,
030412C,KNIGHTON CLEANING SERVICES LTD,28584,33,"1,020.62",GENERAL CLEANS,10/04/12,
030412C,KNIGHTON CLEANING SERVICES LTD,28584,34,"1,137.23",GENERAL CLEANS,10/04/12,
030412C,KNIGHTON CLEANING SERVICES LTD,28584,35,"1,221.95",GENERAL CLEANS,10/04/12,
030412C,KNIGHTON CLEANING SERVICES LTD,28584,36,"9,014.11",GENERAL CLEANS,10/04/12,
030412C,KNIGHTON CLEANING SERVICES LTD,28584,37,846.80,GENERAL CLEANS,10/04/12,
030412C,KNIGHTON CLEANING SERVICES LTD,28584,38,"1,143.88",GENERAL CLEANS,10/04/12,
030412C,KNIGHTON CLEANING SERVICES LTD,28584,39,"2,218.85",GENERAL CLEANS,10/04/12,
030412C,KNIGHTON CLEANING SERVICES LTD,28584,40,"1,151.25",GENERAL CLEANS,10/04/12,
030412C,KNIGHTON CLEANING SERVICES LTD,28584,41,"1,033.74",GENERAL CLEANS,10/04/12,
030412C,KNIGHTON CLEANING SERVICES LTD,28584,42,"2,251.96",GENERAL CLEANS,10/04/12,
030412C,KNIGHTON CLEANING SERVICES LTD,28584,43,"1,270.15",GENERAL CLEANS,10/04/12,
030412C,KNIGHTON CLEANING SERVICES LTD,28584,44,"1,385.37",GENERAL CLEANS,10/04/12,
030412C,KNIGHTON CLEANING SERVICES LTD,28584,45,"1,254.82",GENERAL CLEANS,10/04/12,
030412C,KNIGHTON CLEANING SERVICES LTD,28584,46,"1,042.33",GENERAL CLEANS,10/04/12,
030412C,KNIGHTON CLEANING SERVICES LTD,28584,47,457.63,GENERAL CLEANS,10/04/12,
280312A,HUNTERS CONTRACTS LIMITED,337723,1,643.54,PURCHASE - FURNITURE,10/04/12,643.54
030412F,HAMPSHIRE FIRE AND RESCUE SERV,3630004105,1,"18,787.40",TRAINING & CONFERENCES,10/04/12,"18,787.40"
270312C,THOMAS SINDEN LIMITED=========,3915,1,"8,975.00",STRATEGIC (NON CYCLICAL),10/04/12,"8,975.00"
290312C,BADENOCH & CLARK==============,4218278,1,"1,781.25",FRS STAFF AGENCY,10/04/12,"1,781.25"
030412C,THORNE & DERRICK==============,46463,1,860.55,OPERATIONAL EQUIP-PURCHASE,10/04/12,860.55
030412C,JFM MOVING SERVICES LTD=======,58587,1,"2,122.50",REMOVALS,10/04/12,"2,122.50"
139623,ESSEX & SUFFOLK WATER PLC=====,602686100012C,1,634.47,WATER & SEWERAGE RATES,10/04/12,634.47
139623,LB TOWER HAMLETS==============,65134560B,1,813.83,PROPERTY RATES,10/04/12,813.83
139623,LB TOWER HAMLETS==============,65134573C,1,"2,790.00",PROPERTY RATES,10/04/12,"2,790.00"
040412A,BRAIDWAY LTD==================,6689,1,139.30,CLOTHING,10/04/12,557.20
040412A,BRAIDWAY LTD==================,6689,2,139.30,CLOTHING,10/04/12,
040412A,BRAIDWAY LTD==================,6689,3,139.30,CLOTHING,10/04/12,
040412A,BRAIDWAY LTD==================,6689,4,139.30,CLOTHING,10/04/12,
040412A,BRAIDWAY LTD==================,6692,1,139.30,CLOTHING,10/04/12,975.10
040412A,BRAIDWAY LTD==================,6692,2,139.30,CLOTHING,10/04/12,
040412A,BRAIDWAY LTD==================,6692,3,139.30,CLOTHING,10/04/12,
040412A,BRAIDWAY LTD==================,6692,4,139.30,CLOTHING,10/04/12,
040412A,BRAIDWAY LTD==================,6692,5,139.30,CLOTHING,10/04/12,
040412A,BRAIDWAY LTD==================,6692,6,139.30,CLOTHING,10/04/12,
040412A,BRAIDWAY LTD==================,6692,7,139.30,CLOTHING,10/04/12,
030412F,MAYORS OFF FOR POLICING&CRIME,6800080453,1,"2,924.04",CONTRACT HIRE,10/04/12,"2,924.04"
210312C,EJT ASSOCIATES LIMITED========,682,1,"1,000.00",PROFESSIONAL SERVICES,10/04/12,"1,000.00"
701502,L B OF NEWHAM=================,6M0004240419,1,"4,440.00",HFSC - NEWHAM BOROUGH,10/04/12,"4,440.00"
040412A,SWEETT  UK LTD,7011067,1,611.99,STRATEGIC (NON CYCLICAL),10/04/12,611.99
139623,L B OF BROMLEY================,7117565511G,1,"1,692.76",PROPERTY RATES,10/04/12,"1,692.76"
030412C,*GET YOURSELF NOTICED LTD,8225,1,911.00,PUBLIC RELATIONS,10/04/12,911.00
139622,THAMES WATER UTILITIES LTD====,8641142518U,1,"1,067.40",WATER & SEWERAGE RATES,10/04/12,"1,067.40"
139623,L B OF GREENWICH==============,900179989,1,"14,770.50",PROPERTY RATES,10/04/12,"14,770.50"
040412A,HILTI (G.B.) LIMITED==========,901844988,1,"1,001.00",PROTECTIVE EQUIPMENT R & D,10/04/12,"1,001.00"
280312A,DRAEGER SAFETY UK LIMITED=====,90368284,1,666.00,PROTECTIVE EQUIPT - PARTS,10/04/12,666.00
280312G,DRAEGER SAFETY UK LIMITED=====,90368546,1,666.00,PROTECTIVE EQUIPT - PARTS,10/04/12,666.00
260312A,*OFFICE DEPOT UK LTD,953059017,1,595.00,STATIONERY CONSUMABLES,10/04/12,595.00
030412C,LPFA CONTRIBUTIONS ACCOUNT====,ACT349,1,"2,014.50",PROFESSIONAL SERVICES,10/04/12,"2,014.50"
040412A,ETC VENUES LTD================,AH-44402,1,742.00,TRAINING & CONFERENCES,10/04/12,742.00
040412A,BAILY GARNER LLP==============,EL:35109,1,976.39,PROFESSIONAL FEES - MISC,10/04/12,"1,281.54"
040412A,BAILY GARNER LLP==============,EL:35109,2,305.15,PROFESSIONAL FEES - MISC,10/04/12,
139607,LPFA CONTRIBUTIONS ACCOUNT====,ER612,1,"36,972.83",LOCAL GOVT PENSION SCHEME PAYM,10/04/12,"36,972.83"
210312C,REAM CONTRACTS LTD============,FOUR,1,"77,144.77",DEVELOPMENT EXP - CONTRACTORS,10/04/12,"77,144.77"
260312A,MOTT MACDONALD============,IN0236266,1,"7,818.75",PROFESSIONAL SERVICES,10/04/12,"7,818.75"
270312C,KCOM GROUP====================,INV0203186,1,689.00,PURCHASES - COMPUTER EQUIPMENT,10/04/12,689.00
270312C,KCOM GROUP====================,INV0203187,1,689.00,PURCHASES - COMPUTER EQUIPMENT,10/04/12,689.00
270312C,KCOM GROUP====================,INV0203188,1,689.00,PURCHASES - COMPUTER EQUIPMENT,10/04/12,689.00
270312C,KCOM GROUP====================,INV0203189,1,689.00,PURCHASES - COMPUTER EQUIPMENT,10/04/12,689.00
270312C,KCOM GROUP====================,INV0203190,1,689.00,PURCHASES - COMPUTER EQUIPMENT,10/04/12,689.00
270312C,KCOM GROUP====================,INV0203191,1,689.00,PURCHASES - COMPUTER EQUIPMENT,10/04/12,689.00
040412A,BENNETT MECHANICAL SERVICES LT,L4627,1,"11,236.12",DEVELOPMENT EXP - CONTRACTORS,10/04/12,"11,236.12"
040412A,LAIDLAW & CONSTABLE LTD=======,LC008936,1,295.00,TRAINING & CONFERENCES,10/04/12,"2,950.00"
040412A,LAIDLAW & CONSTABLE LTD=======,LC008936,2,295.00,TRAINING & CONFERENCES,10/04/12,
040412A,LAIDLAW & CONSTABLE LTD=======,LC008936,3,295.00,TRAINING & CONFERENCES,10/04/12,
040412A,LAIDLAW & CONSTABLE LTD=======,LC008936,4,295.00,TRAINING & CONFERENCES,10/04/12,
040412A,LAIDLAW & CONSTABLE LTD=======,LC008936,5,295.00,TRAINING & CONFERENCES,10/04/12,
040412A,LAIDLAW & CONSTABLE LTD=======,LC008936,6,295.00,TRAINING & CONFERENCES,10/04/12,
040412A,LAIDLAW & CONSTABLE LTD=======,LC008936,7,295.00,TRAINING & CONFERENCES,10/04/12,
040412A,LAIDLAW & CONSTABLE LTD=======,LC008936,8,295.00,TRAINING & CONFERENCES,10/04/12,
040412A,LAIDLAW & CONSTABLE LTD=======,LC008936,9,295.00,TRAINING & CONFERENCES,10/04/12,
040412A,LAIDLAW & CONSTABLE LTD=======,LC008936,10,295.00,TRAINING & CONFERENCES,10/04/12,
030412C,RADIOCOMS SYSTEMS LIMITED=====,OP/I006662,1,"2,134.20",RADIO,10/04/12,"2,587.20"
030412C,RADIOCOMS SYSTEMS LIMITED=====,OP/I006662,2,443.00,RADIO,10/04/12,
030412C,RADIOCOMS SYSTEMS LIMITED=====,OP/I006662,3,10.00,RADIO,10/04/12,
030412C,RADIOCOMS SYSTEMS LIMITED=====,OP/I006663,1,"6,402.60",OPERATIONAL EQUIP-PURCHASE,10/04/12,"9,466.18"
030412C,RADIOCOMS SYSTEMS LIMITED=====,OP/I006663,2,"1,329.00",OPERATIONAL EQUIP-PURCHASE,10/04/12,
030412C,RADIOCOMS SYSTEMS LIMITED=====,OP/I006663,3,770.40,OPERATIONAL EQUIP-PURCHASE,10/04/12,
030412C,RADIOCOMS SYSTEMS LIMITED=====,OP/I006663,4,954.18,OPERATIONAL EQUIP-PURCHASE,10/04/12,
030412C,RADIOCOMS SYSTEMS LIMITED=====,OP/I006663,5,10.00,OPERATIONAL EQUIP-PURCHASE,10/04/12,
210312A,HUNTER LODGE==================,S-013837,1,"5,000.00",ADVERTISING,10/04/12,"35,000.00"
210312A,HUNTER LODGE==================,S-013837,2,"5,000.00",ADVERTISING,10/04/12,
210312A,HUNTER LODGE==================,S-013837,3,"5,000.00",ADVERTISING,10/04/12,
210312A,HUNTER LODGE==================,S-013837,4,"10,000.00",ADVERTISING,10/04/12,
210312A,HUNTER LODGE==================,S-013837,5,"10,000.00",ADVERTISING,10/04/12,
040412A,*THOMAS KNEALE & CO LTD,TK1974,1,535.00,CLOTHING,10/04/12,"1,347.50"
040412A,*THOMAS KNEALE & CO LTD,TK1974,2,149.00,CLOTHING,10/04/12,
040412A,*THOMAS KNEALE & CO LTD,TK1974,3,524.50,CLOTHING,10/04/12,
040412A,*THOMAS KNEALE & CO LTD,TK1974,4,139.00,CLOTHING,10/04/12,
100412C,NEWGROUND CIC,0000013411,1,599.00,SUBSCRIPTIONS,13/04/12,599.00
100412G,HEALTH MANAGEMENT LIMITED=====,0000082109,1,600.00,OHS CONTRACT,13/04/12,600.00
139634,OGILVIE FLEET LTD=============,00185653,1,"5,846.49",LEASE CAR CHARGES,13/04/12,"6,079.68"
139634,OGILVIE FLEET LTD=============,00185653,2,233.19,P/PAYMTS-CAR LEASG-RENTAL,13/04/12,
139634,OGILVIE FLEET LTD=============,00185653,3,-547.79,VAT CAR LEASING,13/04/12,
139634,OGILVIE FLEET LTD=============,00185653,4,547.79,LEASE CAR CHARGES,13/04/12,
100412A,ALCHEMY BUSINESS COMMUNICATION,002150*,1,800.00,PROFESSIONAL SERVICES,13/04/12,800.00
100412A,ALCHEMY BUSINESS COMMUNICATION,002151,1,800.00,PROFESSIONAL SERVICES,13/04/12,800.00
100412A,FAITHORN FARRELL TIMMS========,007869,1,"2,255.07",PROFESSIONAL FEES - MISC,13/04/12,"2,255.07"
139633,THAMES WATER UTILITIES LTD====,0372482310D,1,"1,151.16",WATER & SEWERAGE RATES,13/04/12,"1,151.16"
050412A,*PRINCIPAL CATERING CONSULTNTS,047099,1,"1,212.00",REFRESHMENTS,13/04/12,"2,934.00"
050412A,*PRINCIPAL CATERING CONSULTNTS,047099,2,"1,722.00",REFRESHMENTS,13/04/12,
100412A,*PRINCIPAL CATERING CONSULTNTS,047261,1,"12,795.00",REFRESHMENTS,13/04/12,"13,203.00"
100412A,*PRINCIPAL CATERING CONSULTNTS,047261,2,408.00,REFRESHMENTS,13/04/12,
050412G,NATIONAL DRIVING CENTRE=======,09155,1,"26,848.62",TRAINING & CONFERENCES,13/04/12,"26,848.62"
050412A,COSMUR CONSTRUCTION LTD,1,1,"5,754.25",STRATEGIC (NON CYCLICAL),13/04/12,"5,754.25"
110412G,ALLSTAR BUSINESS SOLUTIONS LTD,1017286495,1,206.56,FUEL,13/04/12,"28,102.27"
110412G,ALLSTAR BUSINESS SOLUTIONS LTD,1017286495,2,134.34,FUEL,13/04/12,
110412G,ALLSTAR BUSINESS SOLUTIONS LTD,1017286495,3,160.37,FUEL,13/04/12,
110412G,ALLSTAR BUSINESS SOLUTIONS LTD,1017286495,4,400.47,FUEL,13/04/12,
110412G,ALLSTAR BUSINESS SOLUTIONS LTD,1017286495,5,209.01,FUEL,13/04/12,
110412G,ALLSTAR BUSINESS SOLUTIONS LTD,1017286495,6,77.13,FUEL,13/04/12,
110412G,ALLSTAR BUSINESS SOLUTIONS LTD,1017286495,7,145.37,FUEL,13/04/12,
110412G,ALLSTAR BUSINESS SOLUTIONS LTD,1017286495,8,379.92,FUEL,13/04/12,
110412G,ALLSTAR BUSINESS SOLUTIONS LTD,1017286495,9,122.89,FUEL,13/04/12,
110412G,ALLSTAR BUSINESS SOLUTIONS LTD,1017286495,10,221.81,FUEL,13/04/12,
110412G,ALLSTAR BUSINESS SOLUTIONS LTD,1017286495,11,280.71,FUEL,13/04/12,
110412G,ALLSTAR BUSINESS SOLUTIONS LTD,1017286495,12,362.34,FUEL,13/04/12,
110412G,ALLSTAR BUSINESS SOLUTIONS LTD,1017286495,13,287.97,FUEL,13/04/12,
110412G,ALLSTAR BUSINESS SOLUTIONS LTD,1017286495,14,211.51,FUEL,13/04/12,
110412G,ALLSTAR BUSINESS SOLUTIONS LTD,1017286495,15,210.15,FUEL,13/04/12,
110412G,ALLSTAR BUSINESS SOLUTIONS LTD,1017286495,16,391.24,FUEL,13/04/12,
110412G,ALLSTAR BUSINESS SOLUTIONS LTD,1017286495,17,179.66,FUEL,13/04/12,
110412G,ALLSTAR BUSINESS SOLUTIONS LTD,1017286495,18,130.60,FUEL,13/04/12,
110412G,ALLSTAR BUSINESS SOLUTIONS LTD,1017286495,19,110.68,FUEL,13/04/12,
110412G,ALLSTAR BUSINESS SOLUTIONS LTD,1017286495,20,90.11,FUEL,13/04/12,
110412G,ALLSTAR BUSINESS SOLUTIONS LTD,1017286495,21,194.21,FUEL,13/04/12,
110412G,ALLSTAR BUSINESS SOLUTIONS LTD,1017286495,22,239.53,FUEL,13/04/12,
110412G,ALLSTAR BUSINESS SOLUTIONS LTD,1017286495,23,161.32,FUEL,13/04/12,
110412G,ALLSTAR BUSINESS SOLUTIONS LTD,1017286495,24,302.51,FUEL,13/04/12,
110412G,ALLSTAR BUSINESS SOLUTIONS LTD,1017286495,25,439.30,FUEL,13/04/12,
110412G,ALLSTAR BUSINESS SOLUTIONS LTD,1017286495,26,225.82,FUEL,13/04/12,
110412G,ALLSTAR BUSINESS SOLUTIONS LTD,1017286495,27,262.51,FUEL,13/04/12,
110412G,ALLSTAR BUSINESS SOLUTIONS LTD,1017286495,28,268.06,FUEL,13/04/12,
110412G,ALLSTAR BUSINESS SOLUTIONS LTD,1017286495,29,214.62,FUEL,13/04/12,
110412G,ALLSTAR BUSINESS SOLUTIONS LTD,1017286495,30,246.04,FUEL,13/04/12,
110412G,ALLSTAR BUSINESS SOLUTIONS LTD,1017286495,31,434.56,FUEL,13/04/12,
110412G,ALLSTAR BUSINESS SOLUTIONS LTD,1017286495,32,326.48,FUEL,13/04/12,
110412G,ALLSTAR BUSINESS SOLUTIONS LTD,1017286495,33,464.21,FUEL,13/04/12,
110412G,ALLSTAR BUSINESS SOLUTIONS LTD,1017286495,34,365.77,FUEL,13/04/12,
110412G,ALLSTAR BUSINESS SOLUTIONS LTD,1017286495,35,602.65,FUEL,13/04/12,
110412G,ALLSTAR BUSINESS SOLUTIONS LTD,1017286495,36,154.48,FUEL,13/04/12,
110412G,ALLSTAR BUSINESS SOLUTIONS LTD,1017286495,37,489.02,FUEL,13/04/12,
110412G,ALLSTAR BUSINESS SOLUTIONS LTD,1017286495,38,92.77,FUEL,13/04/12,
110412G,ALLSTAR BUSINESS SOLUTIONS LTD,1017286495,39,111.90,FUEL,13/04/12,
110412G,ALLSTAR BUSINESS SOLUTIONS LTD,1017286495,40,503.64,FUEL,13/04/12,
110412G,ALLSTAR BUSINESS SOLUTIONS LTD,1017286495,41,150.79,FUEL,13/04/12,
110412G,ALLSTAR BUSINESS SOLUTIONS LTD,1017286495,42,131.83,FUEL,13/04/12,
110412G,ALLSTAR BUSINESS SOLUTIONS LTD,1017286495,43,191.08,FUEL,13/04/12,
110412G,ALLSTAR BUSINESS SOLUTIONS LTD,1017286495,44,233.16,FUEL,13/04/12,
110412G,ALLSTAR BUSINESS SOLUTIONS LTD,1017286495,45,74.39,FUEL,13/04/12,
110412G,ALLSTAR BUSINESS SOLUTIONS LTD,1017286495,46,166.68,FUEL,13/04/12,
110412G,ALLSTAR BUSINESS SOLUTIONS LTD,1017286495,47,343.57,FUEL,13/04/12,
110412G,ALLSTAR BUSINESS SOLUTIONS LTD,1017286495,48,186.13,FUEL,13/04/12,
110412G,ALLSTAR BUSINESS SOLUTIONS LTD,1017286495,49,117.67,FUEL,13/04/12,
110412G,ALLSTAR BUSINESS SOLUTIONS LTD,1017286495,50,116.57,FUEL,13/04/12,
110412G,ALLSTAR BUSINESS SOLUTIONS LTD,1017286495,51,95.77,FUEL,13/04/12,
110412G,ALLSTAR BUSINESS SOLUTIONS LTD,1017286495,52,30.85,FUEL,13/04/12,
110412G,ALLSTAR BUSINESS SOLUTIONS LTD,1017286495,53,148.83,FUEL,13/04/12,
110412G,ALLSTAR BUSINESS SOLUTIONS LTD,1017286495,54,620.80,FUEL,13/04/12,
110412G,ALLSTAR BUSINESS SOLUTIONS LTD,1017286495,55,535.56,FUEL,13/04/12,
110412G,ALLSTAR BUSINESS SOLUTIONS LTD,1017286495,56,276.58,FUEL,13/04/12,
110412G,ALLSTAR BUSINESS SOLUTIONS LTD,1017286495,57,316.47,FUEL,13/04/12,
110412G,ALLSTAR BUSINESS SOLUTIONS LTD,1017286495,58,277.81,FUEL,13/04/12,
110412G,ALLSTAR BUSINESS SOLUTIONS LTD,1017286495,59,325.60,FUEL,13/04/12,
110412G,ALLSTAR BUSINESS SOLUTIONS LTD,1017286495,60,101.01,FUEL,13/04/12,
110412G,ALLSTAR BUSINESS SOLUTIONS LTD,1017286495,61,185.71,FUEL,13/04/12,
110412G,ALLSTAR BUSINESS SOLUTIONS LTD,1017286495,62,132.25,FUEL,13/04/12,
110412G,ALLSTAR BUSINESS SOLUTIONS LTD,1017286495,63,222.68,FUEL,13/04/12,
110412G,ALLSTAR BUSINESS SOLUTIONS LTD,1017286495,64,271.38,FUEL,13/04/12,
110412G,ALLSTAR BUSINESS SOLUTIONS LTD,1017286495,65,356.40,FUEL,13/04/12,
110412G,ALLSTAR BUSINESS SOLUTIONS LTD,1017286495,66,191.98,FUEL,13/04/12,
110412G,ALLSTAR BUSINESS SOLUTIONS LTD,1017286495,67,195.95,FUEL,13/04/12,
110412G,ALLSTAR BUSINESS SOLUTIONS LTD,1017286495,68,244.76,FUEL,13/04/12,
110412G,ALLSTAR BUSINESS SOLUTIONS LTD,1017286495,69,579.22,FUEL,13/04/12,
110412G,ALLSTAR BUSINESS SOLUTIONS LTD,1017286495,70,96.01,FUEL,13/04/12,
110412G,ALLSTAR BUSINESS SOLUTIONS LTD,1017286495,71,128.53,FUEL,13/04/12,
110412G,ALLSTAR BUSINESS SOLUTIONS LTD,1017286495,72,227.91,FUEL,13/04/12,
110412G,ALLSTAR BUSINESS SOLUTIONS LTD,1017286495,73,124.73,FUEL,13/04/12,
110412G,ALLSTAR BUSINESS SOLUTIONS LTD,1017286495,74,199.72,FUEL,13/04/12,
110412G,ALLSTAR BUSINESS SOLUTIONS LTD,1017286495,75,266.50,FUEL,13/04/12,
110412G,ALLSTAR BUSINESS SOLUTIONS LTD,1017286495,76,"1,178.58",FUEL,13/04/12,
110412G,ALLSTAR BUSINESS SOLUTIONS LTD,1017286495,77,313.63,FUEL,13/04/12,
110412G,ALLSTAR BUSINESS SOLUTIONS LTD,1017286495,78,122.04,FUEL,13/04/12,
110412G,ALLSTAR BUSINESS SOLUTIONS LTD,1017286495,79,110.42,FUEL,13/04/12,
110412G,ALLSTAR BUSINESS SOLUTIONS LTD,1017286495,80,69.52,FUEL,13/04/12,
110412G,ALLSTAR BUSINESS SOLUTIONS LTD,1017286495,81,128.33,FUEL,13/04/12,
110412G,ALLSTAR BUSINESS SOLUTIONS LTD,1017286495,82,34.20,FUEL,13/04/12,
110412G,ALLSTAR BUSINESS SOLUTIONS LTD,1017286495,83,139.77,FUEL,13/04/12,
110412G,ALLSTAR BUSINESS SOLUTIONS LTD,1017286495,84,100.73,FUEL,13/04/12,
110412G,ALLSTAR BUSINESS SOLUTIONS LTD,1017286495,85,305.71,FUEL,13/04/12,
110412G,ALLSTAR BUSINESS SOLUTIONS LTD,1017286495,86,381.04,FUEL,13/04/12,
110412G,ALLSTAR BUSINESS SOLUTIONS LTD,1017286495,87,129.94,FUEL,13/04/12,
110412G,ALLSTAR BUSINESS SOLUTIONS LTD,1017286495,88,225.76,FUEL,13/04/12,
110412G,ALLSTAR BUSINESS SOLUTIONS LTD,1017286495,89,131.35,FUEL,13/04/12,
110412G,ALLSTAR BUSINESS SOLUTIONS LTD,1017286495,90,883.37,FUEL,13/04/12,
110412G,ALLSTAR BUSINESS SOLUTIONS LTD,1017286495,91,704.06,FUEL,13/04/12,
110412G,ALLSTAR BUSINESS SOLUTIONS LTD,1017286495,92,114.01,FUEL,13/04/12,
110412G,ALLSTAR BUSINESS SOLUTIONS LTD,1017286495,93,86.20,FUEL,13/04/12,
110412G,ALLSTAR BUSINESS SOLUTIONS LTD,1017286495,94,83.54,FUEL,13/04/12,
110412G,ALLSTAR BUSINESS SOLUTIONS LTD,1017286495,95,181.19,FUEL,13/04/12,
110412G,ALLSTAR BUSINESS SOLUTIONS LTD,1017286495,96,131.35,FUEL,13/04/12,
110412G,ALLSTAR BUSINESS SOLUTIONS LTD,1017286495,97,114.60,FUEL,13/04/12,
110412G,ALLSTAR BUSINESS SOLUTIONS LTD,1017286495,98,99.21,FUEL,13/04/12,
110412G,ALLSTAR BUSINESS SOLUTIONS LTD,1017286495,99,205.89,FUEL,13/04/12,
110412G,ALLSTAR BUSINESS SOLUTIONS LTD,1017286495,100,101.07,FUEL,13/04/12,
110412G,ALLSTAR BUSINESS SOLUTIONS LTD,1017286495,101,328.19,FUEL,13/04/12,
110412G,ALLSTAR BUSINESS SOLUTIONS LTD,1017286495,102,181.83,FUEL,13/04/12,
110412G,ALLSTAR BUSINESS SOLUTIONS LTD,1017286495,103,66.10,FUEL,13/04/12,
110412G,ALLSTAR BUSINESS SOLUTIONS LTD,1017286495,104,35.81,FUEL,13/04/12,
110412G,ALLSTAR BUSINESS SOLUTIONS LTD,1017286495,105,51.59,FUEL,13/04/12,
110412G,ALLSTAR BUSINESS SOLUTIONS LTD,1017286495,106,74.40,FUEL,13/04/12,
110412G,ALLSTAR BUSINESS SOLUTIONS LTD,1017286495,107,249.10,FUEL,13/04/12,
110412G,ALLSTAR BUSINESS SOLUTIONS LTD,1017286495,108,74.47,FUEL,13/04/12,
110412G,ALLSTAR BUSINESS SOLUTIONS LTD,1017286495,109,77.65,FUEL,13/04/12,
110412G,ALLSTAR BUSINESS SOLUTIONS LTD,1017286495,110,96.23,FUEL,13/04/12,
110412G,ALLSTAR BUSINESS SOLUTIONS LTD,1017286495,111,291.24,FUEL,13/04/12,
110412G,ALLSTAR BUSINESS SOLUTIONS LTD,1017286495,112,64.77,FUEL,13/04/12,
110412G,ALLSTAR BUSINESS SOLUTIONS LTD,1017286495,113,64.17,FUEL,13/04/12,
110412G,ALLSTAR BUSINESS SOLUTIONS LTD,1017286495,114,111.64,FUEL,13/04/12,
110412G,ALLSTAR BUSINESS SOLUTIONS LTD,1017286495,115,25.65,FUEL,13/04/12,
110412G,ALLSTAR BUSINESS SOLUTIONS LTD,1017286495,116,159.74,FUEL,13/04/12,
110412G,ALLSTAR BUSINESS SOLUTIONS LTD,1017286495,117,40.47,FUEL,13/04/12,
110412G,ALLSTAR BUSINESS SOLUTIONS LTD,1017286495,118,20.70,FUEL,13/04/12,
110412G,ALLSTAR BUSINESS SOLUTIONS LTD,1017286495,119,293.22,FUEL,13/04/12,
110412G,ALLSTAR BUSINESS SOLUTIONS LTD,1017286495,120,53.89,FUEL,13/04/12,
110412G,ALLSTAR BUSINESS SOLUTIONS LTD,1017286495,121,70.83,FUEL,13/04/12,
110412G,ALLSTAR BUSINESS SOLUTIONS LTD,1017286495,122,88.48,FUEL,13/04/12,
110412G,ALLSTAR BUSINESS SOLUTIONS LTD,1017286495,123,80.89,FUEL,13/04/12,
110412G,ALLSTAR BUSINESS SOLUTIONS LTD,1017286495,124,358.70,FUEL,13/04/12,
110412G,ALLSTAR BUSINESS SOLUTIONS LTD,1017286495,125,79.22,FUEL,13/04/12,
110412G,ALLSTAR BUSINESS SOLUTIONS LTD,1017286495,126,48.62,FUEL,13/04/12,
110412G,ALLSTAR BUSINESS SOLUTIONS LTD,1017286495,127,114.48,FUEL,13/04/12,
110412G,ALLSTAR BUSINESS SOLUTIONS LTD,1017286495,128,42.59,FUEL,13/04/12,
110412G,ALLSTAR BUSINESS SOLUTIONS LTD,1017286495,129,105.25,FUEL,13/04/12,
110412G,ALLSTAR BUSINESS SOLUTIONS LTD,1017286495,130,38.37,FUEL,13/04/12,
110412G,ALLSTAR BUSINESS SOLUTIONS LTD,1017286495,131,129.28,FUEL,13/04/12,
110412G,ALLSTAR BUSINESS SOLUTIONS LTD,1017286495,132,176.88,FUEL,13/04/12,
110412G,ALLSTAR BUSINESS SOLUTIONS LTD,1017286495,133,55.19,FUEL,13/04/12,
100412A,*SPRUE SAFETY PRODUCTS LTD====,1030007,1,"1,896.00",FIRE DETECTORS,13/04/12,"1,896.00"
100412A,*SPRUE SAFETY PRODUCTS LTD====,1030008,1,"1,896.00",FIRE DETECTORS,13/04/12,"1,896.00"
100412A,*SPRUE SAFETY PRODUCTS LTD====,1030014,1,"1,264.00",FIRE DETECTORS,13/04/12,"1,264.00"
100412A,*SPRUE SAFETY PRODUCTS LTD====,1030019,1,"1,264.00",FIRE DETECTORS,13/04/12,"1,264.00"
100412A,*SPRUE SAFETY PRODUCTS LTD====,1030021,1,"1,264.00",FIRE DETECTORS,13/04/12,"1,264.00"
100412A,*SPRUE SAFETY PRODUCTS LTD====,1030022,1,"1,264.00",FIRE DETECTORS,13/04/12,"1,264.00"
100412A,*SPRUE SAFETY PRODUCTS LTD====,1030024,1,"1,264.00",FIRE DETECTORS,13/04/12,"1,264.00"
100412A,*SPRUE SAFETY PRODUCTS LTD====,1030027,1,"1,896.00",FIRE DETECTORS,13/04/12,"1,896.00"
100412A,*SPRUE SAFETY PRODUCTS LTD====,1030223,1,"1,264.00",FIRE DETECTORS,13/04/12,"1,264.00"
139633,ALLSTAR BUSINESS SOLUTIONS LTD,1033038,1,"6,384.69",LEASE CAR CHARGES,13/04/12,"6,384.69"
139633,ALLSTAR BUSINESS SOLUTIONS LTD,1033038,2,-522.26,VAT CAR LEASING,13/04/12,
139633,ALLSTAR BUSINESS SOLUTIONS LTD,1033038,3,522.26,LEASE CAR CHARGES,13/04/12,
139633,ALLSTAR BUSINESS SOLUTIONS LTD,1033039,1,"4,778.31",LEASE CAR CHARGES,13/04/12,"4,778.31"
139633,ALLSTAR BUSINESS SOLUTIONS LTD,1033039,2,-409.95,VAT CAR LEASING,13/04/12,
139633,ALLSTAR BUSINESS SOLUTIONS LTD,1033039,3,409.95,LEASE CAR CHARGES,13/04/12,
139633,ALLSTAR BUSINESS SOLUTIONS LTD,1033043,1,"4,994.20",LEASE CAR CHARGES,13/04/12,"4,994.20"
139633,ALLSTAR BUSINESS SOLUTIONS LTD,1033043,2,-413.08,VAT CAR LEASING,13/04/12,
139633,ALLSTAR BUSINESS SOLUTIONS LTD,1033043,3,413.08,LEASE CAR CHARGES,13/04/12,
110412G,R & J STRUCTURES SOLUTIONS LTD,11/1388,1,"1,250.00",PROFESSIONAL FEES - MISC,13/04/12,"1,250.00"
230312C,KIER BUILDING SERV ENGINEERS==,11091034,1,"2,061.76",STRATEGIC (CYCLICAL),13/04/12,"4,356.24"
230312C,KIER BUILDING SERV ENGINEERS==,11091034,2,"2,294.48",TACTICAL DAY TO DAY,13/04/12,
139632,BOURNE CONSTRUCTION COMPANY,12/358,1,280.00,STRATEGIC (NON CYCLICAL),13/04/12,550.00
139632,BOURNE CONSTRUCTION COMPANY,12/358,2,270.00,STRATEGIC (NON CYCLICAL),13/04/12,
139632,BOURNE CONSTRUCTION COMPANY,12/359,1,400.00,STRATEGIC (NON CYCLICAL),13/04/12,725.00
139632,BOURNE CONSTRUCTION COMPANY,12/359,2,325.00,STRATEGIC (NON CYCLICAL),13/04/12,
139632,BOURNE CONSTRUCTION COMPANY,12/361,1,340.00,STRATEGIC (NON CYCLICAL),13/04/12,580.00
139632,BOURNE CONSTRUCTION COMPANY,12/361,2,240.00,STRATEGIC (NON CYCLICAL),13/04/12,
139632,BOURNE CONSTRUCTION COMPANY,12/362,1,"1,150.00",STRATEGIC (NON CYCLICAL),13/04/12,"2,230.00"
139632,BOURNE CONSTRUCTION COMPANY,12/362,2,"1,080.00",STRATEGIC (NON CYCLICAL),13/04/12,
139632,BOURNE CONSTRUCTION COMPANY,12/363,1,"1,500.00",STRATEGIC (NON CYCLICAL),13/04/12,"3,150.00"
139632,BOURNE CONSTRUCTION COMPANY,12/363,2,"1,650.00",STRATEGIC (NON CYCLICAL),13/04/12,
050412G,TENEO LTD.====================,12254,1,"1,295.00",PROFESSIONAL SERVICES,13/04/12,"1,295.00"
040412C,CMT===========================,125449,1,336.00,OPERATIONAL EQUIP-PURCHASE,13/04/12,770.35
040412C,CMT===========================,125449,2,419.40,OPERATIONAL EQUIP-PURCHASE,13/04/12,
040412C,CMT===========================,125449,3,14.95,OPERATIONAL EQUIP-PURCHASE,13/04/12,
050412G,ABARIS INTERNATIONAL LIMITED==,12861,1,660.24,OPERATIONAL EQUIP-PURCHASE,13/04/12,"2,915.92"
050412G,ABARIS INTERNATIONAL LIMITED==,12861,2,106.62,OPERATIONAL EQUIP-PURCHASE,13/04/12,
050412G,ABARIS INTERNATIONAL LIMITED==,12861,3,764.35,OPERATIONAL EQUIP-PURCHASE,13/04/12,
050412G,ABARIS INTERNATIONAL LIMITED==,12861,4,284.68,OPERATIONAL EQUIP-PURCHASE,13/04/12,
050412G,ABARIS INTERNATIONAL LIMITED==,12861,5,70.00,OPERATIONAL EQUIP-PURCHASE,13/04/12,
050412G,ABARIS INTERNATIONAL LIMITED==,12861,6,142.34,OPERATIONAL EQUIP-PURCHASE,13/04/12,
050412G,ABARIS INTERNATIONAL LIMITED==,12861,7,146.00,OPERATIONAL EQUIP-PURCHASE,13/04/12,
050412G,ABARIS INTERNATIONAL LIMITED==,12861,8,107.86,OPERATIONAL EQUIP-PURCHASE,13/04/12,
050412G,ABARIS INTERNATIONAL LIMITED==,12861,9,149.56,OPERATIONAL EQUIP-PURCHASE,13/04/12,
050412G,ABARIS INTERNATIONAL LIMITED==,12861,10,191.09,OPERATIONAL EQUIP-PURCHASE,13/04/12,
050412G,ABARIS INTERNATIONAL LIMITED==,12861,11,284.68,OPERATIONAL EQUIP-PURCHASE,13/04/12,
050412G,ABARIS INTERNATIONAL LIMITED==,12861,12,8.50,OPERATIONAL EQUIP-PURCHASE,13/04/12,
110412G,CHELMSFORD SAFETY SUPPLIES====,130969,1,723.40,OPERATIONAL EQUIP-PURCHASE,13/04/12,723.40
139632,B NOKES CONTRACTS LTD,1367,1,"1,044.00",DEVELOPMENT EXP - CONTRACTORS,13/04/12,"1,044.00"
100412C,RESPIREX======================,137918,1,59.67,REPAIR & MAINTENANCE,13/04/12,879.64
100412C,RESPIREX======================,137918,2,36.67,REPAIR & MAINTENANCE,13/04/12,
100412C,RESPIREX======================,137918,3,142.98,REPAIR & MAINTENANCE,13/04/12,
100412C,RESPIREX======================,137918,4,169.98,REPAIR & MAINTENANCE,13/04/12,
100412C,RESPIREX======================,137918,5,42.67,REPAIR & MAINTENANCE,13/04/12,
100412C,RESPIREX======================,137918,6,142.98,REPAIR & MAINTENANCE,13/04/12,
100412C,RESPIREX======================,137918,7,47.67,REPAIR & MAINTENANCE,13/04/12,
100412C,RESPIREX======================,137918,8,237.02,REPAIR & MAINTENANCE,13/04/12,
100412C,RESPIREX======================,137923,1,"7,500.00",PROTECTIVE EQUIPMENT,13/04/12,"7,500.00"
100412C,RESPIREX======================,137925,1,"7,500.00",PROTECTIVE EQUIPMENT,13/04/12,"7,500.00"
270312C,BEAUMONT LTD.,1394,1,"3,300.00",STRATEGIC (NON CYCLICAL),13/04/12,"3,300.00"
040412A,PSYCHOLOGICAL CONSULTANCY LTD,15128,1,"1,520.00",PROFESSIONAL SERVICES,13/04/12,"1,520.00"
040412C,CAPITAL SAFETY GROUP,176796,1,"6,600.00",TRAINING & CONFERENCES,13/04/12,"6,600.00"
030412C,STORM TECHNOLOGIES============,177961,1,"1,970.52",OFFICE EQUIPMENT,13/04/12,"2,009.96"
030412C,STORM TECHNOLOGIES============,177961,2,39.44,OFFICE EQUIPMENT,13/04/12,
030412C,STORM TECHNOLOGIES============,177969,1,"1,970.52",OFFICE EQUIPMENT,13/04/12,"1,990.24"
030412C,STORM TECHNOLOGIES============,177969,2,19.72,OFFICE EQUIPMENT,13/04/12,
030412C,STORM TECHNOLOGIES============,177982,1,"4,926.30",OFFICE EQUIPMENT,13/04/12,"6,853.70"
030412C,STORM TECHNOLOGIES============,177982,2,"1,506.70",OFFICE EQUIPMENT,13/04/12,
030412C,STORM TECHNOLOGIES============,177982,3,420.70,OFFICE EQUIPMENT,13/04/12,
030412C,STORM TECHNOLOGIES============,177983,1,"1,970.52",ACQUISITIONS,13/04/12,"2,009.96"
030412C,STORM TECHNOLOGIES============,177983,2,39.44,ACQUISITIONS,13/04/12,
030412C,STORM TECHNOLOGIES============,178232,1,"1,970.52",ACQUISITIONS,13/04/12,"2,009.96"
030412C,STORM TECHNOLOGIES============,178232,2,39.44,ACQUISITIONS,13/04/12,
030412C,STORM TECHNOLOGIES============,178267,1,504.84,ACQUISITIONS,13/04/12,544.58
030412C,STORM TECHNOLOGIES============,178267,2,39.74,ACQUISITIONS,13/04/12,
139634,EDF ENERGY===================,1785676819,1,"1,211.98",ELECTRICITY,13/04/12,"1,211.98"
139634,EDF ENERGY===================,1785907918,1,"4,351.12",ELECTRICITY,13/04/12,"4,351.12"
139634,EDF ENERGY===================,1786209519,1,"8,260.38",ELECTRICITY,13/04/12,"8,260.38"
139634,EDF ENERGY===================,1786484419,1,503.01,ELECTRICITY,13/04/12,"5,030.11"
139634,EDF ENERGY===================,1786484419,2,"4,275.59",ELECTRICITY,13/04/12,
139634,EDF ENERGY===================,1786484419,3,251.51,ELECTRICITY,13/04/12,
139634,EDF ENERGY===================,1793376216,1,"9,870.96",ELECTRICITY,13/04/12,"9,870.96"
230312C,GREATER LONDON AUTHORITY======,1800002233,1,"5,500.00",SUBSCRIPTIONS,13/04/12,"5,500.00"
139634,EDF ENERGY===================,1813823609,1,"20,053.69",ELECTRICITY,13/04/12,"20,053.69"
030412F,FALDER MATTHEWS T/A FM PRINT==,19696-1,1,"3,600.00",PRINTING,13/04/12,"3,600.00"
290312C,RMS MANAGED ICT SECURITY LTD,2003,1,"3,767.00",MAINTENANCE & SUPPORT,13/04/12,"3,767.00"
040412C,ENERGY AUDITING AGENCY LTD====,20127662,1,840.00,PROFESSIONAL SERVICES,13/04/12,840.00
030412F,REDTRONIC LTD=================,21073,1,"6,500.00",OPERATIONAL EQUIP-PURCHASE,13/04/12,"6,500.00"
280312C,BAXI SENER TEC UK=============,2215088,1,536.00,STRATEGIC (CYCLICAL),13/04/12,536.00
270312C,BAXI SENER TEC UK=============,2215089,1,536.00,STRATEGIC (CYCLICAL),13/04/12,536.00
139633,STONEFIELD ESTATES LTD========,2531224313,1,"4,889.00",RENTS,13/04/12,"4,889.00"
139634,BAA BUSINESS SUPPORT CENTRE===,2531224612BA,1,"3,625.00",RENTS,13/04/12,"3,625.00"
139634,L B OF SOUTHWARK==============,25414801,1,"15,884.00",PROPERTY RATES,13/04/12,"15,884.00"
800009542,ADECCO UK LIMITED=============,25937494,1,"1,098.65",FRS STAFF AGENCY,13/04/12,"1,098.65"
800009509,ADECCO UK LIMITED=============,25944781,1,740.00,FRS STAFF AGENCY,13/04/12,740.00
050412A,MACE LIMITED,26915/011437,1,"4,342.50",PROFESSIONAL FEES - MISC,13/04/12,"4,342.50"
270312A,360 SYSTEMS LIMITED===========,3601887,1,"18,200.00",PROFESSIONAL SERVICES,13/04/12,"18,200.00"
270312C,360 SYSTEMS LIMITED===========,3601890,1,"2,550.00",PROFESSIONAL SERVICES,13/04/12,"2,550.00"
030412C,COMPUTACENTRE================,3700714274,1,"1,620.00",ACQUISITIONS,13/04/12,"1,620.00"
030412C,COMPUTACENTRE================,3700714277,1,"1,620.00",ACQUISITIONS,13/04/12,"3,270.00"
030412C,COMPUTACENTRE================,3700714277,2,"1,650.00",ACQUISITIONS,13/04/12,
030412C,COMPUTACENTRE================,3700714283,1,850.00,ACQUISITIONS,13/04/12,850.00
030412C,COMPUTACENTRE================,3803867147,1,140.00,OFFICE EQUIPMENT,13/04/12,"1,945.00"
030412C,COMPUTACENTRE================,3803867147,2,305.00,OFFICE EQUIPMENT,13/04/12,
030412C,COMPUTACENTRE================,3803867147,3,85.00,OFFICE EQUIPMENT,13/04/12,
030412C,COMPUTACENTRE================,3803867147,4,235.00,OFFICE EQUIPMENT,13/04/12,
030412C,COMPUTACENTRE================,3803867147,5,120.00,OFFICE EQUIPMENT,13/04/12,
030412C,COMPUTACENTRE================,3803867147,6,240.00,OFFICE EQUIPMENT,13/04/12,
030412C,COMPUTACENTRE================,3803867147,7,425.00,OFFICE EQUIPMENT,13/04/12,
030412C,COMPUTACENTRE================,3803867147,8,395.00,OFFICE EQUIPMENT,13/04/12,
139634,NPOWER BUSINESS===============,3929340,1,"1,226.14",GAS,13/04/12,"1,226.14"
050412G,*BURLINGTON UNIFORMS LTD,407650,1,"3,945.60",UNIFORMS - POMS,13/04/12,"5,129.28"
050412G,*BURLINGTON UNIFORMS LTD,407650,2,394.56,UNIFORMS - POMS,13/04/12,
050412G,*BURLINGTON UNIFORMS LTD,407650,3,789.12,UNIFORMS - POMS,13/04/12,
050412G,*BURLINGTON UNIFORMS LTD,407651,1,"3,139.20",UNIFORMS - POMS,13/04/12,"3,531.60"
050412G,*BURLINGTON UNIFORMS LTD,407651,2,392.40,UNIFORMS - POMS,13/04/12,
050412A,SMART WATERCOOLERS LTD========,42349,1,861.04,CATERING FIXTURES,13/04/12,"3,499.12"
050412A,SMART WATERCOOLERS LTD========,42349,2,879.36,CATERING FIXTURES,13/04/12,
050412A,SMART WATERCOOLERS LTD========,42349,3,"1,007.60",CATERING FIXTURES,13/04/12,
050412A,SMART WATERCOOLERS LTD========,42349,4,18.32,CATERING EQUIPMENT,13/04/12,
050412A,SMART WATERCOOLERS LTD========,42349,5,36.64,CATERING EQUIPMENT,13/04/12,
050412A,SMART WATERCOOLERS LTD========,42349,6,18.32,CATERING EQUIPMENT,13/04/12,
050412A,SMART WATERCOOLERS LTD========,42349,7,18.32,OFFICE EQUIPMENT,13/04/12,
050412A,SMART WATERCOOLERS LTD========,42349,8,549.60,CATERING EQUIPMENT,13/04/12,
050412A,SMART WATERCOOLERS LTD========,42349,9,18.32,STATIONERY CONSUMABLES,13/04/12,
050412A,SMART WATERCOOLERS LTD========,42349,10,18.32,REFRESHMENTS,13/04/12,
050412A,SMART WATERCOOLERS LTD========,42349,11,18.32,CATERING EQUIPMENT,13/04/12,
050412A,SMART WATERCOOLERS LTD========,42349,12,18.32,CATERING EQUIPMENT,13/04/12,
050412A,SMART WATERCOOLERS LTD========,42349,13,18.32,PROFESSIONAL SERVICES,13/04/12,
050412A,SMART WATERCOOLERS LTD========,42349,14,18.32,RADIO,13/04/12,
040412A,*SUPPLIES TEAM================,4900787,1,128.52,STATIONERY CONSUMABLES,13/04/12,924.80
040412A,*SUPPLIES TEAM================,4900787,2,120.70,STATIONERY CONSUMABLES,13/04/12,
040412A,*SUPPLIES TEAM================,4900787,3,120.70,STATIONERY CONSUMABLES,13/04/12,
040412A,*SUPPLIES TEAM================,4900787,4,120.70,STATIONERY CONSUMABLES,13/04/12,
040412A,*SUPPLIES TEAM================,4900787,5,192.78,STATIONERY CONSUMABLES,13/04/12,
040412A,*SUPPLIES TEAM================,4900787,6,120.70,STATIONERY CONSUMABLES,13/04/12,
040412A,*SUPPLIES TEAM================,4900787,7,120.70,STATIONERY CONSUMABLES,13/04/12,
100412C,URS SCOTT WILSON LIMITED,4935967,1,"1,398.10",PROFESSIONAL FEES - MISC,13/04/12,"1,398.10"
110412G,URS SCOTT WILSON LIMITED,5012049,1,831.32,PROFESSIONAL FEES - MISC,13/04/12,831.32
040412C,URS SCOTT WILSON LIMITED,5049618,1,"17,745.15",PROFESSIONAL FEES - MISC,13/04/12,"17,745.15"
100412C,URS SCOTT WILSON LIMITED,5049624,1,87.00,STRATEGIC (NON CYCLICAL),13/04/12,"1,000.00"
100412C,URS SCOTT WILSON LIMITED,5049624,2,45.47,STRATEGIC (NON CYCLICAL),13/04/12,
100412C,URS SCOTT WILSON LIMITED,5049624,3,867.53,STRATEGIC (NON CYCLICAL),13/04/12,
100412C,URS SCOTT WILSON LIMITED,5053384,1,969.54,STRATEGIC (NON CYCLICAL),13/04/12,969.54
100412C,FAHEY BUILDERS LTD============,5109,1,"7,787.50",STRATEGIC (NON CYCLICAL),13/04/12,"7,787.50"
100412C,FAHEY BUILDERS LTD============,5110,1,875.00,STRATEGIC (NON CYCLICAL),13/04/12,875.00
100412C,FAHEY BUILDERS LTD============,5111,1,875.00,STRATEGIC (NON CYCLICAL),13/04/12,875.00
100412C,FAHEY BUILDERS LTD============,5112,1,950.00,STRATEGIC (NON CYCLICAL),13/04/12,950.00
100412C,FAHEY BUILDERS LTD============,5113,1,"2,120.00",STRATEGIC (NON CYCLICAL),13/04/12,"2,120.00"
050412A,FAHEY BUILDERS LTD============,5114,1,"5,875.00",STRATEGIC (NON CYCLICAL),13/04/12,"5,875.00"
050412A,FAHEY BUILDERS LTD============,5115,1,"3,070.00",STRATEGIC (NON CYCLICAL),13/04/12,"3,070.00"
050412A,FAHEY BUILDERS LTD============,5116,1,"2,875.00",STRATEGIC (NON CYCLICAL),13/04/12,"2,875.00"
139626,BRITISH GAS BUSINESS==========,539530201,1,765.40,ELECTRICITY,13/04/12,"15,374.35"
139626,BRITISH GAS BUSINESS==========,539530201,2,392.14,ELECTRICITY,13/04/12,
139626,BRITISH GAS BUSINESS==========,539530201,3,733.54,ELECTRICITY,13/04/12,
139626,BRITISH GAS BUSINESS==========,539530201,4,720.91,ELECTRICITY,13/04/12,
139626,BRITISH GAS BUSINESS==========,539530201,5,767.32,ELECTRICITY,13/04/12,
139626,BRITISH GAS BUSINESS==========,539530201,6,730.95,ELECTRICITY,13/04/12,
139626,BRITISH GAS BUSINESS==========,539530201,7,531.14,ELECTRICITY,13/04/12,
139626,BRITISH GAS BUSINESS==========,539530201,8,364.93,ELECTRICITY,13/04/12,
139626,BRITISH GAS BUSINESS==========,539530201,9,239.49,ELECTRICITY,13/04/12,
139626,BRITISH GAS BUSINESS==========,539530201,10,705.35,ELECTRICITY,13/04/12,
139626,BRITISH GAS BUSINESS==========,539530201,11,504.46,ELECTRICITY,13/04/12,
139626,BRITISH GAS BUSINESS==========,539530201,12,473.83,ELECTRICITY,13/04/12,
139626,BRITISH GAS BUSINESS==========,539530201,13,487.59,ELECTRICITY,13/04/12,
139626,BRITISH GAS BUSINESS==========,539530201,14,870.59,ELECTRICITY,13/04/12,
139626,BRITISH GAS BUSINESS==========,539530201,15,662.81,ELECTRICITY,13/04/12,
139626,BRITISH GAS BUSINESS==========,539530201,16,376.77,ELECTRICITY,13/04/12,
139626,BRITISH GAS BUSINESS==========,539530201,17,311.58,ELECTRICITY,13/04/12,
139626,BRITISH GAS BUSINESS==========,539530201,18,256.36,ELECTRICITY,13/04/12,
139626,BRITISH GAS BUSINESS==========,539530201,19,567.39,ELECTRICITY,13/04/12,
139626,BRITISH GAS BUSINESS==========,539530201,20,73.95,ELECTRICITY,13/04/12,
139626,BRITISH GAS BUSINESS==========,539530201,21,31.21,ELECTRICITY,13/04/12,
139626,BRITISH GAS BUSINESS==========,539530201,22,43.27,ELECTRICITY,13/04/12,
139626,BRITISH GAS BUSINESS==========,539530201,23,82.53,ELECTRICITY,13/04/12,
139626,BRITISH GAS BUSINESS==========,539530201,24,523.82,ELECTRICITY,13/04/12,
139626,BRITISH GAS BUSINESS==========,539530201,25,61.52,ELECTRICITY,13/04/12,
139626,BRITISH GAS BUSINESS==========,539530201,26,19.62,ELECTRICITY,13/04/12,
139626,BRITISH GAS BUSINESS==========,539530201,27,51.04,ELECTRICITY,13/04/12,
139626,BRITISH GAS BUSINESS==========,539530201,28,"1,790.22",ELECTRICITY,13/04/12,
139626,BRITISH GAS BUSINESS==========,539530201,29,"1,060.88",ELECTRICITY,13/04/12,
139626,BRITISH GAS BUSINESS==========,539530201,30,451.25,ELECTRICITY,13/04/12,
139626,BRITISH GAS BUSINESS==========,539530201,31,319.85,ELECTRICITY,13/04/12,
139626,BRITISH GAS BUSINESS==========,539530201,32,402.64,ELECTRICITY,13/04/12,
139627,BRITISH GAS BUSINESS==========,539530202,1,427.08,ELECTRICITY,13/04/12,"24,273.17"
139627,BRITISH GAS BUSINESS==========,539530202,2,915.33,ELECTRICITY,13/04/12,
139627,BRITISH GAS BUSINESS==========,539530202,3,741.23,ELECTRICITY,13/04/12,
139627,BRITISH GAS BUSINESS==========,539530202,4,65.56,ELECTRICITY,13/04/12,
139627,BRITISH GAS BUSINESS==========,539530202,5,413.88,ELECTRICITY,13/04/12,
139627,BRITISH GAS BUSINESS==========,539530202,6,38.44,ELECTRICITY,13/04/12,
139627,BRITISH GAS BUSINESS==========,539530202,7,14.93,ELECTRICITY,13/04/12,
139627,BRITISH GAS BUSINESS==========,539530202,8,514.95,ELECTRICITY,13/04/12,
139627,BRITISH GAS BUSINESS==========,539530202,9,500.27,ELECTRICITY,13/04/12,
139627,BRITISH GAS BUSINESS==========,539530202,10,871.90,ELECTRICITY,13/04/12,
139627,BRITISH GAS BUSINESS==========,539530202,11,19.02,ELECTRICITY,13/04/12,
139627,BRITISH GAS BUSINESS==========,539530202,12,21.72,ELECTRICITY,13/04/12,
139627,BRITISH GAS BUSINESS==========,539530202,13,294.79,ELECTRICITY,13/04/12,
139627,BRITISH GAS BUSINESS==========,539530202,14,752.28,ELECTRICITY,13/04/12,
139627,BRITISH GAS BUSINESS==========,539530202,15,22.27,ELECTRICITY,13/04/12,
139627,BRITISH GAS BUSINESS==========,539530202,16,20.08,ELECTRICITY,13/04/12,
139627,BRITISH GAS BUSINESS==========,539530202,17,501.52,ELECTRICITY,13/04/12,
139627,BRITISH GAS BUSINESS==========,539530202,18,574.65,ELECTRICITY,13/04/12,
139627,BRITISH GAS BUSINESS==========,539530202,19,708.93,ELECTRICITY,13/04/12,
139627,BRITISH GAS BUSINESS==========,539530202,20,"4,177.27",ELECTRICITY,13/04/12,
139627,BRITISH GAS BUSINESS==========,539530202,21,"5,001.60",ELECTRICITY,13/04/12,
139627,BRITISH GAS BUSINESS==========,539530202,22,355.34,ELECTRICITY,13/04/12,
139627,BRITISH GAS BUSINESS==========,539530202,23,321.50,ELECTRICITY,13/04/12,
139627,BRITISH GAS BUSINESS==========,539530202,24,74.34,ELECTRICITY,13/04/12,
139627,BRITISH GAS BUSINESS==========,539530202,25,359.48,ELECTRICITY,13/04/12,
139627,BRITISH GAS BUSINESS==========,539530202,26,"3,259.11",ELECTRICITY,13/04/12,
139627,BRITISH GAS BUSINESS==========,539530202,27,23.82,ELECTRICITY,13/04/12,
139627,BRITISH GAS BUSINESS==========,539530202,28,801.01,ELECTRICITY,13/04/12,
139627,BRITISH GAS BUSINESS==========,539530202,29,68.38,ELECTRICITY,13/04/12,
139627,BRITISH GAS BUSINESS==========,539530202,30,310.18,ELECTRICITY,13/04/12,
139627,BRITISH GAS BUSINESS==========,539530202,31,667.45,ELECTRICITY,13/04/12,
139627,BRITISH GAS BUSINESS==========,539530202,32,389.34,ELECTRICITY,13/04/12,
139627,BRITISH GAS BUSINESS==========,539530202,33,738.46,ELECTRICITY,13/04/12,
139627,BRITISH GAS BUSINESS==========,539530202,34,307.06,ELECTRICITY,13/04/12,
139628,BRITISH GAS BUSINESS==========,539530203,1,255.82,ELECTRICITY,13/04/12,"16,609.58"
139628,BRITISH GAS BUSINESS==========,539530203,2,870.90,ELECTRICITY,13/04/12,
139628,BRITISH GAS BUSINESS==========,539530203,3,447.04,ELECTRICITY,13/04/12,
139628,BRITISH GAS BUSINESS==========,539530203,4,573.90,ELECTRICITY,13/04/12,
139628,BRITISH GAS BUSINESS==========,539530203,5,700.40,ELECTRICITY,13/04/12,
139628,BRITISH GAS BUSINESS==========,539530203,6,622.21,ELECTRICITY,13/04/12,
139628,BRITISH GAS BUSINESS==========,539530203,7,714.95,ELECTRICITY,13/04/12,
139628,BRITISH GAS BUSINESS==========,539530203,8,399.56,ELECTRICITY,13/04/12,
139628,BRITISH GAS BUSINESS==========,539530203,9,23.30,ELECTRICITY,13/04/12,
139628,BRITISH GAS BUSINESS==========,539530203,10,443.77,ELECTRICITY,13/04/12,
139628,BRITISH GAS BUSINESS==========,539530203,11,346.29,ELECTRICITY,13/04/12,
139628,BRITISH GAS BUSINESS==========,539530203,12,35.40,ELECTRICITY,13/04/12,
139628,BRITISH GAS BUSINESS==========,539530203,13,45.16,ELECTRICITY,13/04/12,
139628,BRITISH GAS BUSINESS==========,539530203,14,794.11,ELECTRICITY,13/04/12,
139628,BRITISH GAS BUSINESS==========,539530203,15,383.95,ELECTRICITY,13/04/12,
139628,BRITISH GAS BUSINESS==========,539530203,16,70.58,ELECTRICITY,13/04/12,
139628,BRITISH GAS BUSINESS==========,539530203,17,428.93,ELECTRICITY,13/04/12,
139628,BRITISH GAS BUSINESS==========,539530203,18,"1,153.91",ELECTRICITY,13/04/12,
139628,BRITISH GAS BUSINESS==========,539530203,19,688.57,ELECTRICITY,13/04/12,
139628,BRITISH GAS BUSINESS==========,539530203,20,496.19,ELECTRICITY,13/04/12,
139628,BRITISH GAS BUSINESS==========,539530203,21,324.91,ELECTRICITY,13/04/12,
139628,BRITISH GAS BUSINESS==========,539530203,22,282.87,ELECTRICITY,13/04/12,
139628,BRITISH GAS BUSINESS==========,539530203,23,"2,385.30",ELECTRICITY,13/04/12,
139628,BRITISH GAS BUSINESS==========,539530203,24,301.09,ELECTRICITY,13/04/12,
139628,BRITISH GAS BUSINESS==========,539530203,25,733.26,ELECTRICITY,13/04/12,
139628,BRITISH GAS BUSINESS==========,539530203,26,240.83,ELECTRICITY,13/04/12,
139628,BRITISH GAS BUSINESS==========,539530203,27,220.44,ELECTRICITY,13/04/12,
139628,BRITISH GAS BUSINESS==========,539530203,28,378.14,ELECTRICITY,13/04/12,
139628,BRITISH GAS BUSINESS==========,539530203,29,441.52,ELECTRICITY,13/04/12,
139628,BRITISH GAS BUSINESS==========,539530203,30,280.16,ELECTRICITY,13/04/12,
139628,BRITISH GAS BUSINESS==========,539530203,31,525.09,ELECTRICITY,13/04/12,
139628,BRITISH GAS BUSINESS==========,539530203,32,592.12,ELECTRICITY,13/04/12,
139628,BRITISH GAS BUSINESS==========,539530203,33,408.91,ELECTRICITY,13/04/12,
139629,BRITISH GAS BUSINESS==========,539530204,1,92.37,ELECTRICITY,13/04/12,"15,533.26"
139629,BRITISH GAS BUSINESS==========,539530204,2,594.79,ELECTRICITY,13/04/12,
139629,BRITISH GAS BUSINESS==========,539530204,3,641.96,ELECTRICITY,13/04/12,
139629,BRITISH GAS BUSINESS==========,539530204,4,895.99,ELECTRICITY,13/04/12,
139629,BRITISH GAS BUSINESS==========,539530204,5,398.95,ELECTRICITY,13/04/12,
139629,BRITISH GAS BUSINESS==========,539530204,6,670.07,ELECTRICITY,13/04/12,
139629,BRITISH GAS BUSINESS==========,539530204,7,418.56,ELECTRICITY,13/04/12,
139629,BRITISH GAS BUSINESS==========,539530204,8,479.00,ELECTRICITY,13/04/12,
139629,BRITISH GAS BUSINESS==========,539530204,9,428.59,ELECTRICITY,13/04/12,
139629,BRITISH GAS BUSINESS==========,539530204,10,528.87,ELECTRICITY,13/04/12,
139629,BRITISH GAS BUSINESS==========,539530204,11,430.21,ELECTRICITY,13/04/12,
139629,BRITISH GAS BUSINESS==========,539530204,12,48.81,ELECTRICITY,13/04/12,
139629,BRITISH GAS BUSINESS==========,539530204,13,39.31,ELECTRICITY,13/04/12,
139629,BRITISH GAS BUSINESS==========,539530204,14,30.52,ELECTRICITY,13/04/12,
139629,BRITISH GAS BUSINESS==========,539530204,15,26.69,ELECTRICITY,13/04/12,
139629,BRITISH GAS BUSINESS==========,539530204,16,603.12,ELECTRICITY,13/04/12,
139629,BRITISH GAS BUSINESS==========,539530204,17,452.32,ELECTRICITY,13/04/12,
139629,BRITISH GAS BUSINESS==========,539530204,18,827.06,ELECTRICITY,13/04/12,
139629,BRITISH GAS BUSINESS==========,539530204,19,465.99,ELECTRICITY,13/04/12,
139629,BRITISH GAS BUSINESS==========,539530204,20,90.18,ELECTRICITY,13/04/12,
139629,BRITISH GAS BUSINESS==========,539530204,21,390.29,ELECTRICITY,13/04/12,
139629,BRITISH GAS BUSINESS==========,539530204,22,460.75,ELECTRICITY,13/04/12,
139629,BRITISH GAS BUSINESS==========,539530204,23,440.07,ELECTRICITY,13/04/12,
139629,BRITISH GAS BUSINESS==========,539530204,24,"2,578.30",ELECTRICITY,13/04/12,
139629,BRITISH GAS BUSINESS==========,539530204,25,635.42,ELECTRICITY,13/04/12,
139629,BRITISH GAS BUSINESS==========,539530204,26,23.75,ELECTRICITY,13/04/12,
139629,BRITISH GAS BUSINESS==========,539530204,27,483.67,ELECTRICITY,13/04/12,
139629,BRITISH GAS BUSINESS==========,539530204,28,523.50,ELECTRICITY,13/04/12,
139629,BRITISH GAS BUSINESS==========,539530204,29,652.09,ELECTRICITY,13/04/12,
139629,BRITISH GAS BUSINESS==========,539530204,30,693.14,GROUNDS MAINTENANCE,13/04/12,
139629,BRITISH GAS BUSINESS==========,539530204,31,488.92,ELECTRICITY,13/04/12,
139630,BRITISH GAS BUSINESS==========,539530205,1,530.05,ELECTRICITY,13/04/12,"5,790.99"
139630,BRITISH GAS BUSINESS==========,539530205,2,"1,391.25",ELECTRICITY,13/04/12,
139630,BRITISH GAS BUSINESS==========,539530205,3,476.99,ELECTRICITY,13/04/12,
139630,BRITISH GAS BUSINESS==========,539530205,4,305.64,ELECTRICITY,13/04/12,
139630,BRITISH GAS BUSINESS==========,539530205,5,16.32,ELECTRICITY,13/04/12,
139630,BRITISH GAS BUSINESS==========,539530205,6,18.50,ELECTRICITY,13/04/12,
139630,BRITISH GAS BUSINESS==========,539530205,7,42.80,ELECTRICITY,13/04/12,
139630,BRITISH GAS BUSINESS==========,539530205,8,447.68,ELECTRICITY,13/04/12,
139630,BRITISH GAS BUSINESS==========,539530205,9,420.13,ELECTRICITY,13/04/12,
139630,BRITISH GAS BUSINESS==========,539530205,10,385.67,ELECTRICITY,13/04/12,
139630,BRITISH GAS BUSINESS==========,539530205,11,347.09,ELECTRICITY,13/04/12,
139630,BRITISH GAS BUSINESS==========,539530205,12,583.89,ELECTRICITY,13/04/12,
139630,BRITISH GAS BUSINESS==========,539530205,13,550.94,ELECTRICITY,13/04/12,
139630,BRITISH GAS BUSINESS==========,539530205,14,258.67,ELECTRICITY,13/04/12,
139630,BRITISH GAS BUSINESS==========,539530205,15,15.37,ELECTRICITY,13/04/12,
139634,BRITISH GAS BUSINESS==========,54397934/1,1,"2,194.52",ELECTRICITY,13/04/12,"2,194.52"
139632,CORBETT & SONS LIMITED========,5453,1,"8,978.33",STRATEGIC (NON CYCLICAL),13/04/12,"13,096.70"
139632,CORBETT & SONS LIMITED========,5453,2,"4,118.37",STRATEGIC (NON CYCLICAL),13/04/12,
139634,BRITISH GAS BUSINESS==========,54536844/1,1,"3,171.38",ELECTRICITY,13/04/12,"3,171.38"
139632,CORBETT & SONS LIMITED========,5454,1,"4,315.62",STRATEGIC (NON CYCLICAL),13/04/12,"7,922.05"
139632,CORBETT & SONS LIMITED========,5454,2,"3,606.43",STRATEGIC (NON CYCLICAL),13/04/12,
139631,THAMES WATER UTILITIES LTD====,5552098535B,1,757.85,WATER & SEWERAGE RATES,13/04/12,757.85
110412G,KINGSWOOD CONSTRUCTION,5798,1,"5,206.00",DEVELOPMENT EXP - CONTRACTORS,13/04/12,"5,206.00"
139633,ESSEX & SUFFOLK WATER PLC=====,602518200017C,1,787.04,WATER & SEWERAGE RATES,13/04/12,787.04
290312C,AEA TECHNOLOGY PLC============,6147356,1,"2,000.00",MAINTENANCE & SUPPORT,13/04/12,"2,000.00"
100412A,TOYOTA MATERIAL HANDLING UK LT,6337015,1,909.99,PURCHASE,13/04/12,909.99
110412G,BRAIDWAY LTD==================,6677,1,139.30,CLOTHING,13/04/12,"1,532.30"
110412G,BRAIDWAY LTD==================,6677,2,139.30,CLOTHING,13/04/12,
110412G,BRAIDWAY LTD==================,6677,3,139.30,CLOTHING,13/04/12,
110412G,BRAIDWAY LTD==================,6677,4,139.30,CLOTHING,13/04/12,
110412G,BRAIDWAY LTD==================,6677,5,139.30,CLOTHING,13/04/12,
110412G,BRAIDWAY LTD==================,6677,6,139.30,CLOTHING,13/04/12,
110412G,BRAIDWAY LTD==================,6677,7,139.30,CLOTHING,13/04/12,
110412G,BRAIDWAY LTD==================,6677,8,139.30,CLOTHING,13/04/12,
110412G,BRAIDWAY LTD==================,6677,9,139.30,CLOTHING,13/04/12,
110412G,BRAIDWAY LTD==================,6677,10,139.30,CLOTHING,13/04/12,
110412G,BRAIDWAY LTD==================,6677,11,139.30,CLOTHING,13/04/12,
050412A,MOORE STEPHENS CONSULTING LTD=,672856,1,"7,473.00",MAINTENANCE & SUPPORT,13/04/12,"7,473.00"
050412A,MOORE STEPHENS CONSULTING LTD=,672858,1,"2,500.00",MAINTENANCE & SUPPORT,13/04/12,"2,500.00"
050412A,MOORE STEPHENS CONSULTING LTD=,672859,1,"4,865.00",MAINTENANCE & SUPPORT,13/04/12,"4,865.00"
050412A,MOORE STEPHENS CONSULTING LTD=,672860,1,"7,000.00",MAINTENANCE & SUPPORT,13/04/12,"7,000.00"
050412A,MOORE STEPHENS CONSULTING LTD=,672862,1,"5,373.25",MAINTENANCE & SUPPORT,13/04/12,"5,373.25"
139631,THAMES WATER UTILITIES LTD====,6923096400D,1,783.25,WATER & SEWERAGE RATES,13/04/12,783.25
100412A,VIMPEX LIMITED================,70809,1,813.00,PROTECTIVE EQUIPMENT R & D,13/04/12,813.00
050412A,RIG SYSTEMS LTD===============,744,1,"8,150.00",TRAINING & CONFERENCES,13/04/12,"8,150.00"
110412G,CPL PETROLEUM=================,7471687,1,"1,167.70",FUEL,13/04/12,"1,167.70"
050412G,BERKSHIRE HEALTHCARE NHS TRUST,758113,1,"1,053.40",PROFESSIONAL SERVICES,13/04/12,"1,053.40"
040412C,NEXUS PROPERTY SERVICES,79291,1,"2,757.77",GENERAL,13/04/12,"2,757.77"
050412A,VCG KESTREL LIMITED===========,83324,1,"1,847.50",PRINTING,13/04/12,"1,847.50"
110412G,VCG KESTREL LIMITED===========,83326,1,"1,210.00",PRINTING,13/04/12,"1,210.00"
110412G,THE HAY GROUP MANAGEMENT LTD==,835-2987,1,800.00,PROFESSIONAL SERVICES,13/04/12,800.00
290312A,UNITED ENGINEERING SERVICES LT,8530,1,"2,165.62",CATERING FIXTURES,13/04/12,"2,165.62"
040412C,DRAEGER SAFETY UK LIMITED=====,90367634,1,"7,240.00",MODIFICATIONS,13/04/12,"7,240.00"
040412C,DRAEGER SAFETY UK LIMITED=====,90368133,1,"1,810.00",MODIFICATIONS,13/04/12,"1,810.00"
100412C,DRAEGER SAFETY UK LIMITED=====,90368930,1,35.20,PROTECTIVE EQUIPT - PARTS,13/04/12,"1,119.60"
100412C,DRAEGER SAFETY UK LIMITED=====,90368930,2,"1,084.40",PROTECTIVE EQUIPT - PARTS,13/04/12,
040412C,DRAEGER SAFETY UK LIMITED=====,90369136,1,831.00,PROTECTIVE EQUIPT - PARTS,13/04/12,831.00
040412C,DRAEGER SAFETY UK LIMITED=====,90369137,1,568.00,PROTECTIVE EQUIPT - PARTS,13/04/12,568.00
100412C,DRAEGER SAFETY UK LIMITED=====,90369756,1,836.44,PROTECTIVE EQUIPT - PARTS,13/04/12,836.44
030412C,CVQO,910203,1,600.00,TRAINING & CONFERENCES,13/04/12,600.00
290312C,THERMO ELECTRON RMP===========,9110179577,1,840.00,PROTECTIVE EQUIPT - PARTS,13/04/12,866.00
290312C,THERMO ELECTRON RMP===========,9110179577,2,26.00,REPAIR & MAINTENANCE,13/04/12,
040412C,THERMO ELECTRON RMP===========,9110179821,1,"1,918.00",REPAIR & MAINTENANCE,13/04/12,"2,044.00"
040412C,THERMO ELECTRON RMP===========,9110179821,2,126.00,REPAIR & MAINTENANCE,13/04/12,
100412C,FLOWRITE PLUMBING & HEATING LT,915,1,"2,121.00",DEVELOPMENT EXP - CONTRACTORS,13/04/12,"2,121.00"
040412C,FLOWRITE PLUMBING & HEATING LT,919,1,"58,562.95",DEVELOPMENT EXP - CONTRACTORS,13/04/12,"58,562.95"
110412G,*BANNER BUSINESS SUPPLIES LTD=,A-24308087,1,790.14,HYGIENE,13/04/12,790.14
290312C,THAMES WATER UTILITIES LTD====,CBA1204163,1,559.00,HYDRANTS,13/04/12,559.00
280312C,SURVITEC SERVICE &DISTRIBUTION,CD30687553,1,66.58,OPERATIONAL EQUIP-PURCHASE,13/04/12,789.74
280312C,SURVITEC SERVICE &DISTRIBUTION,CD30687553,2,118.00,OPERATIONAL EQUIP-PURCHASE,13/04/12,
280312C,SURVITEC SERVICE &DISTRIBUTION,CD30687553,3,133.16,OPERATIONAL EQUIP-PURCHASE,13/04/12,
280312C,SURVITEC SERVICE &DISTRIBUTION,CD30687553,4,472.00,OPERATIONAL EQUIP-PURCHASE,13/04/12,
110412G,E&S B DAVIS LTD===============,DAV/34116-2,1,"4,200.00",OPERATIONAL EQUIP-PURCHASE,13/04/12,"4,200.00"
100412A,KIER BUILDING SERV ENGINEERS==,F00033084,1,"1,783.19",STRATEGIC (NON CYCLICAL),13/04/12,"1,783.19"
100412A,KIER BUILDING SERV ENGINEERS==,F00033088,1,72.60,STRATEGIC (CYCLICAL),13/04/12,"6,003.77"
100412A,KIER BUILDING SERV ENGINEERS==,F00033088,2,348.56,STRATEGIC (CYCLICAL),13/04/12,
100412A,KIER BUILDING SERV ENGINEERS==,F00033088,3,265.66,STRATEGIC (CYCLICAL),13/04/12,
100412A,KIER BUILDING SERV ENGINEERS==,F00033088,4,46.42,STRATEGIC (CYCLICAL),13/04/12,
100412A,KIER BUILDING SERV ENGINEERS==,F00033088,5,95.48,STRATEGIC (CYCLICAL),13/04/12,
100412A,KIER BUILDING SERV ENGINEERS==,F00033088,6,242.16,STRATEGIC (CYCLICAL),13/04/12,
100412A,KIER BUILDING SERV ENGINEERS==,F00033088,7,66.66,STRATEGIC (CYCLICAL),13/04/12,
100412A,KIER BUILDING SERV ENGINEERS==,F00033088,8,107.14,STRATEGIC (CYCLICAL),13/04/12,
100412A,KIER BUILDING SERV ENGINEERS==,F00033088,9,295.54,STRATEGIC (CYCLICAL),13/04/12,
100412A,KIER BUILDING SERV ENGINEERS==,F00033088,10,43.12,STRATEGIC (CYCLICAL),13/04/12,
100412A,KIER BUILDING SERV ENGINEERS==,F00033088,11,41.14,STRATEGIC (CYCLICAL),13/04/12,
100412A,KIER BUILDING SERV ENGINEERS==,F00033088,12,33.61,STRATEGIC (CYCLICAL),13/04/12,
100412A,KIER BUILDING SERV ENGINEERS==,F00033088,13,305.26,STRATEGIC (CYCLICAL),13/04/12,
100412A,KIER BUILDING SERV ENGINEERS==,F00033088,14,41.14,STRATEGIC (CYCLICAL),13/04/12,
100412A,KIER BUILDING SERV ENGINEERS==,F00033088,15,43.56,STRATEGIC (CYCLICAL),13/04/12,
100412A,KIER BUILDING SERV ENGINEERS==,F00033088,16,45.76,STRATEGIC (CYCLICAL),13/04/12,
100412A,KIER BUILDING SERV ENGINEERS==,F00033088,17,51.04,STRATEGIC (CYCLICAL),13/04/12,
100412A,KIER BUILDING SERV ENGINEERS==,F00033088,18,275.51,STRATEGIC (CYCLICAL),13/04/12,
100412A,KIER BUILDING SERV ENGINEERS==,F00033088,19,66.44,STRATEGIC (CYCLICAL),13/04/12,
100412A,KIER BUILDING SERV ENGINEERS==,F00033088,20,256.06,STRATEGIC (CYCLICAL),13/04/12,
100412A,KIER BUILDING SERV ENGINEERS==,F00033088,21,71.51,STRATEGIC (CYCLICAL),13/04/12,
100412A,KIER BUILDING SERV ENGINEERS==,F00033088,22,95.80,STRATEGIC (CYCLICAL),13/04/12,
100412A,KIER BUILDING SERV ENGINEERS==,F00033088,23,172.26,STRATEGIC (CYCLICAL),13/04/12,
100412A,KIER BUILDING SERV ENGINEERS==,F00033088,24,55.00,STRATEGIC (CYCLICAL),13/04/12,
100412A,KIER BUILDING SERV ENGINEERS==,F00033088,25,55.00,STRATEGIC (CYCLICAL),13/04/12,
100412A,KIER BUILDING SERV ENGINEERS==,F00033088,26,80.26,STRATEGIC (CYCLICAL),13/04/12,
100412A,KIER BUILDING SERV ENGINEERS==,F00033088,27,278.23,STRATEGIC (CYCLICAL),13/04/12,
100412A,KIER BUILDING SERV ENGINEERS==,F00033088,28,71.51,STRATEGIC (CYCLICAL),13/04/12,
100412A,KIER BUILDING SERV ENGINEERS==,F00033088,29,41.80,STRATEGIC (CYCLICAL),13/04/12,
100412A,KIER BUILDING SERV ENGINEERS==,F00033088,30,52.80,STRATEGIC (CYCLICAL),13/04/12,
100412A,KIER BUILDING SERV ENGINEERS==,F00033088,31,50.82,STRATEGIC (CYCLICAL),13/04/12,
100412A,KIER BUILDING SERV ENGINEERS==,F00033088,32,48.62,STRATEGIC (CYCLICAL),13/04/12,
100412A,KIER BUILDING SERV ENGINEERS==,F00033088,33,56.76,STRATEGIC (CYCLICAL),13/04/12,
100412A,KIER BUILDING SERV ENGINEERS==,F00033088,34,842.86,STRATEGIC (CYCLICAL),13/04/12,
100412A,KIER BUILDING SERV ENGINEERS==,F00033088,35,404.06,STRATEGIC (CYCLICAL),13/04/12,
100412A,KIER BUILDING SERV ENGINEERS==,F00033088,36,442.19,STRATEGIC (CYCLICAL),13/04/12,
100412A,KIER BUILDING SERV ENGINEERS==,F00033088,37,441.43,STRATEGIC (CYCLICAL),13/04/12,
100412A,KIER BUILDING SERV ENGINEERS==,F00033092,1,"1,462.64",STRATEGIC (NON CYCLICAL),13/04/12,"1,462.64"
100412A,KIER BUILDING SERV ENGINEERS==,F00033101,1,"1,621.04",STRATEGIC (NON CYCLICAL),13/04/12,"1,621.04"
100412A,KIER BUILDING SERV ENGINEERS==,F00033107,1,"1,046.41",STRATEGIC (NON CYCLICAL),13/04/12,"1,046.41"
100412A,KIER BUILDING SERV ENGINEERS==,F00033141,1,"1,245.04",STRATEGIC (NON CYCLICAL),13/04/12,"1,245.04"
100412A,KIER BUILDING SERV ENGINEERS==,F00033145,1,"1,256.73",STRATEGIC (NON CYCLICAL),13/04/12,"1,256.73"
100412A,KIER BUILDING SERV ENGINEERS==,F00033148,1,"1,685.63",STRATEGIC (NON CYCLICAL),13/04/12,"1,685.63"
100412A,KIER BUILDING SERV ENGINEERS==,F00033150,1,"2,059.90",STRATEGIC (NON CYCLICAL),13/04/12,"2,059.90"
100412A,KIER BUILDING SERV ENGINEERS==,F00033151,1,528.00,STRATEGIC (NON CYCLICAL),13/04/12,528.00
100412A,KIER BUILDING SERV ENGINEERS==,F00033164,1,"2,050.00",STRATEGIC (NON CYCLICAL),13/04/12,"2,050.00"
100412A,KIER BUILDING SERV ENGINEERS==,F00033165,1,"2,745.00",STRATEGIC (NON CYCLICAL),13/04/12,"2,745.00"
100412A,KIER BUILDING SERV ENGINEERS==,F00033166,1,"6,977.00",STRATEGIC (NON CYCLICAL),13/04/12,"6,977.00"
100412A,KIER BUILDING SERV ENGINEERS==,F00033168,1,"1,104.00",STRATEGIC (NON CYCLICAL),13/04/12,"1,104.00"
100412A,KIER BUILDING SERV ENGINEERS==,F00033169,1,"2,502.00",STRATEGIC (NON CYCLICAL),13/04/12,"2,502.00"
100412A,KIER BUILDING SERV ENGINEERS==,F00033170,1,"1,049.00",STRATEGIC (NON CYCLICAL),13/04/12,"1,049.00"
100412A,KIER BUILDING SERV ENGINEERS==,F00033171,1,"1,086.00",STRATEGIC (NON CYCLICAL),13/04/12,"1,086.00"
100412A,KIER BUILDING SERV ENGINEERS==,F00033172,1,936.00,STRATEGIC (NON CYCLICAL),13/04/12,936.00
280312C,FC MEDIA LTD,FCM10/189,1,"8,150.00",FILM & VIDEO,13/04/12,"8,150.00"
110412G,AGE CONCERN HAVERING==========,FEBRUARY 2012,1,770.00,HFSC - HAVERING BOROUGH,13/04/12,770.00
260312A,MOTT MACDONALD============,IN00236265,1,"12,800.00",PROFESSIONAL SERVICES,13/04/12,"12,800.00"
100412A,RSM TENON LTD=================,ITA1310,1,"19,000.00",PROFESSIONAL SERVICES,13/04/12,"19,000.00"
030412C,FM CONWAY LTD.================,J0076004,1,"5,656.05",DEVELOPMENT EXP - CONTRACTORS,13/04/12,"5,656.05"
110412G,AGE CONCERN HAVERING==========,JANUARY 2012,1,560.00,HFSC - HAVERING BOROUGH,13/04/12,560.00
050412A,JACKSON LIFT GROUP============,JS280863R,1,75.00,STRATEGIC (NON CYCLICAL),13/04/12,"3,544.00"
050412A,JACKSON LIFT GROUP============,JS280863R,2,240.00,STRATEGIC (NON CYCLICAL),13/04/12,
050412A,JACKSON LIFT GROUP============,JS280863R,3,473.00,STRATEGIC (NON CYCLICAL),13/04/12,
050412A,JACKSON LIFT GROUP============,JS280863R,4,201.00,STRATEGIC (NON CYCLICAL),13/04/12,
050412A,JACKSON LIFT GROUP============,JS280863R,5,376.00,STRATEGIC (NON CYCLICAL),13/04/12,
050412A,JACKSON LIFT GROUP============,JS280863R,6,364.00,STRATEGIC (NON CYCLICAL),13/04/12,
050412A,JACKSON LIFT GROUP============,JS280863R,7,"1,041.00",STRATEGIC (NON CYCLICAL),13/04/12,
050412A,JACKSON LIFT GROUP============,JS280863R,8,92.00,STRATEGIC (NON CYCLICAL),13/04/12,
050412A,JACKSON LIFT GROUP============,JS280863R,9,559.00,STRATEGIC (NON CYCLICAL),13/04/12,
050412A,JACKSON LIFT GROUP============,JS280863R,10,123.00,STRATEGIC (NON CYCLICAL),13/04/12,
030412F,WORCESTER CASUALTIES UNION====,MARCH 2012,1,755.50,TRAINING & CONFERENCES,13/04/12,755.50
100412A,CANNONS MSA LTD,NV1043203,1,"1,716.20",ACQUISITIONS,13/04/12,"1,716.20"
050412A,PILLINGER CONTROLS LTD========,PI70053,1,225.00,STRATEGIC (CYCLICAL),13/04/12,"12,234.55"
050412A,PILLINGER CONTROLS LTD========,PI70053,2,500.38,STRATEGIC (CYCLICAL),13/04/12,
050412A,PILLINGER CONTROLS LTD========,PI70053,3,500.40,STRATEGIC (CYCLICAL),13/04/12,
050412A,PILLINGER CONTROLS LTD========,PI70053,4,500.40,STRATEGIC (CYCLICAL),13/04/12,
050412A,PILLINGER CONTROLS LTD========,PI70053,5,500.40,STRATEGIC (CYCLICAL),13/04/12,
050412A,PILLINGER CONTROLS LTD========,PI70053,6,500.40,STRATEGIC (CYCLICAL),13/04/12,
050412A,PILLINGER CONTROLS LTD========,PI70053,7,500.40,STRATEGIC (CYCLICAL),13/04/12,
050412A,PILLINGER CONTROLS LTD========,PI70053,8,"2,001.59",STRATEGIC (CYCLICAL),13/04/12,
050412A,PILLINGER CONTROLS LTD========,PI70053,9,"1,000.80",STRATEGIC (CYCLICAL),13/04/12,
050412A,PILLINGER CONTROLS LTD========,PI70053,10,500.40,STRATEGIC (CYCLICAL),13/04/12,
050412A,PILLINGER CONTROLS LTD========,PI70053,11,500.40,STRATEGIC (CYCLICAL),13/04/12,
050412A,PILLINGER CONTROLS LTD========,PI70053,12,500.40,STRATEGIC (CYCLICAL),13/04/12,
050412A,PILLINGER CONTROLS LTD========,PI70053,13,500.40,STRATEGIC (CYCLICAL),13/04/12,
050412A,PILLINGER CONTROLS LTD========,PI70053,14,"4,003.18",STRATEGIC (CYCLICAL),13/04/12,
110412G,BARNETT WADDINGHAM LLP,S12/0376,1,"1,000.00",PROFESSIONAL SERVICES,13/04/12,"1,000.00"
050412G,OPENHOUSE PRODUCTS LTD========,SI008262,1,"2,713.24",GENERAL CONSUMABLES,13/04/12,"2,713.24"
040412C,SUTTON & EAST SURREY WATER PLC,SI025932,1,985.00,CURRENT HYDRANT COSTS,13/04/12,985.00
100412A,GROUND CONTROL LIMITED,SIN000585,1,12.50,GROUNDS MAINTENANCE,13/04/12,"1,009.83"
100412A,GROUND CONTROL LIMITED,SIN000585,2,12.50,GROUNDS MAINTENANCE,13/04/12,
100412A,GROUND CONTROL LIMITED,SIN000585,3,55.17,GROUNDS MAINTENANCE,13/04/12,
100412A,GROUND CONTROL LIMITED,SIN000585,4,12.50,GROUNDS MAINTENANCE,13/04/12,
100412A,GROUND CONTROL LIMITED,SIN000585,5,40.00,GROUNDS MAINTENANCE,13/04/12,
100412A,GROUND CONTROL LIMITED,SIN000585,6,40.00,GROUNDS MAINTENANCE,13/04/12,
100412A,GROUND CONTROL LIMITED,SIN000585,7,12.50,GROUNDS MAINTENANCE,13/04/12,
100412A,GROUND CONTROL LIMITED,SIN000585,8,12.50,GROUNDS MAINTENANCE,13/04/12,
100412A,GROUND CONTROL LIMITED,SIN000585,9,51.83,GROUNDS MAINTENANCE,13/04/12,
100412A,GROUND CONTROL LIMITED,SIN000585,10,12.50,GROUNDS MAINTENANCE,13/04/12,
100412A,GROUND CONTROL LIMITED,SIN000585,11,12.50,GROUNDS MAINTENANCE,13/04/12,
100412A,GROUND CONTROL LIMITED,SIN000585,12,58.08,GROUNDS MAINTENANCE,13/04/12,
100412A,GROUND CONTROL LIMITED,SIN000585,13,43.50,GROUNDS MAINTENANCE,13/04/12,
100412A,GROUND CONTROL LIMITED,SIN000585,14,47.25,GROUNDS MAINTENANCE,13/04/12,
100412A,GROUND CONTROL LIMITED,SIN000585,15,12.50,GROUNDS MAINTENANCE,13/04/12,
100412A,GROUND CONTROL LIMITED,SIN000585,16,12.50,GROUNDS MAINTENANCE,13/04/12,
100412A,GROUND CONTROL LIMITED,SIN000585,17,12.50,GROUNDS MAINTENANCE,13/04/12,
100412A,GROUND CONTROL LIMITED,SIN000585,18,47.25,GROUNDS MAINTENANCE,13/04/12,
100412A,GROUND CONTROL LIMITED,SIN000585,19,15.00,GROUNDS MAINTENANCE,13/04/12,
100412A,GROUND CONTROL LIMITED,SIN000585,20,12.50,GROUNDS MAINTENANCE,13/04/12,
100412A,GROUND CONTROL LIMITED,SIN000585,21,12.50,GROUNDS MAINTENANCE,13/04/12,
100412A,GROUND CONTROL LIMITED,SIN000585,22,48.50,GROUNDS MAINTENANCE,13/04/12,
100412A,GROUND CONTROL LIMITED,SIN000585,23,12.50,GROUNDS MAINTENANCE,13/04/12,
100412A,GROUND CONTROL LIMITED,SIN000585,24,12.50,GROUNDS MAINTENANCE,13/04/12,
100412A,GROUND CONTROL LIMITED,SIN000585,25,12.50,GROUNDS MAINTENANCE,13/04/12,
100412A,GROUND CONTROL LIMITED,SIN000585,26,47.25,GROUNDS MAINTENANCE,13/04/12,
100412A,GROUND CONTROL LIMITED,SIN000585,27,43.50,GROUNDS MAINTENANCE,13/04/12,
100412A,GROUND CONTROL LIMITED,SIN000585,28,12.50,GROUNDS MAINTENANCE,13/04/12,
100412A,GROUND CONTROL LIMITED,SIN000585,29,43.50,GROUNDS MAINTENANCE,13/04/12,
100412A,GROUND CONTROL LIMITED,SIN000585,30,15.00,GROUNDS MAINTENANCE,13/04/12,
100412A,GROUND CONTROL LIMITED,SIN000585,31,47.25,GROUNDS MAINTENANCE,13/04/12,
100412A,GROUND CONTROL LIMITED,SIN000585,32,47.25,GROUNDS MAINTENANCE,13/04/12,
100412A,GROUND CONTROL LIMITED,SIN000585,33,47.25,GROUNDS MAINTENANCE,13/04/12,
100412A,GROUND CONTROL LIMITED,SIN000585,34,12.50,GROUNDS MAINTENANCE,13/04/12,
100412A,GROUND CONTROL LIMITED,SIN000585,35,47.25,GROUNDS MAINTENANCE,13/04/12,
100412A,GROUND CONTROL LIMITED,SIN000585,36,12.50,GROUNDS MAINTENANCE,13/04/12,
100412A,GROUND CONTROL LIMITED,SIN000586,1,76.84,GROUNDS MAINTENANCE,13/04/12,803.92
100412A,GROUND CONTROL LIMITED,SIN000586,2,12.50,GROUNDS MAINTENANCE,13/04/12,
100412A,GROUND CONTROL LIMITED,SIN000586,3,12.50,GROUNDS MAINTENANCE,13/04/12,
100412A,GROUND CONTROL LIMITED,SIN000586,4,47.58,GROUNDS MAINTENANCE,13/04/12,
100412A,GROUND CONTROL LIMITED,SIN000586,5,9.50,GROUNDS MAINTENANCE,13/04/12,
100412A,GROUND CONTROL LIMITED,SIN000586,6,33.25,GROUNDS MAINTENANCE,13/04/12,
100412A,GROUND CONTROL LIMITED,SIN000586,7,13.75,GROUNDS MAINTENANCE,13/04/12,
100412A,GROUND CONTROL LIMITED,SIN000586,8,13.75,GROUNDS MAINTENANCE,13/04/12,
100412A,GROUND CONTROL LIMITED,SIN000586,9,39.75,GROUNDS MAINTENANCE,13/04/12,
100412A,GROUND CONTROL LIMITED,SIN000586,10,39.75,GROUNDS MAINTENANCE,13/04/12,
100412A,GROUND CONTROL LIMITED,SIN000586,11,12.50,GROUNDS MAINTENANCE,13/04/12,
100412A,GROUND CONTROL LIMITED,SIN000586,12,12.50,GROUNDS MAINTENANCE,13/04/12,
100412A,GROUND CONTROL LIMITED,SIN000586,13,43.50,GROUNDS MAINTENANCE,13/04/12,
100412A,GROUND CONTROL LIMITED,SIN000586,14,39.75,GROUNDS MAINTENANCE,13/04/12,
100412A,GROUND CONTROL LIMITED,SIN000586,15,12.50,GROUNDS MAINTENANCE,13/04/12,
100412A,GROUND CONTROL LIMITED,SIN000586,16,12.50,GROUNDS MAINTENANCE,13/04/12,
100412A,GROUND CONTROL LIMITED,SIN000586,17,12.50,GROUNDS MAINTENANCE,13/04/12,
100412A,GROUND CONTROL LIMITED,SIN000586,18,12.50,GROUNDS MAINTENANCE,13/04/12,
100412A,GROUND CONTROL LIMITED,SIN000586,19,12.50,GROUNDS MAINTENANCE,13/04/12,
100412A,GROUND CONTROL LIMITED,SIN000586,20,12.50,GROUNDS MAINTENANCE,13/04/12,
100412A,GROUND CONTROL LIMITED,SIN000586,21,12.50,GROUNDS MAINTENANCE,13/04/12,
100412A,GROUND CONTROL LIMITED,SIN000586,22,12.50,GROUNDS MAINTENANCE,13/04/12,
100412A,GROUND CONTROL LIMITED,SIN000586,23,62.25,GROUNDS MAINTENANCE,13/04/12,
100412A,GROUND CONTROL LIMITED,SIN000586,24,12.50,GROUNDS MAINTENANCE,13/04/12,
100412A,GROUND CONTROL LIMITED,SIN000586,25,12.50,GROUNDS MAINTENANCE,13/04/12,
100412A,GROUND CONTROL LIMITED,SIN000586,26,12.50,GROUNDS MAINTENANCE,13/04/12,
100412A,GROUND CONTROL LIMITED,SIN000586,27,33.25,GROUNDS MAINTENANCE,13/04/12,
100412A,GROUND CONTROL LIMITED,SIN000586,28,12.50,GROUNDS MAINTENANCE,13/04/12,
100412A,GROUND CONTROL LIMITED,SIN000586,29,33.25,GROUNDS MAINTENANCE,13/04/12,
100412A,GROUND CONTROL LIMITED,SIN000586,30,37.00,GROUNDS MAINTENANCE,13/04/12,
100412A,GROUND CONTROL LIMITED,SIN000586,31,37.00,GROUNDS MAINTENANCE,13/04/12,
100412A,GROUND CONTROL LIMITED,SIN000586,32,12.50,GROUNDS MAINTENANCE,13/04/12,
100412A,GROUND CONTROL LIMITED,SIN000586,33,12.50,GROUNDS MAINTENANCE,13/04/12,
100412A,GROUND CONTROL LIMITED,SIN000586,34,12.50,GROUNDS MAINTENANCE,13/04/12,
100412A,GROUND CONTROL LIMITED,SIN000586,35,6.25,GROUNDS MAINTENANCE,13/04/12,
040412C,FIRE SERVICE COLLEGE==========,SIN049658,1,"6,500.00",TRAINING & CONFERENCES,13/04/12,"6,500.00"
100412A,COSMUR CONSTRUCTION LTD,SL004891,1,"191,340.00",DEVELOPMENT EXP - CONTRACTORS,13/04/12,"191,340.00"
120412G,APPLUS LLT,00067,1,"3,750.00",GENERAL,17/04/12,"3,750.00"
120412G,APPLUS LLT,00073,1,"3,750.00",GENERAL,17/04/12,"3,750.00"
139638,H M LAND REGISTRY=============,7344A,1,660.00,MISCELLANEOUS DISBURSEMENTS,17/04/12,660.00
030412C,FIRE INVESTIGATIONS (UK) LTD,#INV-20120329-15,1,"3,422.14",GENERAL,19/04/12,"3,422.14"
120412G,LONDON AMBULANCE SERVICE NHS T,0000053133,1,571.89,TRAINING & CONFERENCES,19/04/12,571.89
110412C,HEALTH MANAGEMENT LIMITED=====,0000082277,1,"113,556.67",OHS CONTRACT,19/04/12,"113,556.67"
110412C,HEALTH MANAGEMENT LIMITED=====,0000082306,1,625.00,THIRD PARTY REPORTS,19/04/12,625.00
110412C,HEALTH MANAGEMENT LIMITED=====,0000082475,1,"6,550.00",MEDICAL APPEALS,19/04/12,"6,550.00"
050412A,PACKEXE LTD===================,0000140108,1,524.85,PROTECTIVE EQUIPMENT R & D,19/04/12,524.85
139638,GOOD ENERGY===================,003016060T,1,"1,664.36",ELECTRICITY,19/04/12,"1,664.36"
160412A,GREY MATTER LTD===============,0270929,1,605.22,MAINTENANCE & SUPPORT,19/04/12,605.22
160412A,*PRINCIPAL CATERING CONSULTNTS,047267,1,676.00,REFRESHMENTS,19/04/12,820.00
160412A,*PRINCIPAL CATERING CONSULTNTS,047267,2,144.00,REFRESHMENTS,19/04/12,
130412C,HAYS ACCOUNTANCY & FINANCE====,1001973750,1,696.00,FRS STAFF AGENCY,19/04/12,696.00
130412C,HAYS ACCOUNTANCY & FINANCE====,1001995305,1,696.00,FRS STAFF AGENCY,19/04/12,696.00
160412A,DERBY UNITEX LTD==============,1016,1,421.00,OPERATIONAL EQUIP-PURCHASE,19/04/12,"3,825.00"
160412A,DERBY UNITEX LTD==============,1016,2,"1,295.00",OPERATIONAL EQUIP-PURCHASE,19/04/12,
160412A,DERBY UNITEX LTD==============,1016,3,"1,295.00",OPERATIONAL EQUIP-PURCHASE,19/04/12,
160412A,DERBY UNITEX LTD==============,1016,4,814.00,OPERATIONAL EQUIP-PURCHASE,19/04/12,
110412C,*SPRUE SAFETY PRODUCTS LTD====,1030844,1,"1,896.00",FIRE DETECTORS,19/04/12,"1,896.00"
110412C,*SPRUE SAFETY PRODUCTS LTD====,1030848,1,"1,390.40",FIRE DETECTORS,19/04/12,"1,390.40"
110412C,*SPRUE SAFETY PRODUCTS LTD====,1030849,1,758.40,FIRE DETECTORS,19/04/12,758.40
110412C,*SPRUE SAFETY PRODUCTS LTD====,1030851,1,"1,390.40",FIRE DETECTORS,19/04/12,"1,390.40"
110412C,*SPRUE SAFETY PRODUCTS LTD====,1030854,1,"1,390.40",FIRE DETECTORS,19/04/12,"1,390.40"
110412C,*SPRUE SAFETY PRODUCTS LTD====,1030855,1,"1,390.40",FIRE DETECTORS,19/04/12,"1,390.40"
110412C,*SPRUE SAFETY PRODUCTS LTD====,1030856,1,"1,390.40",FIRE DETECTORS,19/04/12,"1,390.40"
110412C,*SPRUE SAFETY PRODUCTS LTD====,1030857,1,"1,390.40",FIRE DETECTORS,19/04/12,"1,390.40"
110412C,*SPRUE SAFETY PRODUCTS LTD====,1030858,1,"1,390.40",FIRE DETECTORS,19/04/12,"1,390.40"
110412C,*SPRUE SAFETY PRODUCTS LTD====,1030859,1,758.40,FIRE DETECTORS,19/04/12,758.40
120412C,*SPRUE SAFETY PRODUCTS LTD====,1030866,1,"1,390.40",FIRE DETECTORS,19/04/12,"1,390.40"
120412C,*SPRUE SAFETY PRODUCTS LTD====,1030867,1,"1,390.40",FIRE DETECTORS,19/04/12,"1,390.40"
120412C,*SPRUE SAFETY PRODUCTS LTD====,1030878,1,758.40,FIRE DETECTORS,19/04/12,758.40
120412C,*SPRUE SAFETY PRODUCTS LTD====,1030880,1,758.40,FIRE DETECTORS,19/04/12,758.40
120412C,*SPRUE SAFETY PRODUCTS LTD====,1030883,1,"2,148.80",FIRE DETECTORS,19/04/12,"2,148.80"
120412C,*SPRUE SAFETY PRODUCTS LTD====,1030884,1,"2,148.80",FIRE DETECTORS,19/04/12,"2,148.80"
120412C,*SPRUE SAFETY PRODUCTS LTD====,1030886,1,"2,148.80",FIRE DETECTORS,19/04/12,"2,148.80"
120412C,*SPRUE SAFETY PRODUCTS LTD====,1030890,1,"1,011.20",FIRE DETECTORS,19/04/12,"1,011.20"
120412C,*SPRUE SAFETY PRODUCTS LTD====,1030891,1,"2,148.80",FIRE DETECTORS,19/04/12,"2,148.80"
120412C,*SPRUE SAFETY PRODUCTS LTD====,1030892,1,"2,148.80",FIRE DETECTORS,19/04/12,"2,148.80"
110412C,*SPRUE SAFETY PRODUCTS LTD====,1030893,1,"2,148.80",FIRE DETECTORS,19/04/12,"2,148.80"
110412C,*SPRUE SAFETY PRODUCTS LTD====,1030894,1,"1,011.20",FIRE DETECTORS,19/04/12,"1,011.20"
110412C,*SPRUE SAFETY PRODUCTS LTD====,1030898,1,"2,148.80",FIRE DETECTORS,19/04/12,"2,148.80"
110412C,*SPRUE SAFETY PRODUCTS LTD====,1030900,1,"1,011.20",FIRE DETECTORS,19/04/12,"1,011.20"
110412C,*SPRUE SAFETY PRODUCTS LTD====,1030901,1,"1,011.20",FIRE DETECTORS,19/04/12,"1,011.20"
110412C,*SPRUE SAFETY PRODUCTS LTD====,1030907,1,"2,148.80",FIRE DETECTORS,19/04/12,"2,148.80"
110412C,*SPRUE SAFETY PRODUCTS LTD====,1030910,1,"1,137.60",FIRE DETECTORS,19/04/12,"1,137.60"
800009538,JAMES HUNTER (OUTFITTERS) LTD=,105442,1,240.00,UNIFORMS - POMS,19/04/12,"3,120.00"
800009538,JAMES HUNTER (OUTFITTERS) LTD=,105442,2,480.00,UNIFORMS - POMS,19/04/12,
800009538,JAMES HUNTER (OUTFITTERS) LTD=,105442,3,240.00,UNIFORMS - POMS,19/04/12,
800009538,JAMES HUNTER (OUTFITTERS) LTD=,105442,4,480.00,UNIFORMS - POMS,19/04/12,
800009538,JAMES HUNTER (OUTFITTERS) LTD=,105442,5,480.00,UNIFORMS - POMS,19/04/12,
800009538,JAMES HUNTER (OUTFITTERS) LTD=,105442,6,480.00,UNIFORMS - POMS,19/04/12,
800009538,JAMES HUNTER (OUTFITTERS) LTD=,105442,7,240.00,UNIFORMS - POMS,19/04/12,
800009538,JAMES HUNTER (OUTFITTERS) LTD=,105442,8,240.00,UNIFORMS - POMS,19/04/12,
800009538,JAMES HUNTER (OUTFITTERS) LTD=,105442,9,240.00,UNIFORMS - POMS,19/04/12,
040412C,VISTA LANDSCAPE MANAGEMENT LTD,116344,1,139.90,GROUNDS MAINTENANCE,19/04/12,"2,916.46"
040412C,VISTA LANDSCAPE MANAGEMENT LTD,116344,2,22.36,GROUNDS MAINTENANCE,19/04/12,
040412C,VISTA LANDSCAPE MANAGEMENT LTD,116344,3,24.88,GROUNDS MAINTENANCE,19/04/12,
040412C,VISTA LANDSCAPE MANAGEMENT LTD,116344,4,27.91,GROUNDS MAINTENANCE,19/04/12,
040412C,VISTA LANDSCAPE MANAGEMENT LTD,116344,5,108.87,GROUNDS MAINTENANCE,19/04/12,
040412C,VISTA LANDSCAPE MANAGEMENT LTD,116344,6,21.07,GROUNDS MAINTENANCE,19/04/12,
040412C,VISTA LANDSCAPE MANAGEMENT LTD,116344,7,28.79,GROUNDS MAINTENANCE,19/04/12,
040412C,VISTA LANDSCAPE MANAGEMENT LTD,116344,8,22.11,GROUNDS MAINTENANCE,19/04/12,
040412C,VISTA LANDSCAPE MANAGEMENT LTD,116344,9,18.70,GROUNDS MAINTENANCE,19/04/12,
040412C,VISTA LANDSCAPE MANAGEMENT LTD,116344,10,18.79,GROUNDS MAINTENANCE,19/04/12,
040412C,VISTA LANDSCAPE MANAGEMENT LTD,116344,11,22.33,GROUNDS MAINTENANCE,19/04/12,
040412C,VISTA LANDSCAPE MANAGEMENT LTD,116344,12,32.88,GROUNDS MAINTENANCE,19/04/12,
040412C,VISTA LANDSCAPE MANAGEMENT LTD,116344,13,119.78,GROUNDS MAINTENANCE,19/04/12,
040412C,VISTA LANDSCAPE MANAGEMENT LTD,116344,14,18.11,GROUNDS MAINTENANCE,19/04/12,
040412C,VISTA LANDSCAPE MANAGEMENT LTD,116344,15,89.65,GROUNDS MAINTENANCE,19/04/12,
040412C,VISTA LANDSCAPE MANAGEMENT LTD,116344,16,24.80,GROUNDS MAINTENANCE,19/04/12,
040412C,VISTA LANDSCAPE MANAGEMENT LTD,116344,17,21.50,GROUNDS MAINTENANCE,19/04/12,
040412C,VISTA LANDSCAPE MANAGEMENT LTD,116344,18,137.39,GROUNDS MAINTENANCE,19/04/12,
040412C,VISTA LANDSCAPE MANAGEMENT LTD,116344,19,19.92,GROUNDS MAINTENANCE,19/04/12,
040412C,VISTA LANDSCAPE MANAGEMENT LTD,116344,20,21.46,GROUNDS MAINTENANCE,19/04/12,
040412C,VISTA LANDSCAPE MANAGEMENT LTD,116344,21,15.12,GROUNDS MAINTENANCE,19/04/12,
040412C,VISTA LANDSCAPE MANAGEMENT LTD,116344,22,20.59,GROUNDS MAINTENANCE,19/04/12,
040412C,VISTA LANDSCAPE MANAGEMENT LTD,116344,23,21.44,GROUNDS MAINTENANCE,19/04/12,
040412C,VISTA LANDSCAPE MANAGEMENT LTD,116344,24,25.14,GROUNDS MAINTENANCE,19/04/12,
040412C,VISTA LANDSCAPE MANAGEMENT LTD,116344,25,23.31,GROUNDS MAINTENANCE,19/04/12,
040412C,VISTA LANDSCAPE MANAGEMENT LTD,116344,26,63.86,GROUNDS MAINTENANCE,19/04/12,
040412C,VISTA LANDSCAPE MANAGEMENT LTD,116344,27,19.00,GROUNDS MAINTENANCE,19/04/12,
040412C,VISTA LANDSCAPE MANAGEMENT LTD,116344,28,18.87,GROUNDS MAINTENANCE,19/04/12,
040412C,VISTA LANDSCAPE MANAGEMENT LTD,116344,29,16.77,GROUNDS MAINTENANCE,19/04/12,
040412C,VISTA LANDSCAPE MANAGEMENT LTD,116344,30,86.79,GROUNDS MAINTENANCE,19/04/12,
040412C,VISTA LANDSCAPE MANAGEMENT LTD,116344,31,91.69,GROUNDS MAINTENANCE,19/04/12,
040412C,VISTA LANDSCAPE MANAGEMENT LTD,116344,32,20.17,GROUNDS MAINTENANCE,19/04/12,
040412C,VISTA LANDSCAPE MANAGEMENT LTD,116344,33,275.90,GROUNDS MAINTENANCE,19/04/12,
040412C,VISTA LANDSCAPE MANAGEMENT LTD,116344,34,19.66,GROUNDS MAINTENANCE,19/04/12,
040412C,VISTA LANDSCAPE MANAGEMENT LTD,116344,35,68.88,GROUNDS MAINTENANCE,19/04/12,
040412C,VISTA LANDSCAPE MANAGEMENT LTD,116344,36,18.18,GROUNDS MAINTENANCE,19/04/12,
040412C,VISTA LANDSCAPE MANAGEMENT LTD,116344,37,19.67,GROUNDS MAINTENANCE,19/04/12,
040412C,VISTA LANDSCAPE MANAGEMENT LTD,116344,38,18.99,GROUNDS MAINTENANCE,19/04/12,
040412C,VISTA LANDSCAPE MANAGEMENT LTD,116344,39,86.49,GROUNDS MAINTENANCE,19/04/12,
040412C,VISTA LANDSCAPE MANAGEMENT LTD,116344,40,127.95,GROUNDS MAINTENANCE,19/04/12,
040412C,VISTA LANDSCAPE MANAGEMENT LTD,116344,41,16.71,GROUNDS MAINTENANCE,19/04/12,
040412C,VISTA LANDSCAPE MANAGEMENT LTD,116344,42,747.41,GROUNDS MAINTENANCE,19/04/12,
040412C,VISTA LANDSCAPE MANAGEMENT LTD,116344,43,67.83,GROUNDS MAINTENANCE,19/04/12,
040412C,VISTA LANDSCAPE MANAGEMENT LTD,116344,44,59.93,GROUNDS MAINTENANCE,19/04/12,
040412C,VISTA LANDSCAPE MANAGEMENT LTD,116344,45,24.91,GROUNDS MAINTENANCE,19/04/12,
050412A,QUESTIONMARK COMPUTING LTD,13137,1,"8,230.00",PROFESSIONAL SERVICES,19/04/12,"8,230.00"
030412C,QAS SYSTEMS LTD===============,1344821,1,"3,000.00",PROFESSIONAL SERVICES,19/04/12,"3,000.00"
120412G,VECTOR COMMAND LTD============,1391,1,"45,000.00",MAINTENANCE & SUPPORT,19/04/12,"45,000.00"
130412C,AIRSERVICES(UK)===============,15409,1,832.00,REPAIR & MAINTENANCE,19/04/12,"1,027.00"
130412C,AIRSERVICES(UK)===============,15409,2,26.00,REPAIR & MAINTENANCE,19/04/12,
130412C,AIRSERVICES(UK)===============,15409,3,65.00,REPAIR & MAINTENANCE,19/04/12,
130412C,AIRSERVICES(UK)===============,15409,4,26.00,REPAIR & MAINTENANCE,19/04/12,
130412C,AIRSERVICES(UK)===============,15409,5,78.00,REPAIR & MAINTENANCE,19/04/12,
160412A,DRON & WRIGHT=================,15643,1,"1,032.50",PROFESSIONAL SERVICES,19/04/12,"1,032.50"
160412A,BRIGHT INTERACTIVE LTD========,158/0141/1,1,855.00,PROFESSIONAL SERVICES,19/04/12,855.00
120412C,PKF===========================,1686997,1,"2,893.00",PROFESSIONAL SERVICES,19/04/12,"2,893.00"
050412A,CAPITAL SAFETY GROUP,176960/176959,1,800.00,TRAINING & CONFERENCES,19/04/12,"2,521.60"
050412A,CAPITAL SAFETY GROUP,176960/176959,2,500.00,TRAINING & CONFERENCES,19/04/12,
050412A,CAPITAL SAFETY GROUP,176960/176959,3,500.00,TRAINING & CONFERENCES,19/04/12,
050412A,CAPITAL SAFETY GROUP,176960/176959,4,521.60,TRAINING & CONFERENCES,19/04/12,
050412A,CAPITAL SAFETY GROUP,176960/176959,5,200.00,TRAINING & CONFERENCES,19/04/12,
030412C,STORM TECHNOLOGIES============,178596,1,629.04,PROFESSIONAL FESS - MISC,19/04/12,689.82
030412C,STORM TECHNOLOGIES============,178596,2,60.78,PROFESSIONAL FESS - MISC,19/04/12,
040412C,STORM TECHNOLOGIES============,178675,1,492.63,ACQUISITIONS,19/04/12,502.49
040412C,STORM TECHNOLOGIES============,178675,2,9.86,ACQUISITIONS,19/04/12,
040412C,STORM TECHNOLOGIES============,178681,1,"1,970.52",ACQUISITIONS,19/04/12,"2,009.96"
040412C,STORM TECHNOLOGIES============,178681,2,39.44,ACQUISITIONS,19/04/12,
110412C,STORM TECHNOLOGIES============,179015,1,504.84,ACQUISITIONS,19/04/12,526.44
110412C,STORM TECHNOLOGIES============,179015,2,21.60,ACQUISITIONS,19/04/12,
139638,THAMES WATER UTILITIES LTD====,1896601041D,1,908.65,WATER & SEWERAGE RATES,19/04/12,908.65
040412C,PROFESSIONAL PROTECTION SYSTEM,19675,1,"2,480.00",OPERATIONAL EQUIP-PURCHASE,19/04/12,"5,907.00"
040412C,PROFESSIONAL PROTECTION SYSTEM,19675,2,"1,968.00",OPERATIONAL EQUIP-PURCHASE,19/04/12,
040412C,PROFESSIONAL PROTECTION SYSTEM,19675,3,312.00,OPERATIONAL EQUIP-PURCHASE,19/04/12,
040412C,PROFESSIONAL PROTECTION SYSTEM,19675,4,"1,092.00",OPERATIONAL EQUIP-PURCHASE,19/04/12,
040412C,PROFESSIONAL PROTECTION SYSTEM,19675,5,55.00,OPERATIONAL EQUIP-PURCHASE,19/04/12,
040412C,PROFESSIONAL PROTECTION SYSTEM,19676,1,"2,100.00",OPERATIONAL EQUIP-PURCHASE,19/04/12,"2,100.00"
120412C,BT REDCARE====================,20016238,1,920.00,TELECOMMUNICATIONS,19/04/12,920.00
120412C,BT REDCARE====================,20016239,1,"2,904.43",TELECOMMUNICATIONS,19/04/12,"2,904.43"
110412C,PRECISE MEDIA MONITORING LTD==,200618,1,"1,292.94",PRESS OFFICE,19/04/12,"1,292.94"
040412C,COTSWOLD OUTDOOR LTD==========,2012062526768,1,"1,306.53",OPERATIONAL EQUIP-PURCHASE,19/04/12,"1,819.77"
040412C,COTSWOLD OUTDOOR LTD==========,2012062526768,2,513.24,OPERATIONAL EQUIP-PURCHASE,19/04/12,
120412C,ACCLAIM CONTRACTS LTD=========,20884,1,"25,300.30",DEVELOPMENT EXP - CONTRACTORS,19/04/12,"25,300.30"
120412C,VODAFONE LIMITED==============,219657,1,"1,015.00",RADIO,19/04/12,"1,441.38"
120412C,VODAFONE LIMITED==============,219657,2,426.38,RADIO,19/04/12,
130412C,EFFECTUAL STORAGE LTD=========,22654,1,"1,232.50",PUBLIC RELATIONS,19/04/12,"1,232.50"
110412C,VIGLEN LIMITED,2299899,1,"1,600.00",PROFESSIONAL FEES - MISC,19/04/12,"5,500.00"
110412C,VIGLEN LIMITED,2299899,2,"1,650.00",PROFESSIONAL FEES - MISC,19/04/12,
110412C,VIGLEN LIMITED,2299899,3,"2,250.00",PROFESSIONAL FEES - MISC,19/04/12,
120412C,SCOTT MERRICK ASSOCIATES======,24252,1,"14,101.97",MAINTENANCE & SUPPORT,19/04/12,"14,101.97"
120412C,SCOTT MERRICK ASSOCIATES======,24253,1,"9,165.00",MAINTENANCE & SUPPORT,19/04/12,"9,165.00"
800009730,ADECCO UK LIMITED=============,25901303,1,930.00,FRS STAFF AGENCY,19/04/12,930.00
800009731,ADECCO UK LIMITED=============,25901304,1,"1,550.00",FRS STAFF AGENCY,19/04/12,"1,550.00"
800009732,ADECCO UK LIMITED=============,25901305,1,"1,550.00",FRS STAFF AGENCY,19/04/12,"1,550.00"
800009552,ADECCO UK LIMITED=============,25918946,1,"1,081.13",FRS STAFF AGENCY,19/04/12,"1,081.13"
800009553,ADECCO UK LIMITED=============,25918947,1,"1,081.13",FRS STAFF AGENCY,19/04/12,"1,081.13"
800009554,ADECCO UK LIMITED=============,25918950,1,"1,081.13",FRS STAFF AGENCY,19/04/12,"1,081.13"
800009714,ADECCO UK LIMITED=============,25922278,1,590.45,FRS STAFF AGENCY,19/04/12,590.45
800009715,ADECCO UK LIMITED=============,25922279,1,590.45,FRS STAFF AGENCY,19/04/12,590.45
800009546,ADECCO UK LIMITED=============,25925783,1,"1,081.13",FRS STAFF AGENCY,19/04/12,"1,081.13"
800009547,ADECCO UK LIMITED=============,25929122,1,"1,754.03",FRS STAFF AGENCY,19/04/12,"1,754.03"
800009548,ADECCO UK LIMITED=============,25929123,1,"1,435.99",FRS STAFF AGENCY,19/04/12,"1,435.99"
800009549,ADECCO UK LIMITED=============,25929124,1,"1,590.19",FRS STAFF AGENCY,19/04/12,"1,590.19"
800009550,ADECCO UK LIMITED=============,25929125,1,"1,657.65",FRS STAFF AGENCY,19/04/12,"1,657.65"
800009551,ADECCO UK LIMITED=============,25929126,1,983.03,FRS STAFF AGENCY,19/04/12,983.03
800009716,ADECCO UK LIMITED=============,25929131,1,590.45,FRS STAFF AGENCY,19/04/12,590.45
800009545,ADECCO UK LIMITED=============,25932123,1,"1,081.13",FRS STAFF AGENCY,19/04/12,"1,081.13"
800009680,ADECCO UK LIMITED=============,25937494A,1,699.00,FRS STAFF AGENCY,19/04/12,699.00
800009543,ADECCO UK LIMITED=============,25937495,1,"1,098.65",FRS STAFF AGENCY,19/04/12,"1,098.65"
800009544,ADECCO UK LIMITED=============,25941559,1,"1,081.13",FRS STAFF AGENCY,19/04/12,"1,081.13"
800009719,ADECCO UK LIMITED=============,25946300,1,506.10,FRS STAFF AGENCY,19/04/12,506.10
800009720,ADECCO UK LIMITED=============,25946301,1,775.00,FRS STAFF AGENCY,19/04/12,775.00
800009721,ADECCO UK LIMITED=============,25946302,1,"1,550.00",FRS STAFF AGENCY,19/04/12,"1,550.00"
800009722,ADECCO UK LIMITED=============,25946303,1,"1,550.00",FRS STAFF AGENCY,19/04/12,"1,550.00"
800009723,ADECCO UK LIMITED=============,25946304,1,"1,550.00",FRS STAFF AGENCY,19/04/12,"1,550.00"
800009724,ADECCO UK LIMITED=============,25946305,1,"1,550.00",FRS STAFF AGENCY,19/04/12,"1,550.00"
800009725,ADECCO UK LIMITED=============,25946306,1,"1,550.00",FRS STAFF AGENCY,19/04/12,"1,550.00"
800009726,ADECCO UK LIMITED=============,25946307,1,"1,550.00",FRS STAFF AGENCY,19/04/12,"1,550.00"
800009727,ADECCO UK LIMITED=============,25946308,1,"1,550.00",FRS STAFF AGENCY,19/04/12,"1,550.00"
800009728,ADECCO UK LIMITED=============,25946309,1,"1,550.00",FRS STAFF AGENCY,19/04/12,"1,550.00"
800009729,ADECCO UK LIMITED=============,25946310,1,"1,550.00",FRS STAFF AGENCY,19/04/12,"1,550.00"
800009676,ADECCO UK LIMITED=============,25949363,1,"1,738.40",FRS STAFF AGENCY,19/04/12,"1,738.40"
800009625,ADECCO UK LIMITED=============,25949364,1,626.50,FRS STAFF AGENCY,19/04/12,626.50
800009626,ADECCO UK LIMITED=============,25949365,1,776.30,FRS STAFF AGENCY,19/04/12,776.30
800009627,ADECCO UK LIMITED=============,25949366,1,973.20,FRS STAFF AGENCY,19/04/12,973.20
800009628,ADECCO UK LIMITED=============,25949367,1,579.60,FRS STAFF AGENCY,19/04/12,579.60
800009629,ADECCO UK LIMITED=============,25949368,1,579.60,FRS STAFF AGENCY,19/04/12,579.60
800009630,ADECCO UK LIMITED=============,25949369,1,719.49,FRS STAFF AGENCY,19/04/12,719.49
800009631,ADECCO UK LIMITED=============,25949370,1,"1,262.32",FRS STAFF AGENCY,19/04/12,"1,262.32"
800009632,ADECCO UK LIMITED=============,25949371,1,639.70,FRS STAFF AGENCY,19/04/12,639.70
800009634,ADECCO UK LIMITED=============,25949373,1,554.96,FRS STAFF AGENCY,19/04/12,554.96
800009635,ADECCO UK LIMITED=============,25949374,1,529.92,FRS STAFF AGENCY,19/04/12,529.92
800009638,ADECCO UK LIMITED=============,25949377,1,709.76,FRS STAFF AGENCY,19/04/12,709.76
800009640,ADECCO UK LIMITED=============,25949379,1,709.76,FRS STAFF AGENCY,19/04/12,709.76
800009643,ADECCO UK LIMITED=============,25949382,1,640.15,FRS STAFF AGENCY,19/04/12,640.15
800009644,ADECCO UK LIMITED=============,25949383,1,"1,081.13",FRS STAFF AGENCY,19/04/12,"1,081.13"
800009645,ADECCO UK LIMITED=============,25949384,1,"1,460.25",FRS STAFF AGENCY,19/04/12,"1,460.25"
800009646,ADECCO UK LIMITED=============,25949385,1,579.60,FRS STAFF AGENCY,19/04/12,579.60
800009647,ADECCO UK LIMITED=============,25949386,1,501.90,FRS STAFF AGENCY,19/04/12,501.90
800009734,ADECCO UK LIMITED=============,25949387,1,501.90,FRS STAFF AGENCY,19/04/12,501.90
800009649,ADECCO UK LIMITED=============,25949388,1,579.60,FRS STAFF AGENCY,19/04/12,579.60
800009654,ADECCO UK LIMITED=============,25949393,1,579.60,FRS STAFF AGENCY,19/04/12,579.60
800009655,ADECCO UK LIMITED=============,25949394,1,501.90,FRS STAFF AGENCY,19/04/12,501.90
800009656,ADECCO UK LIMITED=============,25949395,1,501.90,FRS STAFF AGENCY,19/04/12,501.90
800009657,ADECCO UK LIMITED=============,25949396,1,579.60,FRS STAFF AGENCY,19/04/12,579.60
800009659,ADECCO UK LIMITED=============,25949398,1,579.60,FRS STAFF AGENCY,19/04/12,579.60
800009660,ADECCO UK LIMITED=============,25949399,1,579.60,FRS STAFF AGENCY,19/04/12,579.60
800009664,ADECCO UK LIMITED=============,25949403,1,501.90,FRS STAFF AGENCY,19/04/12,501.90
800009665,ADECCO UK LIMITED=============,25949404,1,"1,588.50",FRS STAFF AGENCY,19/04/12,"1,588.50"
800009667,ADECCO UK LIMITED=============,25949406,1,521.64,FRS STAFF AGENCY,19/04/12,521.64
800009668,ADECCO UK LIMITED=============,25949407,1,776.30,FRS STAFF AGENCY,19/04/12,776.30
800009671,ADECCO UK LIMITED=============,25949412,1,776.30,FRS STAFF AGENCY,19/04/12,776.30
800009672,ADECCO UK LIMITED=============,25949413,1,579.25,FRS STAFF AGENCY,19/04/12,579.25
800009674,ADECCO UK LIMITED=============,25952417,1,740.00,FRS STAFF AGENCY,19/04/12,740.00
800009675,ADECCO UK LIMITED=============,25953125,1,579.60,FRS STAFF AGENCY,19/04/12,579.60
139632,MIS FUEL MONITORING LTD,27492,1,556.00,STRATEGIC (NON CYCLICAL),19/04/12,556.00
050412G,PRESCO========================,276017,1,650.00,OFFICE EQUIPMENT,19/04/12,650.00
130412C,CIPFA BUSINESS,3063582,1,"2,840.00",SUBSCRIPTIONS,19/04/12,"2,840.00"
701504,ARIA ESTATES LTD,33696**,1,"15,400.00",RENTS,19/04/12,"15,400.00"
120412C,CLASSIC VIDEO INTERNATIONAL===,36139,1,"13,000.00",PUBLIC RELATIONS,19/04/12,"17,511.00"
120412C,CLASSIC VIDEO INTERNATIONAL===,36139,2,"4,511.00",PUBLIC RELATIONS,19/04/12,
030412F,HAMPSHIRE FIRE AND RESCUE SERV,3630004123,1,"1,986.00",TRAINING & CONFERENCES,19/04/12,"1,986.00"
030412C,COMPUTACENTRE================,3803873930,1,"5,045.00",OFFICE EQUIPMENT,19/04/12,"5,045.00"
120412C,COMPUTACENTRE================,3803875782,1,331.25,MAINTENANCE & SUPPORT,19/04/12,"43,612.50"
120412C,COMPUTACENTRE================,3803875782,2,"2,343.75",MAINTENANCE & SUPPORT,19/04/12,
120412C,COMPUTACENTRE================,3803875782,3,"3,937.50",MAINTENANCE & SUPPORT,19/04/12,
120412C,COMPUTACENTRE================,3803875782,4,"2,343.75",MAINTENANCE & SUPPORT,19/04/12,
120412C,COMPUTACENTRE================,3803875782,5,"33,000.00",MAINTENANCE & SUPPORT,19/04/12,
120412C,COMPUTACENTRE================,3803875782,6,"1,187.50",MAINTENANCE & SUPPORT,19/04/12,
120412C,COMPUTACENTRE================,3803875782,7,468.75,MAINTENANCE & SUPPORT,19/04/12,
050412A,COMPUTACENTRE================,3803883331,1,425.00,ACQUISITIONS,19/04/12,637.50
050412A,COMPUTACENTRE================,3803883331,2,212.50,ACQUISITIONS,19/04/12,
139638,L B OF LAMBETH================,390009711,1,"4,125.00",PROPERTY RATES,19/04/12,"4,125.00"
120412C,CANON (UK) LTD===============,401187137,1,"6,419.89",OFFICE EQUIPMENT,19/04/12,"12,717.48"
120412C,CANON (UK) LTD===============,401187137,2,334.05,OFFICE EQUIPMENT,19/04/12,
120412C,CANON (UK) LTD===============,401187137,3,"5,804.18",OFFICE EQUIPMENT,19/04/12,
120412C,CANON (UK) LTD===============,401187137,4,159.36,OFFICE EQUIPMENT,19/04/12,
160412A,*BURLINGTON UNIFORMS LTD,407720,1,"4,818.24",UNIFORMS - POMS,19/04/12,"7,571.52"
160412A,*BURLINGTON UNIFORMS LTD,407720,2,"1,376.64",UNIFORMS - POMS,19/04/12,
160412A,*BURLINGTON UNIFORMS LTD,407720,3,"1,376.64",UNIFORMS - POMS,19/04/12,
130412G,*BURLINGTON UNIFORMS LTD,407846,1,"2,925.36",UNIFORMS - POMS,19/04/12,"2,925.36"
130412C,*BURLINGTON UNIFORMS LTD,407911,1,68.40,CLOTHING,19/04/12,547.20
130412C,*BURLINGTON UNIFORMS LTD,407911,2,68.40,CLOTHING,19/04/12,
130412C,*BURLINGTON UNIFORMS LTD,407911,3,68.40,CLOTHING,19/04/12,
130412C,*BURLINGTON UNIFORMS LTD,407911,4,68.40,CLOTHING,19/04/12,
130412C,*BURLINGTON UNIFORMS LTD,407911,5,68.40,CLOTHING,19/04/12,
130412C,*BURLINGTON UNIFORMS LTD,407911,6,68.40,CLOTHING,19/04/12,
130412C,*BURLINGTON UNIFORMS LTD,407911,7,68.40,CLOTHING,19/04/12,
130412C,*BURLINGTON UNIFORMS LTD,407911,8,68.40,CLOTHING,19/04/12,
160412C,*BURLINGTON UNIFORMS LTD,408076,1,"4,818.24",UNIFORMS - POMS,19/04/12,"4,818.24"
120412C,DICKINSON DEES================,4114426,1,"3,530.00",PROFESSIONAL SERVICES,19/04/12,"3,530.00"
160412C,REED CHILL CHEATER LTD,4427,1,787.66,OPERATIONAL EQUIP-PURCHASE,19/04/12,787.66
110412C,DISCLOSURE SCOTLAND===========,455288,1,"2,375.00",CRB CHECKS,19/04/12,"2,375.00"
100412C,DAVIES MAINTENANCE COMPANY LTD,4746,1,568.00,TACTICAL DAY TO DAY,19/04/12,568.00
160412A,LAKEHOUSE CONTRACTS LTD=======,515083,1,"292,770.00",DEVELOPMENT EXP - CONTRACTORS,19/04/12,"292,770.00"
130412G,VODAFONE LIMITED==============,58230680,1,"1,034.38",CELLULAR TELEPHONES,19/04/12,"1,034.38"
050412A,ANDERSON TRAVEL LTD===========,58824,1,435.00,CONTRACT HIRE,19/04/12,"1,305.00"
050412A,ANDERSON TRAVEL LTD===========,58824,2,870.00,CONTRACT HIRE,19/04/12,
130412G,VODAFONE LIMITED==============,59266631,1,598.94,CELLULAR TELEPHONES,19/04/12,598.94
130412G,VODAFONE LIMITED==============,61332788,1,962.78,CELLULAR TELEPHONES,19/04/12,962.78
130412G,VODAFONE LIMITED==============,62377893,1,950.55,CELLULAR TELEPHONES,19/04/12,950.55
120412C,LIEC PLC======================,62441,1,"32,846.63",PUBLIC RELATIONS,19/04/12,"32,846.63"
130412G,BRAIDWAY LTD==================,6680,1,139.30,CLOTHING,19/04/12,696.50
130412G,BRAIDWAY LTD==================,6680,2,139.30,CLOTHING,19/04/12,
130412G,BRAIDWAY LTD==================,6680,3,139.30,CLOTHING,19/04/12,
130412G,BRAIDWAY LTD==================,6680,4,139.30,CLOTHING,19/04/12,
130412G,BRAIDWAY LTD==================,6680,5,139.30,CLOTHING,19/04/12,
120412C,MOORE STEPHENS CONSULTING LTD=,672861,1,"4,000.00",PROFESSIONAL SERVICES,19/04/12,"9,250.00"
120412C,MOORE STEPHENS CONSULTING LTD=,672861,2,"3,500.00",PROFESSIONAL SERVICES,19/04/12,
120412C,MOORE STEPHENS CONSULTING LTD=,672861,3,"1,000.00",PROFESSIONAL SERVICES,19/04/12,
120412C,MOORE STEPHENS CONSULTING LTD=,672861,4,750.00,PROFESSIONAL SERVICES,19/04/12,
030412C,MAYORS OFF FOR POLICING&CRIME,6800081093,1,"45,000.00",GLA GROUP SHARED SERVICES,19/04/12,"45,000.00"
040412C,SWEETT  UK LTD,7011976,1,"1,862.44",PROFESSIONAL FEES - MISC,19/04/12,"1,862.44"
120412C,SHARPE PRITCHARD==============,73653,1,"41,629.00",PROFESSIONAL SERVICES,19/04/12,"41,629.00"
120412G,CPL PETROLEUM=================,7510108,1,"1,162.70",FUEL,19/04/12,"1,162.70"
120412G,CPL PETROLEUM=================,7563229,1,"3,484.80",FUEL,19/04/12,"3,484.80"
120412G,CPL PETROLEUM=================,7574850,1,"3,168.72",FUEL,19/04/12,"3,168.72"
130412C,CPL PETROLEUM=================,7588948,1,"2,372.00",FUEL,19/04/12,"2,372.00"
130412C,CPL PETROLEUM=================,7596173,1,587.00,FUEL,19/04/12,587.00
130412C,CPL PETROLEUM=================,7649845,1,"2,336.80",FUEL,19/04/12,"2,336.80"
130412C,CPL PETROLEUM=================,7651234,1,"1,075.18",FUEL,19/04/12,"1,075.18"
130412C,CPL PETROLEUM=================,7657812,1,"3,502.20",FUEL,19/04/12,"3,502.20"
130412C,CPL PETROLEUM=================,7657813,1,"2,685.02",FUEL,19/04/12,"2,685.02"
130412C,CPL PETROLEUM=================,7661283,1,"2,943.50",FUEL,19/04/12,"2,943.50"
130412C,CPL PETROLEUM=================,7661285,1,"2,949.75",FUEL,19/04/12,"2,949.75"
160412A,CPL PETROLEUM=================,7668214,1,"2,357.40",FUEL,19/04/12,"2,357.40"
160412A,CPL PETROLEUM=================,7668216,1,"1,160.70",FUEL,19/04/12,"1,160.70"
160412A,CPL PETROLEUM=================,7675468,1,"2,326.40",FUEL,19/04/12,"2,326.40"
160412A,CPL PETROLEUM=================,7675469,1,"2,321.40",FUEL,19/04/12,"2,321.40"
120412C,G4S TECHNOLOGY LIMITED========,836146,1,555.00,PREMISES SECURITY,19/04/12,555.00
120412C,G4S TECHNOLOGY LIMITED========,836279,1,536.50,PREMISES SECURITY,19/04/12,536.50
139641,TV LICENSING==================,900000518/MULREM,1,"5,092.50",LICENCES,19/04/12,"17,605.50"
139641,TV LICENSING==================,900000518/MULREM,2,"5,383.50",LICENCES,19/04/12,
139641,TV LICENSING==================,900000518/MULREM,3,"5,965.50",LICENCES,19/04/12,
139641,TV LICENSING==================,900000518/MULREM,4,"1,164.00",LICENCES,19/04/12,
120412G,NCC SERVICES LTD==============,900002160,1,"1,075.00",MAINTENANCE & SUPPORT,19/04/12,"1,075.00"
130412G,NATIONAL POLICING IMPROVEMENT,90037248,1,616.00,TRAINING & CONFERENCES,19/04/12,616.00
160412A,AMEY MECHANICAL & ELECTRICAL==,90303887,1,"16,242.31",TACTICAL DAY TO DAY,19/04/12,"80,854.62"
160412A,AMEY MECHANICAL & ELECTRICAL==,90303887,2,"3,659.59",TACTICAL DAY TO DAY,19/04/12,
160412A,AMEY MECHANICAL & ELECTRICAL==,90303887,3,"7,012.06",TACTICAL DAY TO DAY,19/04/12,
160412A,AMEY MECHANICAL & ELECTRICAL==,90303887,4,"36,694.89",STRATEGIC (CYCLICAL),19/04/12,
160412A,AMEY MECHANICAL & ELECTRICAL==,90303887,5,"12,503.15",STRATEGIC (CYCLICAL),19/04/12,
160412A,AMEY MECHANICAL & ELECTRICAL==,90303887,6,"1,563.94",STRATEGIC (CYCLICAL),19/04/12,
160412A,AMEY MECHANICAL & ELECTRICAL==,90303887,7,"1,101.10",STRATEGIC (CYCLICAL),19/04/12,
160412A,AMEY MECHANICAL & ELECTRICAL==,90303887,8,247.62,STRATEGIC (CYCLICAL),19/04/12,
160412A,AMEY MECHANICAL & ELECTRICAL==,90303887,9,"1,829.96",TACTICAL DAY TO DAY,19/04/12,
160412A,AMEY MECHANICAL & ELECTRICAL==,90303888,1,"2,099.18",STRATEGIC (CYCLICAL),19/04/12,"3,937.83"
160412A,AMEY MECHANICAL & ELECTRICAL==,90303888,2,724.78,STRATEGIC (CYCLICAL),19/04/12,
160412A,AMEY MECHANICAL & ELECTRICAL==,90303888,3,777.99,TACTICAL DAY TO DAY,19/04/12,
160412A,AMEY MECHANICAL & ELECTRICAL==,90303888,4,335.88,TACTICAL DAY TO DAY,19/04/12,
130412G,DRAEGER SAFETY UK LIMITED=====,90366499,1,"1,520.22",PROTECTIVE EQUIPT - PARTS,19/04/12,"1,520.22"
130412G,DRAEGER SAFETY UK LIMITED=====,90366521,1,852.00,PROTECTIVE EQUIPT - PARTS,19/04/12,852.00
040412C,DRAEGER SAFETY UK LIMITED=====,90369837,1,235.06,OPERATIONAL EQUIP-PURCHASE,19/04/12,813.39
040412C,DRAEGER SAFETY UK LIMITED=====,90369837,2,220.10,OPERATIONAL EQUIP-PURCHASE,19/04/12,
040412C,DRAEGER SAFETY UK LIMITED=====,90369837,3,263.14,OPERATIONAL EQUIP-PURCHASE,19/04/12,
040412C,DRAEGER SAFETY UK LIMITED=====,90369837,4,95.09,OPERATIONAL EQUIP-PURCHASE,19/04/12,
160412C,DRAEGER SAFETY UK LIMITED=====,90369939,1,"1,118.15",PROTECTIVE EQUIPT - PARTS,19/04/12,"1,118.15"
160412C,DRAEGER SAFETY UK LIMITED=====,90370229,1,948.00,PROTECTIVE EQUIPT - PARTS,19/04/12,980.28
160412C,DRAEGER SAFETY UK LIMITED=====,90370229,2,32.28,PROTECTIVE EQUIPT - PARTS,19/04/12,
160412C,DRAEGER SAFETY UK LIMITED=====,90370400,1,185.95,PROTECTIVE EQUIPT - PARTS,19/04/12,"2,146.35"
160412C,DRAEGER SAFETY UK LIMITED=====,90370400,2,"1,084.40",PROTECTIVE EQUIPT - PARTS,19/04/12,
160412C,DRAEGER SAFETY UK LIMITED=====,90370400,3,876.00,PROTECTIVE EQUIPT - PARTS,19/04/12,
110412C,THERMO ELECTRON RMP===========,9110180020,1,680.00,PROTECTIVE EQUIPT - PARTS,19/04/12,706.00
110412C,THERMO ELECTRON RMP===========,9110180020,2,26.00,REPAIR & MAINTENANCE,19/04/12,
110412C,NORTHUMBRIAN WATER LTD========,912613483,1,867.00,HYDRANTS,19/04/12,867.00
160412A,NORTHUMBRIAN WATER LTD========,912616989,1,867.00,CURRENT HYDRANT COSTS,19/04/12,867.00
110412C,SMITHS DETECTION WATFORD LTD.,92011047,1,"2,450.00",PROTECTIVE EQUIPMENT,19/04/12,"2,450.00"
110412G,FUTURE SAFETY LTD=============,929,1,"1,710.00",OPERATIONAL EQUIP-PURCHASE,19/04/12,"2,410.00"
110412G,FUTURE SAFETY LTD=============,929,2,700.00,OPERATIONAL EQUIP-PURCHASE,19/04/12,
139638,THAMES WATER UTILITIES LTD====,95240-85193D,1,855.16,WATER & SEWERAGE RATES,19/04/12,855.16
110412C,THALES SECURITY LIMITED,EI003361,1,"3,457.00",MAINTENANCE & SUPPORT,19/04/12,"5,727.00"
110412C,THALES SECURITY LIMITED,EI003361,2,"2,270.00",MAINTENANCE & SUPPORT,19/04/12,
100412A,KIER BUILDING SERV ENGINEERS==,F00033167,1,"1,958.00",STRATEGIC (NON CYCLICAL),19/04/12,"1,958.00"
120412C,KIER BUILDING SERV ENGINEERS==,F00033261,1,"1,218.02",STRATEGIC (NON CYCLICAL),19/04/12,"1,218.02"
120412C,KIER BUILDING SERV ENGINEERS==,F00033264,1,"1,313.20",STRATEGIC (NON CYCLICAL),19/04/12,"1,313.20"
160412A,KIER BUILDING SERV ENGINEERS==,F00033375,1,"1,489.05",STRATEGIC (NON CYCLICAL),19/04/12,"4,383.00"
160412A,KIER BUILDING SERV ENGINEERS==,F00033375,2,"2,893.95",STRATEGIC (NON CYCLICAL),19/04/12,
160412A,KIER BUILDING SERV ENGINEERS==,F00033432,1,"1,371.00",TACTICAL DAY TO DAY,19/04/12,"1,371.00"
160412A,KIER BUILDING SERV ENGINEERS==,F031236,1,"1,516.18",STRATEGIC (NON CYCLICAL),19/04/12,"1,516.18"
160412A,KIER BUILDING SERV ENGINEERS==,F031261,1,"1,544.19",STRATEGIC (NON CYCLICAL),19/04/12,"1,544.19"
130412G,BRISTOL UNIFORMS LTD==========,I179015,1,"188,676.85",CLOTHING,19/04/12,"188,676.85"
110412C,INFOTERRA=====================,IN023421,1,"22,500.00",MAINTENANCE & SUPPORT,19/04/12,"22,500.00"
100412G,STAR APIC (UK) LTD,INV-9627,1,"4,085.00",PROFESSIONAL FESS - MISC,19/04/12,"4,085.00"
139638,JCT600 CONTRACTS LIMITED======,INV00004649,1,697.63,LEASE CAR CHARGES,19/04/12,697.63
139638,JCT600 CONTRACTS LIMITED======,INV00004649,2,-61.45,VAT CAR LEASING,19/04/12,
139638,JCT600 CONTRACTS LIMITED======,INV00004649,3,61.45,LEASE CAR CHARGES,19/04/12,
139638,JCT600 CONTRACTS LIMITED======,INV00004651,1,549.53,LEASE CAR CHARGES,19/04/12,549.53
139638,JCT600 CONTRACTS LIMITED======,INV00004651,2,-48.41,VAT CAR LEASING,19/04/12,
139638,JCT600 CONTRACTS LIMITED======,INV00004651,3,48.41,LEASE CAR CHARGES,19/04/12,
030412F,FLYNN COMMUNICATIONS LTD,LFB#6,1,"2,500.00",PROFESSIONAL SERVICES,19/04/12,"2,500.00"
120412C,SMITH O'SULLIVAN LTD.=========,LFB/IFS/003,1,"6,180.09",STRATEGIC (NON CYCLICAL),19/04/12,"6,180.09"
160412A,*ALEXANDRA PLC================,OLSINV/356641-356650,1,"1,184.05",UNIFORMS - POMS,19/04/12,"1,184.05"
160412A,*ALEXANDRA PLC================,OLSINV/377138/9/40,1,597.00,UNIFORMS - POMS,19/04/12,597.00
120412G,ASSETCO EMERGENCY LTD=========,OP/I040721,1,"1,127.68",MODIFICATIONS,19/04/12,"1,127.68"
120412C,ASSETCO EMERGENCY LTD=========,OP/I040722,1,"14,518.29",VEHICLES,19/04/12,"22,071.47"
120412C,ASSETCO EMERGENCY LTD=========,OP/I040722,2,"4,034.21",CONTRACT HIRE,19/04/12,
120412C,ASSETCO EMERGENCY LTD=========,OP/I040722,3,"1,049.38",CONTRACT HIRE,19/04/12,
120412C,ASSETCO EMERGENCY LTD=========,OP/I040722,4,"2,469.59",CONTRACT HIRE,19/04/12,
120412C,ASSETCO EMERGENCY LTD=========,OP/I040723,1,"14,518.29",VEHICLES,19/04/12,"22,071.47"
120412C,ASSETCO EMERGENCY LTD=========,OP/I040723,2,"4,034.21",CONTRACT HIRE,19/04/12,
120412C,ASSETCO EMERGENCY LTD=========,OP/I040723,3,"1,049.38",CONTRACT HIRE,19/04/12,
120412C,ASSETCO EMERGENCY LTD=========,OP/I040723,4,"2,469.59",CONTRACT HIRE,19/04/12,
120412C,ASSETCO EMERGENCY LTD=========,OP/I040724,1,"14,518.29",VEHICLES,19/04/12,"22,071.47"
120412C,ASSETCO EMERGENCY LTD=========,OP/I040724,2,"4,034.21",CONTRACT HIRE,19/04/12,
120412C,ASSETCO EMERGENCY LTD=========,OP/I040724,3,"1,049.38",CONTRACT HIRE,19/04/12,
120412C,ASSETCO EMERGENCY LTD=========,OP/I040724,4,"2,469.59",CONTRACT HIRE,19/04/12,
120412G,ASSETCO EMERGENCY LTD=========,OP/I040727,1,"8,190.00",VEHICLES,19/04/12,"8,190.00"
120412G,PHOENIX SOFTWARE LTD==========,OP/I657218,1,456.20,MAINTENANCE & SUPPORT,19/04/12,"5,640.32"
120412G,PHOENIX SOFTWARE LTD==========,OP/I657218,2,273.72,MAINTENANCE & SUPPORT,19/04/12,
120412G,PHOENIX SOFTWARE LTD==========,OP/I657218,3,"4,910.40",MAINTENANCE & SUPPORT,19/04/12,
120412G,PHOENIX SOFTWARE LTD==========,OP/I657799,1,"30,485.52",MAINTENANCE & SUPPORT,19/04/12,"31,816.28"
120412G,PHOENIX SOFTWARE LTD==========,OP/I657799,2,"1,330.76",MAINTENANCE & SUPPORT,19/04/12,
120412G,PHOENIX SOFTWARE LTD==========,OP/I661225,1,"1,181.11",PRINTING,19/04/12,"1,181.11"
120412G,PHOENIX SOFTWARE LTD==========,OP/I662579,1,"9,000.00",MAINTENANCE & SUPPORT,19/04/12,"9,000.00"
120412G,PHOENIX SOFTWARE LTD==========,OP/I664287,1,"3,555.12",ACQUISITIONS,19/04/12,"3,555.12"
160412C,PEGASUS COURIERS - LONDON=====,PL011516,1,"1,080.65",POSTAL SERVICES,19/04/12,"1,080.65"
110412C,PULLMAN MOTORS================,PULL92,1,"1,800.00",MODIFICATIONS,19/04/12,"1,800.00"
130412C,PULLMAN MOTORS================,PULL94,1,"1,100.00",MODIFICATIONS,19/04/12,"1,100.00"
290312C,HUNTER LODGE==================,S-013844,1,"5,000.00",ADVERTISING,19/04/12,"5,000.00"
030412C,HUNTER LODGE==================,SI-04580,1,"1,070.00",ADVERTISING,19/04/12,"1,070.00"
130412C,SUNLIGHT SERVICE GROUP LTD====,SN0872073,1,"8,273.30",LAUNDRY,19/04/12,"8,273.30"
130412C,SUNLIGHT SERVICE GROUP LTD====,SN0905929,1,"9,243.73",LAUNDRY,19/04/12,"9,243.73"
130412G,UNIVERSITY OF CENT LANCASHIRE=,TUI168700105,1,"1,350.00",TRAINING & CONFERENCES,19/04/12,"1,350.00"
800009691,*K W PEARSON'S================,V671,1,605.00,OFFICE EQUIPMENT,19/04/12,605.00
120412C,VODAFONE PAGING LTD===========,VR1317681,1,"1,801.32",MAINTENANCE & SUPPORT,19/04/12,"1,801.32"
160412A,COOPER CLARKE CONSTRUCTION LTD,03,1,"1,155.37",STRATEGIC (NON CYCLICAL),23/04/12,"1,155.37"
170412A,IRON MOUNTAIN (UK) LTD========,03343440,1,"5,347.59",MAINTENANCE & SUPPORT,23/04/12,"5,347.59"
170412C,BT GLOBAL SERVICES============,0790064847,1,500.22,TELECOMMUNICATIONS,23/04/12,500.22
130412C,HAYS ACCOUNTANCY & FINANCE====,1002019593,1,696.00,FRS STAFF AGENCY,23/04/12,696.00
170412C,*SPRUE SAFETY PRODUCTS LTD====,1030904,1,"1,011.20",FIRE DETECTORS,23/04/12,"1,011.20"
180412A,WERNICK EVENT HIRE LTD========,10619,1,832.00,OPERATIONAL EQUIP-PURCHASE,23/04/12,832.00
170412A,W G WIGGINTON LTD,12-003REVB,1,"10,135.10",DEVELOPMENT EXP - CONTRACTORS,23/04/12,"11,785.00"
170412A,W G WIGGINTON LTD,12-003REVB,2,"1,649.90",DEVELOPMENT EXP - CONTRACTORS,23/04/12,
800009841,PRIMEPEACE LTD================,120401,1,"71,600.00",MAINTENANCE & SUPPORT,23/04/12,"71,600.00"
190412A,*SPRUE SAFETY PRODUCTS LTD====,130821,1,"1,950.00",FIRE DETECTORS,23/04/12,"3,725.85"
190412A,*SPRUE SAFETY PRODUCTS LTD====,130821,2,"1,100.00",FIRE DETECTORS,23/04/12,
190412A,*SPRUE SAFETY PRODUCTS LTD====,130821,3,675.85,FIRE DETECTORS,23/04/12,
170412A,QAS SYSTEMS LTD===============,1346191,1,"56,375.00",PROFESSIONAL SERVICES,23/04/12,"56,375.00"
190412A,GP CONTRACTS==================,14302,1,175.00,STRATEGIC (CYCLICAL),23/04/12,"8,405.00"
190412A,GP CONTRACTS==================,14302,2,150.00,STRATEGIC (CYCLICAL),23/04/12,
190412A,GP CONTRACTS==================,14302,3,150.00,STRATEGIC (CYCLICAL),23/04/12,
190412A,GP CONTRACTS==================,14302,4,175.00,STRATEGIC (CYCLICAL),23/04/12,
190412A,GP CONTRACTS==================,14302,5,200.00,STRATEGIC (CYCLICAL),23/04/12,
190412A,GP CONTRACTS==================,14302,6,150.00,STRATEGIC (CYCLICAL),23/04/12,
190412A,GP CONTRACTS==================,14302,7,175.00,STRATEGIC (CYCLICAL),23/04/12,
190412A,GP CONTRACTS==================,14302,8,175.00,STRATEGIC (CYCLICAL),23/04/12,
190412A,GP CONTRACTS==================,14302,9,440.00,STRATEGIC (CYCLICAL),23/04/12,
190412A,GP CONTRACTS==================,14302,10,425.00,STRATEGIC (CYCLICAL),23/04/12,
190412A,GP CONTRACTS==================,14302,11,150.00,STRATEGIC (CYCLICAL),23/04/12,
190412A,GP CONTRACTS==================,14302,12,185.00,STRATEGIC (CYCLICAL),23/04/12,
190412A,GP CONTRACTS==================,14302,13,630.00,STRATEGIC (CYCLICAL),23/04/12,
190412A,GP CONTRACTS==================,14302,14,290.00,STRATEGIC (CYCLICAL),23/04/12,
190412A,GP CONTRACTS==================,14302,15,475.00,STRATEGIC (CYCLICAL),23/04/12,
190412A,GP CONTRACTS==================,14302,16,580.00,STRATEGIC (CYCLICAL),23/04/12,
190412A,GP CONTRACTS==================,14302,17,225.00,STRATEGIC (CYCLICAL),23/04/12,
190412A,GP CONTRACTS==================,14302,18,150.00,STRATEGIC (CYCLICAL),23/04/12,
190412A,GP CONTRACTS==================,14302,19,175.00,STRATEGIC (CYCLICAL),23/04/12,
190412A,GP CONTRACTS==================,14302,20,175.00,STRATEGIC (CYCLICAL),23/04/12,
190412A,GP CONTRACTS==================,14302,21,225.00,STRATEGIC (CYCLICAL),23/04/12,
190412A,GP CONTRACTS==================,14302,22,345.00,STRATEGIC (CYCLICAL),23/04/12,
190412A,GP CONTRACTS==================,14302,23,150.00,STRATEGIC (CYCLICAL),23/04/12,
190412A,GP CONTRACTS==================,14302,24,150.00,STRATEGIC (CYCLICAL),23/04/12,
190412A,GP CONTRACTS==================,14302,25,160.00,STRATEGIC (CYCLICAL),23/04/12,
190412A,GP CONTRACTS==================,14302,26,475.00,STRATEGIC (CYCLICAL),23/04/12,
190412A,GP CONTRACTS==================,14302,27,650.00,STRATEGIC (CYCLICAL),23/04/12,
190412A,GP CONTRACTS==================,14302,28,150.00,STRATEGIC (CYCLICAL),23/04/12,
190412A,GP CONTRACTS==================,14302,29,200.00,STRATEGIC (CYCLICAL),23/04/12,
190412A,GP CONTRACTS==================,14302,30,150.00,STRATEGIC (CYCLICAL),23/04/12,
190412A,GP CONTRACTS==================,14302,31,500.00,STRATEGIC (CYCLICAL),23/04/12,
190412A,GP CONTRACTS==================,14334,1,325.00,STRATEGIC (CYCLICAL),23/04/12,"4,865.00"
190412A,GP CONTRACTS==================,14334,2,75.00,STRATEGIC (CYCLICAL),23/04/12,
190412A,GP CONTRACTS==================,14334,3,150.00,STRATEGIC (CYCLICAL),23/04/12,
190412A,GP CONTRACTS==================,14334,4,305.00,STRATEGIC (CYCLICAL),23/04/12,
190412A,GP CONTRACTS==================,14334,5,125.00,STRATEGIC (CYCLICAL),23/04/12,
190412A,GP CONTRACTS==================,14334,6,150.00,STRATEGIC (CYCLICAL),23/04/12,
190412A,GP CONTRACTS==================,14334,7,440.00,STRATEGIC (CYCLICAL),23/04/12,
190412A,GP CONTRACTS==================,14334,8,175.00,STRATEGIC (CYCLICAL),23/04/12,
190412A,GP CONTRACTS==================,14334,9,175.00,STRATEGIC (CYCLICAL),23/04/12,
190412A,GP CONTRACTS==================,14334,10,160.00,STRATEGIC (CYCLICAL),23/04/12,
190412A,GP CONTRACTS==================,14334,11,150.00,STRATEGIC (CYCLICAL),23/04/12,
190412A,GP CONTRACTS==================,14334,12,175.00,STRATEGIC (CYCLICAL),23/04/12,
190412A,GP CONTRACTS==================,14334,13,150.00,STRATEGIC (CYCLICAL),23/04/12,
190412A,GP CONTRACTS==================,14334,14,250.00,STRATEGIC (CYCLICAL),23/04/12,
190412A,GP CONTRACTS==================,14334,15,150.00,STRATEGIC (CYCLICAL),23/04/12,
190412A,GP CONTRACTS==================,14334,16,580.00,STRATEGIC (CYCLICAL),23/04/12,
190412A,GP CONTRACTS==================,14334,17,150.00,STRATEGIC (CYCLICAL),23/04/12,
190412A,GP CONTRACTS==================,14334,18,150.00,STRATEGIC (CYCLICAL),23/04/12,
190412A,GP CONTRACTS==================,14334,19,160.00,STRATEGIC (CYCLICAL),23/04/12,
190412A,GP CONTRACTS==================,14334,20,150.00,STRATEGIC (CYCLICAL),23/04/12,
190412A,GP CONTRACTS==================,14334,21,150.00,STRATEGIC (CYCLICAL),23/04/12,
190412A,GP CONTRACTS==================,14334,22,570.00,STRATEGIC (CYCLICAL),23/04/12,
170412A,IRON MOUNTAIN (UK) LTD========,16165030,1,"1,236.87",MAINTENANCE & SUPPORT,23/04/12,"1,236.87"
170412A,IRON MOUNTAIN (UK) LTD========,16165031,1,"2,147.80",MAINTENANCE & SUPPORT,23/04/12,"2,147.80"
180412A,GRADIENT CONSULTANTS LLP======,1679,1,313.75,PROFESSIONAL FEES - MISC,23/04/12,"14,934.96"
180412A,GRADIENT CONSULTANTS LLP======,1679,2,532.63,DEVELOPMENT EXP - CONTRACTORS,23/04/12,
180412A,GRADIENT CONSULTANTS LLP======,1679,3,242.57,PROFESSIONAL FEES - MISC,23/04/12,
180412A,GRADIENT CONSULTANTS LLP======,1679,4,369.13,DEVELOPMENT EXP - CONTRACTORS,23/04/12,
180412A,GRADIENT CONSULTANTS LLP======,1679,5,61.96,DEVELOPMENT EXP - CONTRACTORS,23/04/12,
180412A,GRADIENT CONSULTANTS LLP======,1679,6,295.30,DEVELOPMENT EXP - CONTRACTORS,23/04/12,
180412A,GRADIENT CONSULTANTS LLP======,1679,7,243.62,PROFESSIONAL FEES - MISC,23/04/12,
180412A,GRADIENT CONSULTANTS LLP======,1679,8,237.59,PROFESSIONAL FEES - MISC,23/04/12,
180412A,GRADIENT CONSULTANTS LLP======,1679,9,"1,035.11",DEVELOPMENT EXP - CONTRACTORS,23/04/12,
180412A,GRADIENT CONSULTANTS LLP======,1679,10,104.41,DEVELOPMENT EXP - CONTRACTORS,23/04/12,
180412A,GRADIENT CONSULTANTS LLP======,1679,11,96.23,DEVELOPMENT EXP - CONTRACTORS,23/04/12,
180412A,GRADIENT CONSULTANTS LLP======,1679,12,158.20,DEVELOPMENT EXP - CONTRACTORS,23/04/12,
180412A,GRADIENT CONSULTANTS LLP======,1679,13,242.57,PROFESSIONAL FEES - MISC,23/04/12,
180412A,GRADIENT CONSULTANTS LLP======,1679,14,166.37,DEVELOPMENT EXP - CONTRACTORS,23/04/12,
180412A,GRADIENT CONSULTANTS LLP======,1679,15,243.62,PROFESSIONAL FEES - MISC,23/04/12,
180412A,GRADIENT CONSULTANTS LLP======,1679,16,290.02,PROFESSIONAL FEES - MISC,23/04/12,
180412A,GRADIENT CONSULTANTS LLP======,1679,17,529.97,DEVELOPMENT EXP - CONTRACTORS,23/04/12,
180412A,GRADIENT CONSULTANTS LLP======,1679,18,274.21,DEVELOPMENT EXP - CONTRACTORS,23/04/12,
180412A,GRADIENT CONSULTANTS LLP======,1679,19,374.40,DEVELOPMENT EXP - CONTRACTORS,23/04/12,
180412A,GRADIENT CONSULTANTS LLP======,1679,20,478.81,PROFESSIONAL FEES - MISC,23/04/12,
180412A,GRADIENT CONSULTANTS LLP======,1679,21,243.62,PROFESSIONAL FEES - MISC,23/04/12,
180412A,GRADIENT CONSULTANTS LLP======,1679,22,243.62,DEVELOPMENT EXP - CONTRACTORS,23/04/12,
180412A,GRADIENT CONSULTANTS LLP======,1679,23,237.00,PROFESSIONAL FEES - MISC,23/04/12,
180412A,GRADIENT CONSULTANTS LLP======,1679,24,295.30,PROFESSIONAL FEES - MISC,23/04/12,
180412A,GRADIENT CONSULTANTS LLP======,1679,25,440.58,PROFESSIONAL FEES - MISC,23/04/12,
180412A,GRADIENT CONSULTANTS LLP======,1679,26,200.37,PROFESSIONAL FEES - MISC,23/04/12,
180412A,GRADIENT CONSULTANTS LLP======,1679,27,71.18,PROFESSIONAL FEES - MISC,23/04/12,
180412A,GRADIENT CONSULTANTS LLP======,1679,28,346.98,DEVELOPMENT EXP - CONTRACTORS,23/04/12,
180412A,GRADIENT CONSULTANTS LLP======,1679,29,346.98,DEVELOPMENT EXP - CONTRACTORS,23/04/12,
180412A,GRADIENT CONSULTANTS LLP======,1679,30,456.39,DEVELOPMENT EXP - CONTRACTORS,23/04/12,
180412A,GRADIENT CONSULTANTS LLP======,1679,31,290.02,DEVELOPMENT EXP - CONTRACTORS,23/04/12,
180412A,GRADIENT CONSULTANTS LLP======,1679,32,589.96,DEVELOPMENT EXP - CONTRACTORS,23/04/12,
180412A,GRADIENT CONSULTANTS LLP======,1679,33,316.40,PROFESSIONAL FEES - MISC,23/04/12,
180412A,GRADIENT CONSULTANTS LLP======,1679,34,442.95,PROFESSIONAL FEES - MISC,23/04/12,
180412A,GRADIENT CONSULTANTS LLP======,1679,35,104.41,DEVELOPMENT EXP - CONTRACTORS,23/04/12,
180412A,GRADIENT CONSULTANTS LLP======,1679,36,560.02,PROFESSIONAL FEES - MISC,23/04/12,
180412A,GRADIENT CONSULTANTS LLP======,1679,37,728.76,PROFESSIONAL FEES - MISC,23/04/12,
180412A,GRADIENT CONSULTANTS LLP======,1679,38,295.31,PROFESSIONAL FEES - MISC,23/04/12,
180412A,GRADIENT CONSULTANTS LLP======,1679,39,585.32,DEVELOPMENT EXP - CONTRACTORS,23/04/12,
180412A,GRADIENT CONSULTANTS LLP======,1679,40,243.62,PROFESSIONAL FEES - MISC,23/04/12,
180412A,GRADIENT CONSULTANTS LLP======,1679,41,243.62,PROFESSIONAL FEES - MISC,23/04/12,
180412A,GRADIENT CONSULTANTS LLP======,1679,42,123.92,DEVELOPMENT EXP - CONTRACTORS,23/04/12,
180412A,GRADIENT CONSULTANTS LLP======,1679,43,123.92,PROFESSIONAL FEES - MISC,23/04/12,
180412A,GRADIENT CONSULTANTS LLP======,1679,44,123.92,DEVELOPMENT EXP - CONTRACTORS,23/04/12,
180412A,GRADIENT CONSULTANTS LLP======,1679,45,104.41,DEVELOPMENT EXP - CONTRACTORS,23/04/12,
180412A,GRADIENT CONSULTANTS LLP======,1679,46,104.41,DEVELOPMENT EXP - CONTRACTORS,23/04/12,
180412A,GRADIENT CONSULTANTS LLP======,1679,47,242.57,PROFESSIONAL FEES - MISC,23/04/12,
180412A,GRADIENT CONSULTANTS LLP======,1679,48,242.57,PROFESSIONAL FEES - MISC,23/04/12,
180412A,GRADIENT CONSULTANTS LLP======,1679,49,52.74,DEVELOPMENT EXP - CONTRACTORS,23/04/12,
180412A,GRADIENT CONSULTANTS LLP======,1679,50,243.62,PROFESSIONAL FEES - MISC,23/04/12,
170412A,COMMUNITIES & LOCAL GOVERNMENT,1800017095,1,"97,331.20",MAINTENANCE & SUPPORT,23/04/12,"106,386.20"
170412A,COMMUNITIES & LOCAL GOVERNMENT,1800017095,2,"9,055.00",MAINTENANCE & SUPPORT,23/04/12,
120412C,RIDGEWAY TEXTILES LIMITED=====,25150,1,"1,258.75",OPERATIONAL EQUIP-PURCHASE,23/04/12,"1,258.75"
800009792,ADECCO UK LIMITED=============,25946293,1,"1,550.00",FRS STAFF AGENCY,23/04/12,"1,550.00"
800009793,ADECCO UK LIMITED=============,25946294,1,"1,395.00",FRS STAFF AGENCY,23/04/12,"1,395.00"
800009794,ADECCO UK LIMITED=============,25946295,1,"1,550.00",FRS STAFF AGENCY,23/04/12,"1,550.00"
800009795,ADECCO UK LIMITED=============,25946296,1,"1,550.00",FRS STAFF AGENCY,23/04/12,"1,550.00"
800009796,ADECCO UK LIMITED=============,25946297,1,"1,550.00",FRS STAFF AGENCY,23/04/12,"1,550.00"
800009798,ADECCO UK LIMITED=============,25949391,1,597.96,FRS STAFF AGENCY,23/04/12,597.96
800009803,ADECCO UK LIMITED=============,25956954,1,621.04,FRS STAFF AGENCY,23/04/12,621.04
800009804,ADECCO UK LIMITED=============,25956955,1,"1,083.57",FRS STAFF AGENCY,23/04/12,"1,083.57"
800009814,ADECCO UK LIMITED=============,25956965,1,"1,390.72",FRS STAFF AGENCY,23/04/12,"1,390.72"
800009815,ADECCO UK LIMITED=============,25956966,1,512.12,FRS STAFF AGENCY,23/04/12,512.12
800009816,ADECCO UK LIMITED=============,25956967,1,554.96,FRS STAFF AGENCY,23/04/12,554.96
800009818,ADECCO UK LIMITED=============,25956969,1,"1,018.00",FRS STAFF AGENCY,23/04/12,"1,018.00"
800009819,ADECCO UK LIMITED=============,25956970,1,554.96,FRS STAFF AGENCY,23/04/12,554.96
800009820,ADECCO UK LIMITED=============,25956971,1,521.64,FRS STAFF AGENCY,23/04/12,521.64
800009823,ADECCO UK LIMITED=============,25956974,1,807.24,FRS STAFF AGENCY,23/04/12,807.24
800009828,ADECCO UK LIMITED=============,25956979,1,"1,141.00",FRS STAFF AGENCY,23/04/12,"1,141.00"
800009832,ADECCO UK LIMITED=============,25956983,1,519.10,FRS STAFF AGENCY,23/04/12,519.10
800009837,ADECCO UK LIMITED=============,25956988,1,593.04,FRS STAFF AGENCY,23/04/12,593.04
139641,THAMES WATER UTILITIES LTD====,29631-80521S,1,"1,160.05",WATER & SEWERAGE RATES,23/04/12,"1,160.05"
139641,LINDSAY WRIGHT================,2998,1,750.00,TRAINING & CONFERENCES,23/04/12,750.00
170412C,MUSCO LIGHTING EUROPE LTD=====,3307,1,"3,402.00",GENERAL,23/04/12,"3,402.00"
170412C,LONDON COUNCILS===============,4067584,1,"17,020.00",SUBSCRIPTIONS,23/04/12,"17,020.00"
170412C,SPORTSAFE UK LTD==============,432356,1,"1,217.40",GYM EQUIPMENT,23/04/12,"1,217.40"
170412C,SPORTSAFE UK LTD==============,432362,1,"1,565.44",GYM EQUIPMENT,23/04/12,"1,565.44"
170412C,CORE SURVEYSLTD===============,4344,1,"3,290.00",DEVELOPMENT EXP - CONTRACTORS,23/04/12,"3,290.00"
170412C,CORE SURVEYSLTD===============,4357,1,700.00,DEVELOPMENT EXP - CONTRACTORS,23/04/12,700.00
139633,TWO SERVICES LTD==============,63398,1,673.50,CATERING EQUIPMENT,23/04/12,673.50
170412A,BRAIDWAY LTD==================,6675,1,139.40,CLOTHING,23/04/12,"3,215.05"
170412A,BRAIDWAY LTD==================,6675,2,139.40,CLOTHING,23/04/12,
170412A,BRAIDWAY LTD==================,6675,3,139.40,CLOTHING,23/04/12,
170412A,BRAIDWAY LTD==================,6675,4,139.40,CLOTHING,23/04/12,
170412A,BRAIDWAY LTD==================,6675,5,139.40,CLOTHING,23/04/12,
170412A,BRAIDWAY LTD==================,6675,6,139.40,CLOTHING,23/04/12,
170412A,BRAIDWAY LTD==================,6675,7,139.35,CLOTHING,23/04/12,
170412A,BRAIDWAY LTD==================,6675,8,139.30,CLOTHING,23/04/12,
170412A,BRAIDWAY LTD==================,6675,9,10.50,CLOTHING,23/04/12,
170412A,BRAIDWAY LTD==================,6675,10,139.30,CLOTHING,23/04/12,
170412A,BRAIDWAY LTD==================,6675,11,139.30,CLOTHING,23/04/12,
170412A,BRAIDWAY LTD==================,6675,12,139.30,CLOTHING,23/04/12,
170412A,BRAIDWAY LTD==================,6675,13,139.30,CLOTHING,23/04/12,
170412A,BRAIDWAY LTD==================,6675,14,139.30,CLOTHING,23/04/12,
170412A,BRAIDWAY LTD==================,6675,15,139.30,CLOTHING,23/04/12,
170412A,BRAIDWAY LTD==================,6675,16,139.30,CLOTHING,23/04/12,
170412A,BRAIDWAY LTD==================,6675,17,139.30,CLOTHING,23/04/12,
170412A,BRAIDWAY LTD==================,6675,18,139.30,CLOTHING,23/04/12,
170412A,BRAIDWAY LTD==================,6675,19,139.30,CLOTHING,23/04/12,
170412A,BRAIDWAY LTD==================,6675,20,139.30,CLOTHING,23/04/12,
170412A,BRAIDWAY LTD==================,6675,21,139.30,CLOTHING,23/04/12,
170412A,BRAIDWAY LTD==================,6675,22,139.30,CLOTHING,23/04/12,
170412A,BRAIDWAY LTD==================,6675,23,139.30,CLOTHING,23/04/12,
170412A,BRAIDWAY LTD==================,6675,24,139.30,CLOTHING,23/04/12,
180412A,NISBETS=======================,6995220,1,529.99,CATERING EQUIPMENT,23/04/12,529.99
139639,NISBETS=======================,7189025,1,529.99,CATERING EQUIPMENT,23/04/12,529.99
139641,DEFENCE BUSINESS SERVICES,7243964,1,727.50,TRAINING & CONFERENCES,23/04/12,727.50
160412C,NISBETS=======================,7313055,1,529.99,CATERING EQUIPMENT,23/04/12,529.99
190412A,CPL PETROLEUM=================,7661284,1,"2,125.62",FUEL,23/04/12,"2,125.62"
170412C,CCS (UK) LTD==================,78063,1,"1,760.00",PURCHASES - EQUIPMENT,23/04/12,"1,775.00"
170412C,CCS (UK) LTD==================,78063,2,15.00,PURCHASES - EQUIPMENT,23/04/12,
170412A,RS COMPONENTS LTD=============,83662043,1,8.90,TELECOMMUNICATIONS,23/04/12,"2,776.05"
170412A,RS COMPONENTS LTD=============,83662043,2,27.30,TELECOMMUNICATIONS,23/04/12,
170412A,RS COMPONENTS LTD=============,83662043,3,16.20,TELECOMMUNICATIONS,23/04/12,
170412A,RS COMPONENTS LTD=============,83662043,4,20.30,TELECOMMUNICATIONS,23/04/12,
170412A,RS COMPONENTS LTD=============,83662043,5,21.80,TELECOMMUNICATIONS,23/04/12,
170412A,RS COMPONENTS LTD=============,83662043,6,15.90,TELECOMMUNICATIONS,23/04/12,
170412A,RS COMPONENTS LTD=============,83662043,7,48.00,TELECOMMUNICATIONS,23/04/12,
170412A,RS COMPONENTS LTD=============,83662043,8,3.65,TELECOMMUNICATIONS,23/04/12,
170412A,RS COMPONENTS LTD=============,83662043,9,41.70,TELECOMMUNICATIONS,23/04/12,
170412A,RS COMPONENTS LTD=============,83662043,10,19.00,TELECOMMUNICATIONS,23/04/12,
170412A,RS COMPONENTS LTD=============,83662043,11,13.10,TELECOMMUNICATIONS,23/04/12,
170412A,RS COMPONENTS LTD=============,83662043,12,35.50,TELECOMMUNICATIONS,23/04/12,
170412A,RS COMPONENTS LTD=============,83662043,13,12.95,TELECOMMUNICATIONS,23/04/12,
170412A,RS COMPONENTS LTD=============,83662043,14,14.40,TELECOMMUNICATIONS,23/04/12,
170412A,RS COMPONENTS LTD=============,83662043,15,15.90,TELECOMMUNICATIONS,23/04/12,
170412A,RS COMPONENTS LTD=============,83662043,16,7.80,TELECOMMUNICATIONS,23/04/12,
170412A,RS COMPONENTS LTD=============,83662043,17,63.00,TELECOMMUNICATIONS,23/04/12,
170412A,RS COMPONENTS LTD=============,83662043,18,20.10,TELECOMMUNICATIONS,23/04/12,
170412A,RS COMPONENTS LTD=============,83662043,19,14.20,TELECOMMUNICATIONS,23/04/12,
170412A,RS COMPONENTS LTD=============,83662043,20,19.50,TELECOMMUNICATIONS,23/04/12,
170412A,RS COMPONENTS LTD=============,83662043,21,8.00,TELECOMMUNICATIONS,23/04/12,
170412A,RS COMPONENTS LTD=============,83662043,22,176.00,TELECOMMUNICATIONS,23/04/12,
170412A,RS COMPONENTS LTD=============,83662043,23,50.00,TELECOMMUNICATIONS,23/04/12,
170412A,RS COMPONENTS LTD=============,83662043,24,29.60,TELECOMMUNICATIONS,23/04/12,
170412A,RS COMPONENTS LTD=============,83662043,25,10.25,TELECOMMUNICATIONS,23/04/12,
170412A,RS COMPONENTS LTD=============,83662043,26,8.60,TELECOMMUNICATIONS,23/04/12,
170412A,RS COMPONENTS LTD=============,83662043,27,1.40,TELECOMMUNICATIONS,23/04/12,
170412A,RS COMPONENTS LTD=============,83662043,28,"2,053.00",TELECOMMUNICATIONS,23/04/12,
170412A,NCC SERVICES LTD==============,900003569,1,"1,075.00",MAINTENANCE & SUPPORT,23/04/12,"1,075.00"
190412A,LINCOLNSHIRE COUNTY COUNCIL===,90692924,1,"2,682.92",TRAINING & CONFERENCES,23/04/12,"2,682.92"
170412A,LINCOLNSHIRE COUNTY COUNCIL===,90692926,1,"30,616.13",TRAINING & CONFERENCES,23/04/12,"30,616.13"
190412A,REED BUSINESS INFORMATION=====,DSINV00027949-1,1,"6,500.00",SUBSCRIPTIONS,23/04/12,"6,500.00"
170412A,BRISTOL UNIFORMS LTD==========,I179016,1,"6,246.00",CLOTHING,23/04/12,"6,246.00"
170412A,RADIOCOMS SYSTEMS LIMITED=====,OP/I006661,1,"3,201.30",TELECOMMUNICATIONS,23/04/12,"3,211.30"
170412A,RADIOCOMS SYSTEMS LIMITED=====,OP/I006661,2,10.00,TELECOMMUNICATIONS,23/04/12,
120412C,BABCOCK CRITICAL SERVICES LTD,PTSI007564,1,"9,006.93",PROFESSIONAL SERVICES,23/04/12,"9,006.93"
190412A,FILING PLUS LIMITED==========,SI000460,1,948.00,STATIONERY CONSUMABLES,23/04/12,"4,981.00"
190412A,FILING PLUS LIMITED==========,SI000460,2,"1,035.00",STATIONERY CONSUMABLES,23/04/12,
190412A,FILING PLUS LIMITED==========,SI000460,3,"1,035.00",STATIONERY CONSUMABLES,23/04/12,
190412A,FILING PLUS LIMITED==========,SI000460,4,652.50,STATIONERY CONSUMABLES,23/04/12,
190412A,FILING PLUS LIMITED==========,SI000460,5,600.00,STATIONERY CONSUMABLES,23/04/12,
190412A,FILING PLUS LIMITED==========,SI000460,6,710.50,STATIONERY CONSUMABLES,23/04/12,
139641,FIRE SERVICE COLLEGE==========,SIN049157,1,"24,480.00",TRAINING & CONFERENCES,23/04/12,"24,480.00"
180412A,FIRE SERVICE COLLEGE==========,SIN049708,1,"22,600.00",TRAINING & CONFERENCES,23/04/12,"22,600.00"
190412A,TRIBAL EDUCATION LTD==========,SIN072118-TEL,1,"37,098.60",MAINTENANCE & SUPPORT,23/04/12,"37,098.60"
170412C,DET NORSKE VERITAS LTD========,SRMUK2221190415,1,"7,998.00",PROFESSIONAL SERVICES,23/04/12,"7,998.00"
139646,ASHTEAD HOSPITAL,04343682,1,550.00,DOCTORS/MEDICAL FEES,24/04/12,550.00
902168,ALLSTAR BUSINESS SOLUTIONS LTD,1013648973,1,135.06,FUEL,25/04/12,"25,647.29"
902168,ALLSTAR BUSINESS SOLUTIONS LTD,1013648973,2,131.82,FUEL,25/04/12,
902168,ALLSTAR BUSINESS SOLUTIONS LTD,1013648973,3,75.22,FUEL,25/04/12,
902168,ALLSTAR BUSINESS SOLUTIONS LTD,1013648973,4,180.27,FUEL,25/04/12,
902168,ALLSTAR BUSINESS SOLUTIONS LTD,1013648973,5,137.82,FUEL,25/04/12,
902168,ALLSTAR BUSINESS SOLUTIONS LTD,1013648973,6,62.27,FUEL,25/04/12,
902168,ALLSTAR BUSINESS SOLUTIONS LTD,1013648973,7,103.28,FUEL,25/04/12,
902168,ALLSTAR BUSINESS SOLUTIONS LTD,1013648973,8,111.05,FUEL,25/04/12,
902168,ALLSTAR BUSINESS SOLUTIONS LTD,1013648973,9,164.60,FUEL,25/04/12,
902168,ALLSTAR BUSINESS SOLUTIONS LTD,1013648973,10,213.25,FUEL,25/04/12,
902168,ALLSTAR BUSINESS SOLUTIONS LTD,1013648973,11,246.25,FUEL,25/04/12,
902168,ALLSTAR BUSINESS SOLUTIONS LTD,1013648973,12,534.49,FUEL,25/04/12,
902168,ALLSTAR BUSINESS SOLUTIONS LTD,1013648973,13,310.03,FUEL,25/04/12,
902168,ALLSTAR BUSINESS SOLUTIONS LTD,1013648973,14,254.47,FUEL,25/04/12,
902168,ALLSTAR BUSINESS SOLUTIONS LTD,1013648973,15,126.68,FUEL,25/04/12,
902168,ALLSTAR BUSINESS SOLUTIONS LTD,1013648973,16,327.40,FUEL,25/04/12,
902168,ALLSTAR BUSINESS SOLUTIONS LTD,1013648973,17,86.65,FUEL,25/04/12,
902168,ALLSTAR BUSINESS SOLUTIONS LTD,1013648973,18,112.34,FUEL,25/04/12,
902168,ALLSTAR BUSINESS SOLUTIONS LTD,1013648973,19,49.19,FUEL,25/04/12,
902168,ALLSTAR BUSINESS SOLUTIONS LTD,1013648973,20,56.92,FUEL,25/04/12,
902168,ALLSTAR BUSINESS SOLUTIONS LTD,1013648973,21,180.91,FUEL,25/04/12,
902168,ALLSTAR BUSINESS SOLUTIONS LTD,1013648973,22,310.75,FUEL,25/04/12,
902168,ALLSTAR BUSINESS SOLUTIONS LTD,1013648973,23,285.71,FUEL,25/04/12,
902168,ALLSTAR BUSINESS SOLUTIONS LTD,1013648973,24,252.79,FUEL,25/04/12,
902168,ALLSTAR BUSINESS SOLUTIONS LTD,1013648973,25,197.45,FUEL,25/04/12,
902168,ALLSTAR BUSINESS SOLUTIONS LTD,1013648973,26,275.53,FUEL,25/04/12,
902168,ALLSTAR BUSINESS SOLUTIONS LTD,1013648973,27,328.35,FUEL,25/04/12,
902168,ALLSTAR BUSINESS SOLUTIONS LTD,1013648973,28,232.80,FUEL,25/04/12,
902168,ALLSTAR BUSINESS SOLUTIONS LTD,1013648973,29,218.25,FUEL,25/04/12,
902168,ALLSTAR BUSINESS SOLUTIONS LTD,1013648973,30,359.11,FUEL,25/04/12,
902168,ALLSTAR BUSINESS SOLUTIONS LTD,1013648973,31,289.01,FUEL,25/04/12,
902168,ALLSTAR BUSINESS SOLUTIONS LTD,1013648973,32,311.64,FUEL,25/04/12,
902168,ALLSTAR BUSINESS SOLUTIONS LTD,1013648973,33,332.75,FUEL,25/04/12,
902168,ALLSTAR BUSINESS SOLUTIONS LTD,1013648973,34,636.34,FUEL,25/04/12,
902168,ALLSTAR BUSINESS SOLUTIONS LTD,1013648973,35,130.52,FUEL,25/04/12,
902168,ALLSTAR BUSINESS SOLUTIONS LTD,1013648973,36,413.11,FUEL,25/04/12,
902168,ALLSTAR BUSINESS SOLUTIONS LTD,1013648973,37,73.93,FUEL,25/04/12,
902168,ALLSTAR BUSINESS SOLUTIONS LTD,1013648973,38,149.34,FUEL,25/04/12,
902168,ALLSTAR BUSINESS SOLUTIONS LTD,1013648973,39,483.57,FUEL,25/04/12,
902168,ALLSTAR BUSINESS SOLUTIONS LTD,1013648973,40,247.08,FUEL,25/04/12,
902168,ALLSTAR BUSINESS SOLUTIONS LTD,1013648973,41,131.09,FUEL,25/04/12,
902168,ALLSTAR BUSINESS SOLUTIONS LTD,1013648973,42,151.34,FUEL,25/04/12,
902168,ALLSTAR BUSINESS SOLUTIONS LTD,1013648973,43,179.83,FUEL,25/04/12,
902168,ALLSTAR BUSINESS SOLUTIONS LTD,1013648973,44,139.14,FUEL,25/04/12,
902168,ALLSTAR BUSINESS SOLUTIONS LTD,1013648973,45,252.41,FUEL,25/04/12,
902168,ALLSTAR BUSINESS SOLUTIONS LTD,1013648973,46,112.29,FUEL,25/04/12,
902168,ALLSTAR BUSINESS SOLUTIONS LTD,1013648973,47,130.42,FUEL,25/04/12,
902168,ALLSTAR BUSINESS SOLUTIONS LTD,1013648973,48,187.22,FUEL,25/04/12,
902168,ALLSTAR BUSINESS SOLUTIONS LTD,1013648973,49,224.92,FUEL,25/04/12,
902168,ALLSTAR BUSINESS SOLUTIONS LTD,1013648973,50,89.05,FUEL,25/04/12,
902168,ALLSTAR BUSINESS SOLUTIONS LTD,1013648973,51,83.67,FUEL,25/04/12,
902168,ALLSTAR BUSINESS SOLUTIONS LTD,1013648973,52,196.03,FUEL,25/04/12,
902168,ALLSTAR BUSINESS SOLUTIONS LTD,1013648973,53,550.94,FUEL,25/04/12,
902168,ALLSTAR BUSINESS SOLUTIONS LTD,1013648973,54,328.95,FUEL,25/04/12,
902168,ALLSTAR BUSINESS SOLUTIONS LTD,1013648973,55,297.47,FUEL,25/04/12,
902168,ALLSTAR BUSINESS SOLUTIONS LTD,1013648973,56,254.35,FUEL,25/04/12,
902168,ALLSTAR BUSINESS SOLUTIONS LTD,1013648973,57,193.95,FUEL,25/04/12,
902168,ALLSTAR BUSINESS SOLUTIONS LTD,1013648973,58,563.01,FUEL,25/04/12,
902168,ALLSTAR BUSINESS SOLUTIONS LTD,1013648973,59,192.53,FUEL,25/04/12,
902168,ALLSTAR BUSINESS SOLUTIONS LTD,1013648973,60,269.40,FUEL,25/04/12,
902168,ALLSTAR BUSINESS SOLUTIONS LTD,1013648973,61,202.83,FUEL,25/04/12,
902168,ALLSTAR BUSINESS SOLUTIONS LTD,1013648973,62,116.46,FUEL,25/04/12,
902168,ALLSTAR BUSINESS SOLUTIONS LTD,1013648973,63,352.35,FUEL,25/04/12,
902168,ALLSTAR BUSINESS SOLUTIONS LTD,1013648973,64,327.07,FUEL,25/04/12,
902168,ALLSTAR BUSINESS SOLUTIONS LTD,1013648973,65,132.47,FUEL,25/04/12,
902168,ALLSTAR BUSINESS SOLUTIONS LTD,1013648973,66,107.81,FUEL,25/04/12,
902168,ALLSTAR BUSINESS SOLUTIONS LTD,1013648973,67,192.15,FUEL,25/04/12,
902168,ALLSTAR BUSINESS SOLUTIONS LTD,1013648973,68,354.95,FUEL,25/04/12,
902168,ALLSTAR BUSINESS SOLUTIONS LTD,1013648973,69,99.13,FUEL,25/04/12,
902168,ALLSTAR BUSINESS SOLUTIONS LTD,1013648973,70,112.81,FUEL,25/04/12,
902168,ALLSTAR BUSINESS SOLUTIONS LTD,1013648973,71,149.90,FUEL,25/04/12,
902168,ALLSTAR BUSINESS SOLUTIONS LTD,1013648973,72,106.96,FUEL,25/04/12,
902168,ALLSTAR BUSINESS SOLUTIONS LTD,1013648973,73,286.93,FUEL,25/04/12,
902168,ALLSTAR BUSINESS SOLUTIONS LTD,1013648973,74,193.55,FUEL,25/04/12,
902168,ALLSTAR BUSINESS SOLUTIONS LTD,1013648973,75,905.16,FUEL,25/04/12,
902168,ALLSTAR BUSINESS SOLUTIONS LTD,1013648973,76,55.23,FUEL,25/04/12,
902168,ALLSTAR BUSINESS SOLUTIONS LTD,1013648973,77,61.32,FUEL,25/04/12,
902168,ALLSTAR BUSINESS SOLUTIONS LTD,1013648973,78,39.19,FUEL,25/04/12,
902168,ALLSTAR BUSINESS SOLUTIONS LTD,1013648973,79,106.81,FUEL,25/04/12,
902168,ALLSTAR BUSINESS SOLUTIONS LTD,1013648973,80,93.08,FUEL,25/04/12,
902168,ALLSTAR BUSINESS SOLUTIONS LTD,1013648973,81,130.79,FUEL,25/04/12,
902168,ALLSTAR BUSINESS SOLUTIONS LTD,1013648973,82,94.22,FUEL,25/04/12,
902168,ALLSTAR BUSINESS SOLUTIONS LTD,1013648973,83,196.22,FUEL,25/04/12,
902168,ALLSTAR BUSINESS SOLUTIONS LTD,1013648973,84,203.95,FUEL,25/04/12,
902168,ALLSTAR BUSINESS SOLUTIONS LTD,1013648973,85,308.87,FUEL,25/04/12,
902168,ALLSTAR BUSINESS SOLUTIONS LTD,1013648973,86,397.61,FUEL,25/04/12,
902168,ALLSTAR BUSINESS SOLUTIONS LTD,1013648973,87,102.32,FUEL,25/04/12,
902168,ALLSTAR BUSINESS SOLUTIONS LTD,1013648973,88,139.96,FUEL,25/04/12,
902168,ALLSTAR BUSINESS SOLUTIONS LTD,1013648973,89,160.75,FUEL,25/04/12,
902168,ALLSTAR BUSINESS SOLUTIONS LTD,1013648973,90,114.15,FUEL,25/04/12,
902168,ALLSTAR BUSINESS SOLUTIONS LTD,1013648973,91,53.92,FUEL,25/04/12,
902168,ALLSTAR BUSINESS SOLUTIONS LTD,1013648973,92,66.69,FUEL,25/04/12,
902168,ALLSTAR BUSINESS SOLUTIONS LTD,1013648973,93,180.31,FUEL,25/04/12,
902168,ALLSTAR BUSINESS SOLUTIONS LTD,1013648973,94,138.27,FUEL,25/04/12,
902168,ALLSTAR BUSINESS SOLUTIONS LTD,1013648973,95,119.61,FUEL,25/04/12,
902168,ALLSTAR BUSINESS SOLUTIONS LTD,1013648973,96,103.83,FUEL,25/04/12,
902168,ALLSTAR BUSINESS SOLUTIONS LTD,1013648973,97,207.87,FUEL,25/04/12,
902168,ALLSTAR BUSINESS SOLUTIONS LTD,1013648973,98,407.88,FUEL,25/04/12,
902168,ALLSTAR BUSINESS SOLUTIONS LTD,1013648973,99,371.00,FUEL,25/04/12,
902168,ALLSTAR BUSINESS SOLUTIONS LTD,1013648973,100,25.42,FUEL,25/04/12,
902168,ALLSTAR BUSINESS SOLUTIONS LTD,1013648973,101,81.41,FUEL,25/04/12,
902168,ALLSTAR BUSINESS SOLUTIONS LTD,1013648973,102,174.40,FUEL,25/04/12,
902168,ALLSTAR BUSINESS SOLUTIONS LTD,1013648973,103,127.57,FUEL,25/04/12,
902168,ALLSTAR BUSINESS SOLUTIONS LTD,1013648973,104,82.74,FUEL,25/04/12,
902168,ALLSTAR BUSINESS SOLUTIONS LTD,1013648973,105,138.43,FUEL,25/04/12,
902168,ALLSTAR BUSINESS SOLUTIONS LTD,1013648973,106,247.66,FUEL,25/04/12,
902168,ALLSTAR BUSINESS SOLUTIONS LTD,1013648973,107,149.12,FUEL,25/04/12,
902168,ALLSTAR BUSINESS SOLUTIONS LTD,1013648973,108,50.18,FUEL,25/04/12,
902168,ALLSTAR BUSINESS SOLUTIONS LTD,1013648973,109,25.05,FUEL,25/04/12,
902168,ALLSTAR BUSINESS SOLUTIONS LTD,1013648973,110,104.61,FUEL,25/04/12,
902168,ALLSTAR BUSINESS SOLUTIONS LTD,1013648973,111,83.18,FUEL,25/04/12,
902168,ALLSTAR BUSINESS SOLUTIONS LTD,1013648973,112,66.50,FUEL,25/04/12,
902168,ALLSTAR BUSINESS SOLUTIONS LTD,1013648973,113,167.79,FUEL,25/04/12,
902168,ALLSTAR BUSINESS SOLUTIONS LTD,1013648973,114,223.39,FUEL,25/04/12,
902168,ALLSTAR BUSINESS SOLUTIONS LTD,1013648973,115,205.32,FUEL,25/04/12,
902168,ALLSTAR BUSINESS SOLUTIONS LTD,1013648973,116,234.68,FUEL,25/04/12,
902168,ALLSTAR BUSINESS SOLUTIONS LTD,1013648973,117,281.71,FUEL,25/04/12,
902168,ALLSTAR BUSINESS SOLUTIONS LTD,1013648973,118,257.52,FUEL,25/04/12,
902168,ALLSTAR BUSINESS SOLUTIONS LTD,1013648973,119,54.68,FUEL,25/04/12,
902168,ALLSTAR BUSINESS SOLUTIONS LTD,1013648973,120,28.07,FUEL,25/04/12,
902168,ALLSTAR BUSINESS SOLUTIONS LTD,1013648973,121,81.75,FUEL,25/04/12,
902168,ALLSTAR BUSINESS SOLUTIONS LTD,1013648973,122,203.43,FUEL,25/04/12,
902168,ALLSTAR BUSINESS SOLUTIONS LTD,1013648973,123,114.61,FUEL,25/04/12,
902168,ALLSTAR BUSINESS SOLUTIONS LTD,1013648973,124,180.89,FUEL,25/04/12,
902168,ALLSTAR BUSINESS SOLUTIONS LTD,1013648973,125,139.18,FUEL,25/04/12,
902168,ALLSTAR BUSINESS SOLUTIONS LTD,1013648973,126,98.80,FUEL,25/04/12,
902168,ALLSTAR BUSINESS SOLUTIONS LTD,1013648973,127,105.23,FUEL,25/04/12,
902168,ALLSTAR BUSINESS SOLUTIONS LTD,1013648973,128,118.34,FUEL,25/04/12,
902168,ALLSTAR BUSINESS SOLUTIONS LTD,1013648973,129,111.81,FUEL,25/04/12,
902168,ALLSTAR BUSINESS SOLUTIONS LTD,1013648973,130,336.63,FUEL,25/04/12,
902168,ALLSTAR BUSINESS SOLUTIONS LTD,1013648973,131,155.13,FUEL,25/04/12,
902168,ALLSTAR BUSINESS SOLUTIONS LTD,1013648973,132,41.67,FUEL,25/04/12,
190412C,ENTEL UK LTD==================,0000113454,1,495.27,RADIO,26/04/12,"1,211.19"
190412C,ENTEL UK LTD==================,0000113454,2,329.70,RADIO,26/04/12,
190412C,ENTEL UK LTD==================,0000113454,3,45.40,RADIO,26/04/12,
190412C,ENTEL UK LTD==================,0000113454,4,54.17,RADIO,26/04/12,
190412C,ENTEL UK LTD==================,0000113454,5,46.73,RADIO,26/04/12,
190412C,ENTEL UK LTD==================,0000113454,6,47.07,RADIO,26/04/12,
190412C,ENTEL UK LTD==================,0000113454,7,39.70,RADIO,26/04/12,
190412C,ENTEL UK LTD==================,0000113454,8,48.43,RADIO,26/04/12,
190412C,ENTEL UK LTD==================,0000113454,10,46.99,RADIO,26/04/12,
190412C,ENTEL UK LTD==================,0000113454,11,48.73,RADIO,26/04/12,
190412C,ENTEL UK LTD==================,0000113454,12,9.00,RADIO,26/04/12,
200412G,FIRE PREVENTION PRODUCTS LTD==,043147,1,"2,115.90",OPERATIONAL EQUIP-PURCHASE,26/04/12,"2,115.90"
200412C,*PRINCIPAL CATERING CONSULTNTS,047270,1,"5,083.00",CATERING,26/04/12,"5,083.00"
200412C,*PRINCIPAL CATERING CONSULTNTS,047271,1,855.00,CATERING,26/04/12,855.00
200412C,*SPRUE SAFETY PRODUCTS LTD====,1030845,1,"1,390.40",FIRE DETECTORS,26/04/12,"1,390.40"
230412C,*SPRUE SAFETY PRODUCTS LTD====,1030847,1,758.40,FIRE DETECTORS,26/04/12,758.40
200412C,*SPRUE SAFETY PRODUCTS LTD====,1030852,1,"1,390.40",FIRE DETECTORS,26/04/12,"1,390.40"
200412C,*SPRUE SAFETY PRODUCTS LTD====,1030853,1,"1,390.40",FIRE DETECTORS,26/04/12,"1,390.40"
200412C,*SPRUE SAFETY PRODUCTS LTD====,1030860,1,758.40,FIRE DETECTORS,26/04/12,758.40
200412C,*SPRUE SAFETY PRODUCTS LTD====,1030864,1,758.40,FIRE DETECTORS,26/04/12,758.40
200412C,*SPRUE SAFETY PRODUCTS LTD====,1030865,1,"1,390.40",FIRE DETECTORS,26/04/12,"1,390.40"
200412C,*SPRUE SAFETY PRODUCTS LTD====,1030877,1,"1,390.40",FIRE DETECTORS,26/04/12,"1,390.40"
200412C,*SPRUE SAFETY PRODUCTS LTD====,1030881,1,"1,390.40",FIRE DETECTORS,26/04/12,"1,390.40"
200412C,*SPRUE SAFETY PRODUCTS LTD====,1030882,1,"1,390.40",FIRE DETECTORS,26/04/12,"1,390.40"
230412C,*SPRUE SAFETY PRODUCTS LTD====,1030885,1,"2,148.80",FIRE DETECTORS,26/04/12,"2,148.80"
200412C,*SPRUE SAFETY PRODUCTS LTD====,1030887,1,"1,011.20",FIRE DETECTORS,26/04/12,"1,011.20"
200412C,*SPRUE SAFETY PRODUCTS LTD====,1030888,1,758.40,FIRE DETECTORS,26/04/12,758.40
200412C,*SPRUE SAFETY PRODUCTS LTD====,1030889,1,"1,011.20",FIRE DETECTORS,26/04/12,"1,011.20"
200412C,*SPRUE SAFETY PRODUCTS LTD====,1030896,1,"1,011.20",FIRE DETECTORS,26/04/12,"1,011.20"
200412C,*SPRUE SAFETY PRODUCTS LTD====,1030899,1,"2,148.80",FIRE DETECTORS,26/04/12,"2,148.80"
200412C,*SPRUE SAFETY PRODUCTS LTD====,1030902,1,"2,148.80",FIRE DETECTORS,26/04/12,"2,148.80"
200412C,*SPRUE SAFETY PRODUCTS LTD====,1030903,1,"1,011.20",FIRE DETECTORS,26/04/12,"1,011.20"
200412C,*SPRUE SAFETY PRODUCTS LTD====,1030906,1,"2,148.80",FIRE DETECTORS,26/04/12,"2,148.80"
200412C,*SPRUE SAFETY PRODUCTS LTD====,1030908,1,884.80,FIRE DETECTORS,26/04/12,884.80
200412C,*SPRUE SAFETY PRODUCTS LTD====,1030909,1,"2,148.80",FIRE DETECTORS,26/04/12,"2,148.80"
200412C,*SPRUE SAFETY PRODUCTS LTD====,1030911,1,"1,011.20",FIRE DETECTORS,26/04/12,"1,011.20"
200412C,*SPRUE SAFETY PRODUCTS LTD====,1030912,1,"1,011.20",FIRE DETECTORS,26/04/12,"1,011.20"
200412G,WERNICK EVENT HIRE LTD========,10617,1,707.00,OPERATIONAL EQUIP-PURCHASE,26/04/12,707.00
200412C,WERNICK EVENT HIRE LTD========,10618,1,832.00,OPERATIONAL EQUIP-PURCHASE,26/04/12,832.00
139636,MRH BUILDING CONTACTOR,1066,1,"1,859.00",STRATEGIC (NON CYCLICAL),26/04/12,"2,119.00"
139636,MRH BUILDING CONTACTOR,1066,2,260.00,STRATEGIC (NON CYCLICAL),26/04/12,
200412C,BEAUMONT LTD.,1223,1,"8,584.08",STRATEGIC (NON CYCLICAL),26/04/12,"8,584.08"
200412C,BEAUMONT LTD.,1393,1,"11,307.19",STRATEGIC (NON CYCLICAL),26/04/12,"11,307.19"
230412C,GP CONTRACTS==================,14327,1,175.00,STRATEGIC (CYCLICAL),26/04/12,"8,095.00"
230412C,GP CONTRACTS==================,14327,2,525.00,STRATEGIC (CYCLICAL),26/04/12,
230412C,GP CONTRACTS==================,14327,3,150.00,STRATEGIC (CYCLICAL),26/04/12,
230412C,GP CONTRACTS==================,14327,4,150.00,STRATEGIC (CYCLICAL),26/04/12,
230412C,GP CONTRACTS==================,14327,5,150.00,STRATEGIC (CYCLICAL),26/04/12,
230412C,GP CONTRACTS==================,14327,6,675.00,STRATEGIC (CYCLICAL),26/04/12,
230412C,GP CONTRACTS==================,14327,7,175.00,STRATEGIC (CYCLICAL),26/04/12,
230412C,GP CONTRACTS==================,14327,8,175.00,STRATEGIC (CYCLICAL),26/04/12,
230412C,GP CONTRACTS==================,14327,9,580.00,STRATEGIC (CYCLICAL),26/04/12,
230412C,GP CONTRACTS==================,14327,10,150.00,STRATEGIC (CYCLICAL),26/04/12,
230412C,GP CONTRACTS==================,14327,11,150.00,STRATEGIC (CYCLICAL),26/04/12,
230412C,GP CONTRACTS==================,14327,12,175.00,STRATEGIC (CYCLICAL),26/04/12,
230412C,GP CONTRACTS==================,14327,13,150.00,STRATEGIC (CYCLICAL),26/04/12,
230412C,GP CONTRACTS==================,14327,14,175.00,STRATEGIC (CYCLICAL),26/04/12,
230412C,GP CONTRACTS==================,14327,15,150.00,STRATEGIC (CYCLICAL),26/04/12,
230412C,GP CONTRACTS==================,14327,16,150.00,STRATEGIC (CYCLICAL),26/04/12,
230412C,GP CONTRACTS==================,14327,17,300.00,STRATEGIC (CYCLICAL),26/04/12,
230412C,GP CONTRACTS==================,14327,18,185.00,STRATEGIC (CYCLICAL),26/04/12,
230412C,GP CONTRACTS==================,14327,19,580.00,STRATEGIC (CYCLICAL),26/04/12,
230412C,GP CONTRACTS==================,14327,20,150.00,STRATEGIC (CYCLICAL),26/04/12,
230412C,GP CONTRACTS==================,14327,21,150.00,STRATEGIC (CYCLICAL),26/04/12,
230412C,GP CONTRACTS==================,14327,22,150.00,STRATEGIC (CYCLICAL),26/04/12,
230412C,GP CONTRACTS==================,14327,23,150.00,STRATEGIC (CYCLICAL),26/04/12,
230412C,GP CONTRACTS==================,14327,24,600.00,STRATEGIC (CYCLICAL),26/04/12,
230412C,GP CONTRACTS==================,14327,25,150.00,STRATEGIC (CYCLICAL),26/04/12,
230412C,GP CONTRACTS==================,14327,26,150.00,STRATEGIC (CYCLICAL),26/04/12,
230412C,GP CONTRACTS==================,14327,27,650.00,STRATEGIC (CYCLICAL),26/04/12,
230412C,GP CONTRACTS==================,14327,28,150.00,STRATEGIC (CYCLICAL),26/04/12,
230412C,GP CONTRACTS==================,14327,29,425.00,STRATEGIC (CYCLICAL),26/04/12,
230412C,GP CONTRACTS==================,14327,30,450.00,STRATEGIC (CYCLICAL),26/04/12,
230412C,GP CONTRACTS==================,14335,1,150.00,STRATEGIC (CYCLICAL),26/04/12,"3,835.00"
230412C,GP CONTRACTS==================,14335,2,300.00,STRATEGIC (CYCLICAL),26/04/12,
230412C,GP CONTRACTS==================,14335,3,150.00,STRATEGIC (CYCLICAL),26/04/12,
230412C,GP CONTRACTS==================,14335,4,150.00,STRATEGIC (CYCLICAL),26/04/12,
230412C,GP CONTRACTS==================,14335,5,150.00,STRATEGIC (CYCLICAL),26/04/12,
230412C,GP CONTRACTS==================,14335,6,580.00,STRATEGIC (CYCLICAL),26/04/12,
230412C,GP CONTRACTS==================,14335,7,150.00,STRATEGIC (CYCLICAL),26/04/12,
230412C,GP CONTRACTS==================,14335,8,125.00,STRATEGIC (CYCLICAL),26/04/12,
230412C,GP CONTRACTS==================,14335,9,685.00,STRATEGIC (CYCLICAL),26/04/12,
230412C,GP CONTRACTS==================,14335,10,150.00,STRATEGIC (CYCLICAL),26/04/12,
230412C,GP CONTRACTS==================,14335,11,420.00,STRATEGIC (CYCLICAL),26/04/12,
230412C,GP CONTRACTS==================,14335,12,150.00,STRATEGIC (CYCLICAL),26/04/12,
230412C,GP CONTRACTS==================,14335,13,150.00,STRATEGIC (CYCLICAL),26/04/12,
230412C,GP CONTRACTS==================,14335,14,200.00,STRATEGIC (CYCLICAL),26/04/12,
230412C,GP CONTRACTS==================,14335,15,150.00,STRATEGIC (CYCLICAL),26/04/12,
230412C,GP CONTRACTS==================,14335,16,175.00,STRATEGIC (CYCLICAL),26/04/12,
160412C,THE STATIONERY OFFICE LTD=====,1601801X,1,"2,160.00",STATIONERY CONSUMABLES,26/04/12,"2,234.92"
160412C,THE STATIONERY OFFICE LTD=====,1601801X,2,74.92,STATIONERY CONSUMABLES,26/04/12,
230412C,GRADIENT CONSULTANTS LLP======,1683,1,71.18,PROFESSIONAL FEES - MISC,26/04/12,"2,820.47"
230412C,GRADIENT CONSULTANTS LLP======,1683,2,61.96,DEVELOPMENT EXP - CONTRACTORS,26/04/12,
230412C,GRADIENT CONSULTANTS LLP======,1683,3,290.02,PROFESSIONAL FEES - MISC,26/04/12,
230412C,GRADIENT CONSULTANTS LLP======,1683,4,242.57,DEVELOPMENT EXP - CONTRACTORS,26/04/12,
230412C,GRADIENT CONSULTANTS LLP======,1683,5,237.30,PROFESSIONAL FEES - MISC,26/04/12,
230412C,GRADIENT CONSULTANTS LLP======,1683,6,424.49,DEVELOPMENT EXP - CONTRACTORS,26/04/12,
230412C,GRADIENT CONSULTANTS LLP======,1683,7,118.65,DEVELOPMENT EXP - CONTRACTORS,26/04/12,
230412C,GRADIENT CONSULTANTS LLP======,1683,8,104.41,PROFESSIONAL FEES - MISC,26/04/12,
230412C,GRADIENT CONSULTANTS LLP======,1683,9,71.18,DEVELOPMENT EXP - CONTRACTORS,26/04/12,
230412C,GRADIENT CONSULTANTS LLP======,1683,10,79.10,PROFESSIONAL FEES - MISC,26/04/12,
230412C,GRADIENT CONSULTANTS LLP======,1683,11,104.41,PROFESSIONAL FEES - MISC,26/04/12,
230412C,GRADIENT CONSULTANTS LLP======,1683,12,104.41,DEVELOPMENT EXP - CONTRACTORS,26/04/12,
230412C,GRADIENT CONSULTANTS LLP======,1683,13,152.53,PROFESSIONAL FEES - MISC,26/04/12,
230412C,GRADIENT CONSULTANTS LLP======,1683,14,79.10,DEVELOPMENT EXP - CONTRACTORS,26/04/12,
230412C,GRADIENT CONSULTANTS LLP======,1683,15,52.74,PROFESSIONAL FEES - MISC,26/04/12,
230412C,GRADIENT CONSULTANTS LLP======,1683,16,104.41,PROFESSIONAL FEES - MISC,26/04/12,
230412C,GRADIENT CONSULTANTS LLP======,1683,17,104.41,PROFESSIONAL FEES - MISC,26/04/12,
230412C,GRADIENT CONSULTANTS LLP======,1683,18,104.41,DEVELOPMENT EXP - CONTRACTORS,26/04/12,
230412C,GRADIENT CONSULTANTS LLP======,1683,19,104.41,PROFESSIONAL FEES - MISC,26/04/12,
230412C,GRADIENT CONSULTANTS LLP======,1683,20,104.41,PROFESSIONAL FEES - MISC,26/04/12,
230412C,GRADIENT CONSULTANTS LLP======,1683,21,104.37,PROFESSIONAL FEES - MISC,26/04/12,
230412C,STORM TECHNOLOGIES============,179392,1,700.00,TELECOMMUNICATIONS,26/04/12,700.00
230412C,STORM TECHNOLOGIES============,179394,1,525.00,ACQUISITIONS,26/04/12,525.00
230412C,STORM TECHNOLOGIES============,179406,1,64.00,DEVELOPMENT EXP - CONTRACTORS,26/04/12,711.97
230412C,STORM TECHNOLOGIES============,179406,2,96.00,DEVELOPMENT EXP - CONTRACTORS,26/04/12,
230412C,STORM TECHNOLOGIES============,179406,3,64.00,DEVELOPMENT EXP - CONTRACTORS,26/04/12,
230412C,STORM TECHNOLOGIES============,179406,4,139.42,DEVELOPMENT EXP - CONTRACTORS,26/04/12,
230412C,STORM TECHNOLOGIES============,179406,5,209.13,DEVELOPMENT EXP - CONTRACTORS,26/04/12,
230412C,STORM TECHNOLOGIES============,179406,6,139.42,DEVELOPMENT EXP - CONTRACTORS,26/04/12,
160412C,COTSWOLD OUTDOOR LTD==========,2012062529464,1,812.50,PRINTING,26/04/12,812.50
139643,SOUTHERN ASBESTOS SERVICES LTD,216334,1,350.00,DEVELOPMENT EXP - CONTRACTORS,26/04/12,"1,200.00"
139643,SOUTHERN ASBESTOS SERVICES LTD,216334,2,850.00,DEVELOPMENT EXP - CONTRACTORS,26/04/12,
139643,SOUTHERN ASBESTOS SERVICES LTD,216340,1,400.00,DEVELOPMENT EXP - CONTRACTORS,26/04/12,550.00
139643,SOUTHERN ASBESTOS SERVICES LTD,216340,2,150.00,DEVELOPMENT EXP - CONTRACTORS,26/04/12,
190412C,BUNZL SAFETY & WORKWEAR SOLUTI,23/021854,1,"1,300.00",UNIFORMS - POMS,26/04/12,"7,020.00"
190412C,BUNZL SAFETY & WORKWEAR SOLUTI,23/021854,2,780.00,UNIFORMS - POMS,26/04/12,
190412C,BUNZL SAFETY & WORKWEAR SOLUTI,23/021854,3,780.00,UNIFORMS - POMS,26/04/12,
190412C,BUNZL SAFETY & WORKWEAR SOLUTI,23/021854,4,"1,300.00",UNIFORMS - POMS,26/04/12,
190412C,BUNZL SAFETY & WORKWEAR SOLUTI,23/021854,5,260.00,UNIFORMS - POMS,26/04/12,
190412C,BUNZL SAFETY & WORKWEAR SOLUTI,23/021854,6,"2,600.00",UNIFORMS - POMS,26/04/12,
139643,REACTIVE ROOFING (UK) LIMITED,2300,1,"2,250.00",STRATEGIC (NON CYCLICAL),26/04/12,"3,158.00"
139643,REACTIVE ROOFING (UK) LIMITED,2300,2,908.00,STRATEGIC (NON CYCLICAL),26/04/12,
139643,REACTIVE ROOFING (UK) LIMITED,2301,1,"1,000.00",STRATEGIC (NON CYCLICAL),26/04/12,"1,848.00"
139643,REACTIVE ROOFING (UK) LIMITED,2301,2,848.00,STRATEGIC (NON CYCLICAL),26/04/12,
230412C,SCOTT MERRICK ASSOCIATES======,24151,1,"3,453.55",MAINTENANCE & SUPPORT,26/04/12,"13,238.58"
230412C,SCOTT MERRICK ASSOCIATES======,24151,2,"9,785.03",MAINTENANCE & SUPPORT,26/04/12,
230412A,ALPHA PLUS SECURITY LIMITED==,24749,1,"3,920.00",PREMISES SECURITY,26/04/12,"15,075.00"
230412A,ALPHA PLUS SECURITY LIMITED==,24749,2,140.00,PREMISES SECURITY,26/04/12,
230412A,ALPHA PLUS SECURITY LIMITED==,24749,3,"11,015.00",PREMISES SECURITY,26/04/12,
190412C,BRITISH TELECOM===============,25314846Q043,1,"124,176.78",TELECOMMUNICATIONS,26/04/12,"124,176.78"
160412C,TOTAL PROTECTION UK LIMITED,26094,1,68.00,CLOTHING,26/04/12,"1,292.00"
160412C,TOTAL PROTECTION UK LIMITED,26094,2,136.00,CLOTHING,26/04/12,
160412C,TOTAL PROTECTION UK LIMITED,26094,3,136.00,CLOTHING,26/04/12,
160412C,TOTAL PROTECTION UK LIMITED,26094,4,68.00,CLOTHING,26/04/12,
160412C,TOTAL PROTECTION UK LIMITED,26094,5,680.00,CLOTHING,26/04/12,
160412C,TOTAL PROTECTION UK LIMITED,26094,6,136.00,CLOTHING,26/04/12,
160412C,TOTAL PROTECTION UK LIMITED,26094,7,68.00,CLOTHING,26/04/12,
139645,OPHTHALMIC TECHNOLOGIES LTD,30665,1,"3,851.00",MEDICAL EXPENSES,26/04/12,"3,851.00"
230412C,TOWELS DIRECT=================,32572,1,662.40,HYGIENE,26/04/12,662.40
190412C,HUNTERS CONTRACTS LIMITED,337654,1,"2,325.00",STRATEGIC (NON CYCLICAL),26/04/12,"2,325.00"
200412C,HUNTERS CONTRACTS LIMITED,337655,1,"2,441.00",REMOVALS,26/04/12,"2,441.00"
190412C,HUNTERS CONTRACTS LIMITED,337915,1,605.00,STRATEGIC (NON CYCLICAL),26/04/12,605.00
200412C,CANON (UK) LTD===============,401190019,1,"2,902.02",OFFICE EQUIPMENT,26/04/12,"2,902.02"
230412A,CANON (UK) LTD===============,401190916,1,38.22,OFFICE EQUIPMENT,26/04/12,"3,008.30"
230412A,CANON (UK) LTD===============,401190916,2,20.30,OFFICE EQUIPMENT,26/04/12,
230412A,CANON (UK) LTD===============,401190916,3,121.47,OFFICE EQUIPMENT,26/04/12,
230412A,CANON (UK) LTD===============,401190916,4,121.72,OFFICE EQUIPMENT,26/04/12,
230412A,CANON (UK) LTD===============,401190916,5,28.18,OFFICE EQUIPMENT,26/04/12,
230412A,CANON (UK) LTD===============,401190916,6,46.44,OFFICE EQUIPMENT,26/04/12,
230412A,CANON (UK) LTD===============,401190916,7,190.97,OFFICE EQUIPMENT,26/04/12,
230412A,CANON (UK) LTD===============,401190916,8,37.98,OFFICE EQUIPMENT,26/04/12,
230412A,CANON (UK) LTD===============,401190916,9,491.31,OFFICE EQUIPMENT,26/04/12,
230412A,CANON (UK) LTD===============,401190916,10,122.04,OFFICE EQUIPMENT,26/04/12,
230412A,CANON (UK) LTD===============,401190916,11,191.47,OFFICE EQUIPMENT,26/04/12,
230412A,CANON (UK) LTD===============,401190916,12,132.01,OFFICE EQUIPMENT,26/04/12,
230412A,CANON (UK) LTD===============,401190916,13,"1,036.40",OFFICE EQUIPMENT,26/04/12,
230412A,CANON (UK) LTD===============,401190916,14,33.36,OFFICE EQUIPMENT,26/04/12,
230412A,CANON (UK) LTD===============,401190916,15,396.43,OFFICE EQUIPMENT,26/04/12,
200412G,LOCAL GOVERNMENT ASSOCIATION==,40124426,1,"29,664.89",SUBSCRIPTIONS,26/04/12,"29,664.89"
200412C,QUALTRAK SOLUTIONS LTD========,411,1,"2,925.00",MAINTENANCE & SUPPORT,26/04/12,"2,925.00"
200412C,MITIE SECURITY (LONDON) LTD===,44/467558,1,"8,399.96",PREMISES SECURITY,26/04/12,"8,399.96"
200412C,MITIE SECURITY (LONDON) LTD===,44/467569,1,"16,829.28",PREMISES SECURITY,26/04/12,"16,829.28"
200412C,MITIE SECURITY (LONDON) LTD===,44/467723,1,"8,388.70",PREMISES SECURITY,26/04/12,"8,388.70"
200412C,URS SCOTT WILSON LIMITED,4924265,1,80.48,PROFESSIONAL FEES - MISC,26/04/12,"4,270.17"
200412C,URS SCOTT WILSON LIMITED,4924265,2,72.01,PROFESSIONAL FEES - MISC,26/04/12,
200412C,URS SCOTT WILSON LIMITED,4924265,3,80.52,PROFESSIONAL FEES - MISC,26/04/12,
200412C,URS SCOTT WILSON LIMITED,4924265,4,80.53,PROFESSIONAL FEES - MISC,26/04/12,
200412C,URS SCOTT WILSON LIMITED,4924265,5,80.48,PROFESSIONAL FEES - MISC,26/04/12,
200412C,URS SCOTT WILSON LIMITED,4924265,6,80.51,PROFESSIONAL FEES - MISC,26/04/12,
200412C,URS SCOTT WILSON LIMITED,4924265,7,80.50,PROFESSIONAL FEES - MISC,26/04/12,
200412C,URS SCOTT WILSON LIMITED,4924265,8,72.03,PROFESSIONAL FEES - MISC,26/04/12,
200412C,URS SCOTT WILSON LIMITED,4924265,9,80.52,PROFESSIONAL FEES - MISC,26/04/12,
200412C,URS SCOTT WILSON LIMITED,4924265,10,80.52,PROFESSIONAL FEES - MISC,26/04/12,
200412C,URS SCOTT WILSON LIMITED,4924265,11,80.49,PROFESSIONAL FEES - MISC,26/04/12,
200412C,URS SCOTT WILSON LIMITED,4924265,12,80.52,PROFESSIONAL FEES - MISC,26/04/12,
200412C,URS SCOTT WILSON LIMITED,4924265,13,80.53,PROFESSIONAL FEES - MISC,26/04/12,
200412C,URS SCOTT WILSON LIMITED,4924265,14,80.50,PROFESSIONAL FEES - MISC,26/04/12,
200412C,URS SCOTT WILSON LIMITED,4924265,15,80.51,PROFESSIONAL FEES - MISC,26/04/12,
200412C,URS SCOTT WILSON LIMITED,4924265,16,80.50,PROFESSIONAL FEES - MISC,26/04/12,
200412C,URS SCOTT WILSON LIMITED,4924265,17,80.49,PROFESSIONAL FEES - MISC,26/04/12,
200412C,URS SCOTT WILSON LIMITED,4924265,18,80.52,PROFESSIONAL FEES - MISC,26/04/12,
200412C,URS SCOTT WILSON LIMITED,4924265,19,80.52,PROFESSIONAL FEES - MISC,26/04/12,
200412C,URS SCOTT WILSON LIMITED,4924265,20,80.53,PROFESSIONAL FEES - MISC,26/04/12,
200412C,URS SCOTT WILSON LIMITED,4924265,21,80.51,PROFESSIONAL FEES - MISC,26/04/12,
200412C,URS SCOTT WILSON LIMITED,4924265,22,"2,596.45",PROFESSIONAL FEES - MISC,26/04/12,
230412A,FAHEY BUILDERS LTD============,5118,1,"6,500.00",STRATEGIC (NON CYCLICAL),26/04/12,"6,500.00"
230412A,FAHEY BUILDERS LTD============,5119,1,"6,475.00",STRATEGIC (NON CYCLICAL),26/04/12,"6,475.00"
139645,BRITISH GAS BUSINESS==========,54482540/1,1,"1,888.66",ELECTRICITY,26/04/12,"1,888.66"
200412C,BYWATERS LTD=========,611361/A,1,264.58,REFUSE COLLECTION,26/04/12,"24,622.87"
200412C,BYWATERS LTD=========,611361/A,2,379.76,REFUSE COLLECTION,26/04/12,
200412C,BYWATERS LTD=========,611361/A,3,183.37,REFUSE COLLECTION,26/04/12,
200412C,BYWATERS LTD=========,611361/A,4,273.26,REFUSE COLLECTION,26/04/12,
200412C,BYWATERS LTD=========,611361/A,5,103.14,REFUSE COLLECTION,26/04/12,
200412C,BYWATERS LTD=========,611361/A,6,159.01,REFUSE COLLECTION,26/04/12,
200412C,BYWATERS LTD=========,611361/A,7,103.14,REFUSE COLLECTION,26/04/12,
200412C,BYWATERS LTD=========,611361/A,8,236.42,REFUSE COLLECTION,26/04/12,
200412C,BYWATERS LTD=========,611361/A,9,196.76,REFUSE COLLECTION,26/04/12,
200412C,BYWATERS LTD=========,611361/A,10,175.72,REFUSE COLLECTION,26/04/12,
200412C,BYWATERS LTD=========,611361/A,11,115.42,REFUSE COLLECTION,26/04/12,
200412C,BYWATERS LTD=========,611361/A,12,103.14,REFUSE COLLECTION,26/04/12,
200412C,BYWATERS LTD=========,611361/A,13,150.70,REFUSE COLLECTION,26/04/12,
200412C,BYWATERS LTD=========,611361/A,14,221.62,REFUSE COLLECTION,26/04/12,
200412C,BYWATERS LTD=========,611361/A,15,355.40,REFUSE COLLECTION,26/04/12,
200412C,BYWATERS LTD=========,611361/A,16,159.01,REFUSE COLLECTION,26/04/12,
200412C,BYWATERS LTD=========,611361/A,17,370.00,REFUSE COLLECTION,26/04/12,
200412C,BYWATERS LTD=========,611361/A,18,103.14,REFUSE COLLECTION,26/04/12,
200412C,BYWATERS LTD=========,611361/A,19,395.06,REFUSE COLLECTION,26/04/12,
200412C,BYWATERS LTD=========,611361/A,20,395.06,REFUSE COLLECTION,26/04/12,
200412C,BYWATERS LTD=========,611361/A,21,471.06,REFUSE COLLECTION,26/04/12,
200412C,BYWATERS LTD=========,611361/A,22,370.78,REFUSE COLLECTION,26/04/12,
200412C,BYWATERS LTD=========,611361/A,23,103.14,REFUSE COLLECTION,26/04/12,
200412C,BYWATERS LTD=========,611361/A,24,103.14,REFUSE COLLECTION,26/04/12,
200412C,BYWATERS LTD=========,611361/A,25,110.79,REFUSE COLLECTION,26/04/12,
200412C,BYWATERS LTD=========,611361/A,26,115.32,REFUSE COLLECTION,26/04/12,
200412C,BYWATERS LTD=========,611361/A,27,159.01,REFUSE COLLECTION,26/04/12,
200412C,BYWATERS LTD=========,611361/A,28,115.32,REFUSE COLLECTION,26/04/12,
200412C,BYWATERS LTD=========,611361/A,29,395.06,REFUSE COLLECTION,26/04/12,
200412C,BYWATERS LTD=========,611361/A,30,325.71,REFUSE COLLECTION,26/04/12,
200412C,BYWATERS LTD=========,611361/A,31,103.14,REFUSE COLLECTION,26/04/12,
200412C,BYWATERS LTD=========,611361/A,32,159.01,REFUSE COLLECTION,26/04/12,
200412C,BYWATERS LTD=========,611361/A,33,395.06,REFUSE COLLECTION,26/04/12,
200412C,BYWATERS LTD=========,611361/A,34,166.66,REFUSE COLLECTION,26/04/12,
200412C,BYWATERS LTD=========,611361/A,35,159.01,REFUSE COLLECTION,26/04/12,
200412C,BYWATERS LTD=========,611361/A,36,190.52,REFUSE COLLECTION,26/04/12,
200412C,BYWATERS LTD=========,611361/A,37,191.02,REFUSE COLLECTION,26/04/12,
200412C,BYWATERS LTD=========,611361/A,38,196.76,REFUSE COLLECTION,26/04/12,
200412C,BYWATERS LTD=========,611361/A,39,153.07,REFUSE COLLECTION,26/04/12,
200412C,BYWATERS LTD=========,611361/A,40,103.14,REFUSE COLLECTION,26/04/12,
200412C,BYWATERS LTD=========,611361/A,41,318.56,REFUSE COLLECTION,26/04/12,
200412C,BYWATERS LTD=========,611361/A,42,356.31,REFUSE COLLECTION,26/04/12,
200412C,BYWATERS LTD=========,611361/A,43,159.01,REFUSE COLLECTION,26/04/12,
200412C,BYWATERS LTD=========,611361/A,44,103.14,REFUSE COLLECTION,26/04/12,
200412C,BYWATERS LTD=========,611361/A,45,122.97,REFUSE COLLECTION,26/04/12,
200412C,BYWATERS LTD=========,611361/A,46,379.76,REFUSE COLLECTION,26/04/12,
200412C,BYWATERS LTD=========,611361/A,47,333.86,REFUSE COLLECTION,26/04/12,
200412C,BYWATERS LTD=========,611361/A,48,183.87,REFUSE COLLECTION,26/04/12,
200412C,BYWATERS LTD=========,611361/A,49,122.97,REFUSE COLLECTION,26/04/12,
200412C,BYWATERS LTD=========,611361/A,50,103.14,REFUSE COLLECTION,26/04/12,
200412C,BYWATERS LTD=========,611361/A,51,159.01,REFUSE COLLECTION,26/04/12,
200412C,BYWATERS LTD=========,611361/A,52,395.06,REFUSE COLLECTION,26/04/12,
200412C,BYWATERS LTD=========,611361/A,53,110.79,REFUSE COLLECTION,26/04/12,
200412C,BYWATERS LTD=========,611361/A,54,103.14,REFUSE COLLECTION,26/04/12,
200412C,BYWATERS LTD=========,611361/A,55,159.01,REFUSE COLLECTION,26/04/12,
200412C,BYWATERS LTD=========,611361/A,56,122.97,REFUSE COLLECTION,26/04/12,
200412C,BYWATERS LTD=========,611361/A,57,140.89,REFUSE COLLECTION,26/04/12,
200412C,BYWATERS LTD=========,611361/A,58,103.14,REFUSE COLLECTION,26/04/12,
200412C,BYWATERS LTD=========,611361/A,59,212.06,REFUSE COLLECTION,26/04/12,
200412C,BYWATERS LTD=========,611361/A,60,115.32,REFUSE COLLECTION,26/04/12,
200412C,BYWATERS LTD=========,611361/A,61,395.06,REFUSE COLLECTION,26/04/12,
200412C,BYWATERS LTD=========,611361/A,62,159.01,REFUSE COLLECTION,26/04/12,
200412C,BYWATERS LTD=========,611361/A,63,159.01,REFUSE COLLECTION,26/04/12,
200412C,BYWATERS LTD=========,611361/A,64,103.14,REFUSE COLLECTION,26/04/12,
200412C,BYWATERS LTD=========,611361/A,65,370.70,REFUSE COLLECTION,26/04/12,
200412C,BYWATERS LTD=========,611361/A,66,115.32,REFUSE COLLECTION,26/04/12,
200412C,BYWATERS LTD=========,611361/A,67,395.06,REFUSE COLLECTION,26/04/12,
200412C,BYWATERS LTD=========,611361/A,68,103.14,REFUSE COLLECTION,26/04/12,
200412C,BYWATERS LTD=========,611361/A,69,159.01,REFUSE COLLECTION,26/04/12,
200412C,BYWATERS LTD=========,611361/A,70,159.01,REFUSE COLLECTION,26/04/12,
200412C,BYWATERS LTD=========,611361/A,71,183.37,REFUSE COLLECTION,26/04/12,
200412C,BYWATERS LTD=========,611361/A,72,159.01,REFUSE COLLECTION,26/04/12,
200412C,BYWATERS LTD=========,611361/A,73,103.14,REFUSE COLLECTION,26/04/12,
200412C,BYWATERS LTD=========,611361/A,74,395.06,REFUSE COLLECTION,26/04/12,
200412C,BYWATERS LTD=========,611361/A,75,110.79,REFUSE COLLECTION,26/04/12,
200412C,BYWATERS LTD=========,611361/A,76,159.01,REFUSE COLLECTION,26/04/12,
200412C,BYWATERS LTD=========,611361/A,77,183.37,REFUSE COLLECTION,26/04/12,
200412C,BYWATERS LTD=========,611361/A,78,183.37,REFUSE COLLECTION,26/04/12,
200412C,BYWATERS LTD=========,611361/A,79,156.19,REFUSE COLLECTION,26/04/12,
200412C,BYWATERS LTD=========,611361/A,80,103.14,REFUSE COLLECTION,26/04/12,
200412C,BYWATERS LTD=========,611361/A,81,103.14,REFUSE COLLECTION,26/04/12,
200412C,BYWATERS LTD=========,611361/A,82,166.16,REFUSE COLLECTION,26/04/12,
200412C,BYWATERS LTD=========,611361/A,83,103.14,REFUSE COLLECTION,26/04/12,
200412C,BYWATERS LTD=========,611361/A,84,395.06,REFUSE COLLECTION,26/04/12,
200412C,BYWATERS LTD=========,611361/A,85,395.06,REFUSE COLLECTION,26/04/12,
200412C,BYWATERS LTD=========,611361/A,86,159.01,REFUSE COLLECTION,26/04/12,
200412C,BYWATERS LTD=========,611361/A,87,110.79,REFUSE COLLECTION,26/04/12,
200412C,BYWATERS LTD=========,611361/A,88,117.94,REFUSE COLLECTION,26/04/12,
200412C,BYWATERS LTD=========,611361/A,89,159.01,REFUSE COLLECTION,26/04/12,
200412C,BYWATERS LTD=========,611361/A,90,103.14,REFUSE COLLECTION,26/04/12,
200412C,BYWATERS LTD=========,611361/A,91,719.19,REFUSE COLLECTION,26/04/12,
200412C,BYWATERS LTD=========,611361/A,92,115.32,REFUSE COLLECTION,26/04/12,
200412C,BYWATERS LTD=========,611361/A,93,122.97,REFUSE COLLECTION,26/04/12,
200412C,BYWATERS LTD=========,611361/A,94,370.70,REFUSE COLLECTION,26/04/12,
200412C,BYWATERS LTD=========,611361/A,95,103.14,REFUSE COLLECTION,26/04/12,
200412C,BYWATERS LTD=========,611361/A,96,183.37,REFUSE COLLECTION,26/04/12,
200412C,BYWATERS LTD=========,611361/A,97,166.66,REFUSE COLLECTION,26/04/12,
200412C,BYWATERS LTD=========,611361/A,98,395.06,REFUSE COLLECTION,26/04/12,
200412C,BYWATERS LTD=========,611361/A,99,164.06,REFUSE COLLECTION,26/04/12,
200412C,BYWATERS LTD=========,611361/A,100,"1,712.10",REFUSE COLLECTION,26/04/12,
200412C,BYWATERS LTD=========,611361/A,101,103.14,REFUSE COLLECTION,26/04/12,
200412C,BYWATERS LTD=========,611361/A,102,183.37,REFUSE COLLECTION,26/04/12,
200412C,BYWATERS LTD=========,611361/A,103,159.01,REFUSE COLLECTION,26/04/12,
200412C,BYWATERS LTD=========,611361/A,104,395.06,REFUSE COLLECTION,26/04/12,
200412C,BYWATERS LTD=========,611361/A,105,103.14,REFUSE COLLECTION,26/04/12,
200412C,BYWATERS LTD=========,611361/A,106,171.49,REFUSE COLLECTION,26/04/12,
200412C,BYWATERS LTD=========,611361/A,107,166.66,REFUSE COLLECTION,26/04/12,
200412C,BYWATERS LTD=========,611361/A,108,273.26,REFUSE COLLECTION,26/04/12,
200412C,BYWATERS LTD=========,611361/A,109,166.66,REFUSE COLLECTION,26/04/12,
200412C,BYWATERS LTD=========,611361/A,110,166.66,REFUSE COLLECTION,26/04/12,
200412C,BYWATERS LTD=========,611361/A,111,153.07,REFUSE COLLECTION,26/04/12,
200412C,BYWATERS LTD=========,611361/A,112,110.79,REFUSE COLLECTION,26/04/12,
200412C,BYWATERS LTD=========,611361/A,113,103.14,REFUSE COLLECTION,26/04/12,
